Workbook

Sheet Benchmark Report Instructions
B3: number of months | F3: KEY BENCHMARKS | H3: CALCULATION
B4: year | F4: Net Income | H4: Total Annual Revenue - Total Annual Expenses
A5: Gross Revenue | B5: total of membership, events, non dues | F5: Net Assets | H5: Total Assets - Total Liabilities
A6: Membership | B6: membership only | C6: percentage of total | F6: Current ratio | H6: Current Assets / Current Liabilities
A7: Events | B7: events less expense | C7: percentage of total | F7: Revenuse per Employee | H7: Total Annual Revenue / Total Chamber Staff
A8: Non Dues | B8: non dues less expense | C8: percentage of total | F8: Personnel Expense per Employee | H8: Personnel Expense / Total Chamber Staff
F9: Percent of Revenue from Member Dues | H9: Member Dues Revenue *100 / Total Annual Revenue
A10: Total Expenses | B10: line item expenses plus all events & non dues expense | F10: Percent of Revenue from Non Dues Sources | H10: Total Non-Dues Revenue * 100 / Total Annual Revenue
A11: Wages Expense | B11: total wages | C11: percentage of total expense | F11: Members per Employee | H11: Number of Member Accounts / Total Chamber Staff
A12: Labor Cost | B12: wages divided into gross revenue | F12: Dollars Retention Rate | H12: (Dollar Value of Member Accounts Prior Year – Dollar Value of Cancelled Accounts Current Year) *100 / Dollar Value of Member Accounts Prior Year.
A13: Events Expense | B13: 4100 COA only | C13: percentage of total expense | F13: Member Retention Rate | H13: (Member Accounts Prior Year – Cancelled Member Accounts Current Year) *100 / Member Accounts Prior Year
A14: Events Cost | B14: event expense divided into gross revenue | F14: First Year Member Retention Rate | H14: First Year Renewals / New Member Accounts Prior Year
F15: Revenue per Member | H15: Total Annual Revenue / Number of Member Accounts
A16: Net Revenue | B16: gross revenue minus total expenses | F16: Expense per Member | H16: Total Annual Expenses / Number of Member Accounts
F17: Market Penetration Rate | H17: Number of Member Accounts * 100 / Number of Businesses in Service Area
B18: MONTHLY AVERAGES | F18: REVENUE SOURCES | H18: CALCULATION
F19: Affinity Revenue % | H19: Affinity Revenue * 100 / Total Annual Revenue
F20: Advertising Revenue % | H20: Advertising Revenue * 100 / Total Annual Revenue
A21: Gross Revenue | B21: total gross divided by number of months | F21: Convention and Visitors Bureau Revenue % | H21: Convention and Visitors Bureau Revenue * 100 / Total Annual Revenue
A22: Membership | B22: total membership divided by number of months | F22: Economic Development Revenue % | H22: Economic Development Revenue * 100 / Total Annual Revenue
A23: Events | B23: total events divided by number of months | F23: Events Revenue % | H23: Events Revenue * 100 / Total Annual Revenue
A24: Non Dues | B24: total non dues divided by number of months | F24: Fee for Service Revenue % | H24: Fee for Service Revenue * 100 / Total Annual Revenue
F25: Foundation Revenue % | H25: Foundation Revenue * 100 / Total Annual Revenue
A26: Total Expenses | B26: total expenses divided by number of months | F26: Product Sales Revenue % | H26: Product Sales Revenue * 100 / Total Annual Revenue
A27: Wages | B27: total wages expense divided by number of months | F27: Other Non-Dues Revenue % | H27: Other Non-Dues Revenue * 100 / Total Annual Revenue
A28: Events Expense | B28: total event expense divided by number of months | F28: Member Dues Revenue % | H28: Member Dues Revenue * 100 / Total Annual Revenue

Sheet Benchmark Report
B2: number of active memberships | E2: 402 | G2: 386
B3: number of months | E3: 3 | G3: 12 | I3: 12 | K3: 12 | M3: 12 | O3: 12 | Q3: 12
B4: year | E4: 2024 Jan - Mar | G4: 2023 Jan - Dec | I4: 2022 Jan - Dec | K4: 2021 Jan - Dec | M4: 2020 Jan - Dec | O4: 2019 Jan - Dec | Q4: 2018 | S4: 2017 | U4: 2016 | W4: 2015 | Y4: 2014 | AA4: 2013 | AC4: 2012
A5: Gross Revenue | B5: total of membership, events, non dues | D5: Gross Revenue | E5: =E6+E7+E8 -> 54383.21 | G5: =G6+G7+G8 -> 194606.9 | I5: =I6+I7+I8 -> 215274.77 | K5: 214649 | M5: =M6+M7+M8 -> 239752.98 | O5: =O6+O7+O8 -> 330058.32 | Q5: =Q6+Q7+Q8 -> 284000.5 | U5: 0 | W5: 0 | Y5: 0 | AA5: 0 | AC5: 0
A6: Membership | B6: membership only | C6: percentage of total | D6: Membership | E6: ='2024 P&L Tracker'!P5 -> 21684 | F6: =E6/E5 -> 0.3987260039 | G6: 94895 | H6: =G6/G5 -> 0.4876240257 | I6: 98856.25 | J6: =I6/I5 -> 0.4592096417 | K6: 82967 | L6: =K6/K5 -> 0.3865240462 | M6: 114890.45 | N6: =M6/M5 -> 0.4792034285 | O6: 140462.92 | P6: =O6/O5 -> 0.4255700023 | Q6: 107729.89 | R6: =Q6/Q5 -> 0.3793299308 | T6: =S6/S5 ->  | V6: =U6/U5 ->  | X6: =W6/W5 ->  | Z6: =Y6/Y5 ->  | AB6: =AA6/AA5 ->  | AD6: =AC6/AC5 -> 
A7: Events | B7: events less expense | C7: percentage of total | D7: Events | E7: ='2024 P&L Tracker'!P26 -> 13263.12 | F7: =E7/E5 -> 0.2438826248 | G7: 46640.38 | H7: =G7/G5 -> 0.2396645751 | I7: 41654 | J7: =I7/I5 -> 0.1934922518 | K7: 58590 | L7: =K7/K5 -> 0.2729572465 | M7: 39785 | N7: 0.215 | O7: 91232.5 | P7: =O7/O5 -> 0.2764132714 | Q7: 86840 | R7: =Q7/Q5 -> 0.3057741096 | S7: 0 | T7: =S7/S5 ->  | V7: =U7/U5 ->  | X7: =W7/W5 ->  | Z7: =Y7/Y5 ->  | AB7: =AA7/AA5 ->  | AD7: =AC7/AC5 -> 
A8: Non Dues | B8: non dues less expense | C8: percentage of total | D8: Non Dues | E8: ='2024 P&L Tracker'!P32+'2024 P&L Tracker'!P35+'2024 P&L Tracker'!P53 -> 19436.09 | F8: =E8/E5 -> 0.3573913713 | G8: 53071.52 | H8: =G8/G5 -> 0.2727113992 | I8: 74764.52 | J8: =I8/I5 -> 0.3472981065 | K8: 73092 | L8: =K8/K5 -> 0.3405187073 | M8: 85077.53 | N8: 0.344 | O8: 98362.9 | P8: =O8/O5 -> 0.2980167263 | Q8: 89430.61 | R8: =Q8/Q5 -> 0.3148959597 | S8: 0 | T8: =S8/S5 ->  | V8: =U8/U5 ->  | X8: =W8/W5 ->  | Z8: =Y8/Y5 ->  | AB8: =AA8/AA5 ->  | AD8: =AC8/AC5 -> 
A11: Total Expenses | B11: line item expenses plus all events & non dues expense | D11: Total Expenses | E11: ='2024 P&L Tracker'!P82 -> 44375.69 | G11: 239331.1 | I11: 216048.79 | K11: 215690.85 | M11: 249418.61 | O11: 336057.11 | Q11: 324556.19 | S11: 0 | U11: 0 | W11: 0 | Y11: 0 | AA11: 0 | AC11: 0
A12: Wages Expense | B12: total wages | C12: percentage of total expense | D12: Wages Expense | E12: ='2024 P&L Tracker'!P80 -> 27819.98 | F12: =E12/E11 -> 0.6269193786 | G12: 108644.92 | H12: =G12/G11 -> 0.4539523698 | I12: 97880.45 | J12: =I12/I11 -> 0.4530478972 | K12: 49592 | L12: =K12/K11 -> 0.229921668 | M12: 101224.87 | N12: =M12/M11 -> 0.4058432929 | O12: 123527.79 | P12: =O12/O11 -> 0.3675797545 | Q12: 129102.33 | R12: =Q12/Q11 -> 0.3977811361 | S12: 0 | T12: =S12/S11 ->  | V12: =U12/U11 ->  | X12: =W12/W11 ->  | Z12: =Y12/Y11 ->  | AB12: =AA12/AA11 ->  | AD12: =AC12/AC11 -> 
A13: Labor Cost | B13: wages divided into gross revenue | D13: Labor Cost | E13: =E12/E5 -> 0.5115545772 | G13: =G12/G5 -> 0.5582788688 | I13: =I12/I5 -> 0.45467683 | K13: =K12/K5 -> 0.2310376475 | M13: =M12/M5 -> 0.422204846 | O13: =O12/O5 -> 0.3742604943 | Q13: =Q12/Q5 -> 0.4545848687 | S13: =S12/S5 ->  | U13: =U12/U5 ->  | W13: =W12/W5 ->  | Y13: =Y12/Y5 ->  | AA13: =AA12/AA5 ->  | AC13: =AC12/AC5 -> 
A14: Events Expense | B14: 4100 COA only | C14: percentage of total expense | D14: Events Expense | E14: 6638.88 | F14: =E14/E11 -> 0.1496062371 | G14: 37922.84 | H14: =G14/G11 -> 0.1584534563 | I14: 35987.33 | J14: =I14/I11 -> 0.1665703844 | K14: 37170.64 | L14: =K14/K11 -> 0.1723329478 | M14: 3740.84 | N14: =M14/M11 -> 0.01499823931 | O14: 28850.52 | P14: =O14/O11 -> 0.0858500509 | Q14: 31816.46 | R14: =Q14/Q13 -> 69990.14308 | S14: 0 | T14: =S14/S13 ->  | V14: =U14/U13 ->  | X14: =W14/W13 ->  | Z14: =Y14/Y13 ->  | AB14: =AA14/AA13 ->  | AD14: =AC14/AC13 -> 
A15: Events Cost | B15: event expense divided into gross revenue | D15: Events Cost | E15: =E14/E7 -> 0.5005519063 | G15: =G14/G7 -> 0.8130902879 | I15: =I14/I7 -> 0.8639585634 | K15: =K14/K7 -> 0.6344195255 | M15: =M14/M7 -> 0.09402639186 | O15: =O14/O7 -> 0.3162307292 | Q15: =Q14/Q7 -> 0.3663802395 | S15: =S14/S7 ->  | U15: =U14/U7 ->  | W15: =W14/W7 ->  | Y15: =Y14/Y7 ->  | AA15: =AA14/AA7 ->  | AC15: =AC14/AC7 -> 
A17: Net Operating Income | B17: gross revenue minus total expenses | D17: Net Operating Income | E17: =E5-E11 -> 10007.52 | G17: =G5-G11 -> -44724.2 | I17: =I5-I11 -> -774.02 | K17: =K5-K11 -> -1041.85 | M17: =M5-M11 -> -9665.63 | O17: =O5-O11 -> -5998.79 | Q17: =Q5-Q11 -> -40555.69 | S17: =S5-S11 -> 0 | U17: =U5-U11 -> 0 | W17: =W5-W11 -> 0 | Y17: =Y5-Y11 -> 0 | AA17: =AA5-AA11 -> 0 | AC17: =AC5-AC11 -> 0
D18: Revenue Per Member | E18: =E5/E2 -> 135.2816169 | G18: =(G5/G2)/G3 -> 42.01357945
D19: Expense Per Member | E19: =E11/E2 -> 110.3872886 | G19: =(G11/G2)/G3 -> 51.66906304
B21: MONTHLY AVERAGES
E22: MONTHLY AVERAGES | G22: MONTHLY AVERAGES
A24: Gross Revenue | B24: total gross divided by number of months | D24: Gross Revenue | E24: =E5/E3 -> 18127.73667 | G24: =G5/G3 -> 16217.24167 | I24: =I5/I3 -> 17939.56417 | K24: =K5/K3 -> 17887.41667 | M24: =M5/M3 -> 19979.415 | O24: =O5/O3 -> 27504.86 | Q24: =Q5/Q3 -> 23666.70833 | S24: =S5/S3 ->  | U24: =U5/U3 ->  | W24: =W5/W3 ->  | Y24: =Y5/Y3 ->  | AA24: =AA5/AA3 ->  | AC24: =AC5/AC3 -> 
A25: Membership | B25: total membership divided by number of months | D25: Membership | E25: =E6/E3 -> 7228 | F25: =E25/E24 -> 0.3987260039 | G25: =G6/G3 -> 7907.916667 | H25: =G25/G24 -> 0.4876240257 | I25: =I6/I3 -> 8238.020833 | J25: =I25/I24 -> 0.4592096417 | K25: =K6/K3 -> 6913.916667 | L25: =K25/K24 -> 0.3865240462 | M25: =M6/M3 -> 9574.204167 | N25: =M25/M24 -> 0.4792034285 | O25: =O6/O3 -> 11705.24333 | P25: =O25/O24 -> 0.4255700023 | Q25: =Q6/Q3 -> 8977.490833 | R25: =Q25/Q24 -> 0.3793299308 | S25: =S6/S3 ->  | U25: =U6/U3 ->  | W25: =W6/W3 ->  | Y25: =Y6/Y3 ->  | AA25: =AA6/AA3 ->  | AC25: =AC6/AC3 -> 
A26: Events | B26: total events divided by number of months | D26: Events | E26: =E7/E3 -> 4421.04 | F26: =E26/E24 -> 0.2438826248 | G26: =G7/G3 -> 3886.698333 | H26: =G26/G24 -> 0.2396645751 | I26: =I7/I3 -> 3471.166667 | J26: =I26/I24 -> 0.1934922518 | K26: =K7/K3 -> 4882.5 | L26: =K26/K24 -> 0.2729572465 | M26: =M7/M3 -> 3315.416667 | N26: =M26/M24 -> 0.1659416288 | O26: =O7/O3 -> 7602.708333 | P26: =O26/O24 -> 0.2764132714 | Q26: =Q7/Q3 -> 7236.666667 | R26: =Q26/Q24 -> 0.3057741096 | S26: =S7/S3 ->  | U26: =U7/U3 ->  | W26: =W7/W3 ->  | Y26: =Y7/Y3 ->  | AA26: =AA7/AA3 ->  | AC26: =AC7/AC3 -> 
A27: Non Dues | B27: total non dues divided by number of months | D27: Non Dues | E27: =E8/E3 -> 6478.696667 | F27: =E27/E24 -> 0.3573913713 | G27: =G8/G3 -> 4422.626667 | H27: =G27/G24 -> 0.2727113992 | I27: =I8/I3 -> 6230.376667 | J27: =I27/I24 -> 0.3472981065 | K27: =K8/K3 -> 6091 | L27: =K27/K24 -> 0.3405187073 | M27: =M8/M3 -> 7089.794167 | N27: =M27/M24 -> 0.3548549428 | O27: =O8/O3 -> 8196.908333 | P27: =O27/O24 -> 0.2980167263 | Q27: =Q8/Q3 -> 7452.550833 | R27: =Q27/Q24 -> 0.3148959597 | S27: =S8/S3 ->  | U27: =U8/U3 ->  | W27: =W8/W3 ->  | Y27: =Y8/Y3 ->  | AA27: =AA8/AA3 ->  | AC27: =AC8/AC3 -> 
A29: Total Expenses | B29: total expenses divided by number of months | D29: Total Expenses | E29: =E11/E3 -> 14791.89667 | G29: =G11/G3 -> 19944.25833 | I29: =I11/I3 -> 18004.06583 | K29: =K11/K3 -> 17974.2375 | M29: =M11/M3 -> 20784.88417 | O29: =O11/O3 -> 28004.75917 | Q29: =Q11/Q3 -> 27046.34917 | S29: =S11/S3 ->  | U29: =U11/U3 ->  | W29: =W11/W3 ->  | Y29: =Y11/Y3 ->  | AA29: =AA11/AA3 ->  | AC29: =AC11/AC3 -> 
A30: Wages | B30: total wages expense divided by number of months | D30: Wages | E30: =E12/E3 -> 9273.326667 | F30: =E30/E29 -> 0.6269193786 | G30: =G12/G3 -> 9053.743333 | H30: =G30/G29 -> 0.4539523698 | I30: =I12/I3 -> 8156.704167 | J30: =I30/I29 -> 0.4530478972 | K30: =K12/K3 -> 4132.666667 | L30: =K30/K29 -> 0.229921668 | M30: =M12/M3 -> 8435.405833 | N30: =M30/M29 -> 0.4058432929 | O30: =O12/O3 -> 10293.9825 | P30: =O30/O29 -> 0.3675797545 | Q30: =Q12/Q3 -> 10758.5275 | R30: =Q30/Q29 -> 0.3977811361 | S30: =S12/S3 ->  | U30: =U12/U3 ->  | W30: =W12/W3 ->  | Y30: =Y12/Y3 ->  | AA30: =AA12/AA3 ->  | AC30: =AC12/AC3 -> 
A31: Events Expense | B31: total event expense divided by number of months | D31: Events Expense | E31: =E14/E3 -> 2212.96 | F31: =E31/E29 -> 0.1496062371 | G31: =G14/G3 -> 3160.236667 | H31: =G31/G29 -> 0.1584534563 | I31: =I14/I3 -> 2998.944167 | J31: =I31/I29 -> 0.1665703844 | K31: =K14/K3 -> 3097.553333 | L31: =K31/K29 -> 0.1723329478 | M31: =M14/M3 -> 311.7366667 | N31: =M31/M29 -> 0.01499823931 | O31: =O14/O3 -> 2404.21 | P31: =O31/O29 -> 0.0858500509 | Q31: =Q14/Q3 -> 2651.371667 | R31: =Q31/Q29 -> 0.09803066766

Sheet 2024 P&L Tracker
B1: MEMBERSHIP INCOME | D1: JANUARY | E1: FEBRUARY | F1: MARCH | G1: APRIL | H1: MAY | I1: JUNE | J1: JULY | K1: AUGUST | L1: SEPTEMBER | M1: OCTOBER | N1: NOVEMBER | O1: DECEMBER | P1: TOTAL
B2: 4011 | C2: Admin Fees Income | D2: 110 | E2: 220 | F2: 385 | P2: =SUM(D2:O2) -> 715
B3: 4012 | C3: Renewal Member Dues Income | D3: 5813.5 | E3: 4752 | F3: 5577 | P3: =SUM(D3:O3) -> 16142.5
B4: 4013 | C4: New Member Dues Income | D4: 784 | E4: 2046 | F4: 1996.5 | P4: =SUM(D4:O4) -> 4826.5
C5: Total 4010 MEMBERSHIP INCOME | D5: =SUM(D2:D4) -> 6707.5 | E5: =SUM(E2:E4) -> 7018 | F5: =SUM(F2:F4) -> 7958.5 | G5: =SUM(G2:G4) -> 0 | H5: =SUM(H2:H4) -> 0 | I5: =SUM(I2:I4) -> 0 | J5: =SUM(J2:J4) -> 0 | K5: =SUM(K2:K4) -> 0 | L5: =SUM(L2:L4) -> 0 | M5: =SUM(M2:M4) -> 0 | N5: =SUM(N2:N4) -> 0 | O5: =SUM(O2:O4) -> 0 | P5: =SUM(P2:P4) -> 21684
B6: EVENTS INCOME
B7: 4110 | C7: Valor Awards Income
B8: 4111 | C8: Valor Awards Sponsorship Income | D8: 4950 | E8: 2250 | F8: 10975 | P8: =SUM(D8:O8) -> 18175
B9: 4112 | C9: Valor Awards Attendee Income | F9: 650 | P9: =SUM(D9:O9) -> 650
B10: 4115 | C10: Valor Awards Expense | F10: -5342.32 | P10: =SUM(D10:O10) -> -5342.32
C11: Total 4110 Valor Awards Income | D11: =(((D7)+(D8))+(D9))+(D10) -> 4950 | E11: =(((E7)+(E8))+(E9))+(E10) -> 2250 | F11: =(((F7)+(F8))+(F9))+(F10) -> 6282.68 | G11: =(((G7)+(G8))+(G9))+(G10) -> 0 | H11: =(((H7)+(H8))+(H9))+(H10) -> 0 | I11: =(((I7)+(I8))+(I9))+(I10) -> 0 | J11: =(((J7)+(J8))+(J9))+(J10) -> 0 | K11: =(((K7)+(K8))+(K9))+(K10) -> 0 | L11: =(((L7)+(L8))+(L9))+(L10) -> 0 | M11: =(((M7)+(M8))+(M9))+(M10) -> 0 | N11: =(((N7)+(N8))+(N9))+(N10) -> 0 | O11: =(((O7)+(O8))+(O9))+(O10) -> 0 | P11: =SUM(P8:P10) -> 13482.68
B12: 4130 | C12: Legislative Events Income
B13: 4131 | C13: Legislative Events Sponsorship Income | E13: 100 | P13: =SUM(D13:O13) -> 100
B14: 4135 | C14: Legislative Events Expense | D14: -117.94 | P14: =SUM(D14:O14) -> -117.94
C15: Total 4130 Legislative Events Income | D15: =((D12)+(D13))+(D14) -> -117.94 | E15: =((E12)+(E13))+(E14) -> 100 | F15: =((F12)+(F13))+(F14) -> 0 | G15: =((G12)+(G13))+(G14) -> 0 | H15: =((H12)+(H13))+(H14) -> 0 | I15: =((I12)+(I13))+(I14) -> 0 | J15: =((J12)+(J13))+(J14) -> 0 | K15: =((K12)+(K13))+(K14) -> 0 | L15: =((L12)+(L13))+(L14) -> 0 | M15: =((M12)+(M13))+(M14) -> 0 | N15: =((N12)+(N13))+(N14) -> 0 | O15: =((O12)+(O13))+(O14) -> 0 | P15: =SUM(P13:P14) -> -17.94
B16: 4160 | C16: Member Orientation
B17: 4161 | C17: Member Orientation Sponsorship | D17: 67 | E17: 10 | P17: =SUM(D17:O17) -> 77
B18: 4165 | C18: Member Orientation Expenses | E18: -41.13 | P18: =SUM(D18:O18) -> -41.13
C19: Total 4160 Member Orientation | D19: =((D16)+(D17))+(D18) -> 67 | E19: =((E16)+(E17))+(E18) -> -31.13 | F19: =((F16)+(F17))+(F18) -> 0 | G19: =((G16)+(G17))+(G18) -> 0 | H19: =((H16)+(H17))+(H18) -> 0 | I19: =((I16)+(I17))+(I18) -> 0 | J19: =((J16)+(J17))+(J18) -> 0 | K19: =((K16)+(K17))+(K18) -> 0 | L19: =((L16)+(L17))+(L18) -> 0 | M19: =((M16)+(M17))+(M18) -> 0 | N19: =((N16)+(N17))+(N18) -> 0 | O19: =((O16)+(O17))+(O18) -> 0 | P19: =SUM(P17:P18) -> 35.87
B20: 4170 | C20: After 5
B21: 4171 | C21: After 5 Sponsorship | F21: 900 | P21: =SUM(D21:O21) -> 900
B22: 4175 | C22: After 5 Expense | D22: -80.49 | F22: -1057 | P22: =SUM(D22:O22) -> -1137.49
B23: Total 4170 | C23: Total 4170 After 5 | D23: =((D20)+(D21))+(D22) -> -80.49 | E23: =((E20)+(E21))+(E22) -> 0 | F23: =((F20)+(F21))+(F22) -> -157 | G23: =((G20)+(G21))+(G22) -> 0 | H23: =((H20)+(H21))+(H22) -> 0 | I23: =((I20)+(I21))+(I22) -> 0 | J23: =((J20)+(J21))+(J22) -> 0 | K23: =((K20)+(K21))+(K22) -> 0 | L23: =((L20)+(L21))+(L22) -> 0 | M23: =((M20)+(M21))+(M22) -> 0 | N23: =((N20)+(N21))+(N22) -> 0 | O23: =((O20)+(O21))+(O22) -> 0 | P23: =SUM(P21:P22) -> -237.49
C24: Total 4100 EVENTS INCOME | D24: =D8+D9+D13+D17+D21 -> 5017 | E24: =E8+E9+E13+E17+E21 -> 2360 | F24: =F8+F9+F13+F17+F21 -> 12525 | G24: =G8+G9+G13+G17+G21 -> 0 | H24: =H8+H9+H13+H17+H21 -> 0 | I24: =I8+I9+I13+I17+I21 -> 0 | J24: =J8+J9+J13+J17+J21 -> 0 | K24: =K8+K9+K13+K17+K21 -> 0 | L24: =L8+L9+L13+L17+L21 -> 0 | M24: =M8+M9+M13+M17+M21 -> 0 | N24: =N8+N9+N13+N17+N21 -> 0 | O24: =O8+O9+O13+O17+O21 -> 0 | P24: =SUM(D24:O24) -> 19902
C25: Total 4100 EVENTS EXPENSES | D25: =D10+D14+D18+D22 -> -198.43 | E25: =E10+E14+E18+E22 -> -41.13 | F25: =F10+F14+F18+F22 -> -6399.32 | G25: =G10+G14+G18+G22 -> 0 | H25: =H10+H14+H18+H22 -> 0 | I25: =I10+I14+I18+I22 -> 0 | J25: =J10+J14+J18+J22 -> 0 | K25: =K10+K14+K18+K22 -> 0 | L25: =L10+L14+L18+L22 -> 0 | M25: =M10+M14+M18+M22 -> 0 | N25: =N10+N14+N18+N22 -> 0 | O25: =O10+O14+O18+O22 -> 0 | P25: =SUM(D25:O25) -> -6638.88
C26: Total 4100 EVENTS NET INCOME | D26: =D24+D25 -> 4818.57 | E26: =E24+E25 -> 2318.87 | F26: =F24+F25 -> 6125.68 | G26: =G24+G25 -> 0 | H26: =H24+H25 -> 0 | I26: =I24+I25 -> 0 | J26: =J24+J25 -> 0 | K26: =K24+K25 -> 0 | L26: =L24+L25 -> 0 | M26: =M24+M25 -> 0 | N26: =N24+N25 -> 0 | O26: =O24+O25 -> 0 | P26: =P24+P25 -> 13263.12
B27: NON DUES INCOME
B28: 4204 | C28: Corporate Sponsorship Income | D28: 3540 | E28: 1557.5 | F28: 1450 | P28: =SUM(D28:O28) -> 6547.5
B29: 4208 | C29: Advertising Sponsorships | E29: 150 | P29: =SUM(D29:O29) -> 150
B30: 4210 | C30: Directory Page Review Income | P30: =SUM(D30:O30) -> 0
B31: 4800 | C31: Donated "Rent" Income-New Space | D31: 776.46 | E31: 776.46 | F31: 776.46 | P31: =SUM(D31:O31) -> 2329.38
C32: Total 4200 NON DUES INCOME | D32: =((((D27)+(D28))+(D29))+(D30))+(D31) -> 4316.46 | E32: =((((E27)+(E28))+(E29))+(E30))+(E31) -> 2483.96 | F32: =((((F27)+(F28))+(F29))+(F30))+(F31) -> 2226.46 | G32: =((((G27)+(G28))+(G29))+(G30))+(G31) -> 0 | H32: =((((H27)+(H28))+(H29))+(H30))+(H31) -> 0 | I32: =((((I27)+(I28))+(I29))+(I30))+(I31) -> 0 | J32: =((((J27)+(J28))+(J29))+(J30))+(J31) -> 0 | K32: =((((K27)+(K28))+(K29))+(K30))+(K31) -> 0 | L32: =((((L27)+(L28))+(L29))+(L30))+(L31) -> 0 | M32: =((((M27)+(M28))+(M29))+(M30))+(M31) -> 0 | N32: =((((N27)+(N28))+(N29))+(N30))+(N31) -> 0 | O32: =((((O27)+(O28))+(O29))+(O30))+(O31) -> 0 | P32: =SUM(P28:P31) -> 9026.88
B33: ADVERTISING INCOME
B34: 4314 | C34: Digital Business Directory Income | F34: 100 | P34: =SUM(D34:O34) -> 100
C35: Total 4300 ADVERTISING INCOME | D35: =(D33)+(D34) -> 0 | E35: =(E33)+(E34) -> 0 | F35: =(F33)+(F34) -> 100 | G35: =(G33)+(G34) -> 0 | H35: =(H33)+(H34) -> 0 | I35: =(I33)+(I34) -> 0 | J35: =(J33)+(J34) -> 0 | K35: =(K33)+(K34) -> 0 | L35: =(L33)+(L34) -> 0 | M35: =(M33)+(M34) -> 0 | N35: =(N33)+(N34) -> 0 | O35: =(O33)+(O34) -> 0 | P35: =P34 -> 100
B36: MEMBERSHIP ACTIVITIES INCOME
B37: 4410 | C37: FYPG Events Income
B38: 4411 | C38: FYPG Events Sponsorship Income | F38: 150 | P38: =SUM(D38:O38) -> 150
B39: 4412 | C39: FYPG Events Attendee Income | D39: 300 | P39: =SUM(D39:O39) -> 300
B40: 4415 | C40: FYPG Events Expense | D40: -315.9 | F40: -45.45 | P40: =SUM(D40:O40) -> -361.35
C41: Total 4410 FYPG Events Income | D41: =(((D37)+(D38))+(D39))+(D40) -> -15.9 | E41: =(((E37)+(E38))+(E39))+(E40) -> 0 | F41: =(((F37)+(F38))+(F39))+(F40) -> 104.55 | G41: =(((G37)+(G38))+(G39))+(G40) -> 0 | H41: =(((H37)+(H38))+(H39))+(H40) -> 0 | I41: =(((I37)+(I38))+(I39))+(I40) -> 0 | J41: =(((J37)+(J38))+(J39))+(J40) -> 0 | K41: =(((K37)+(K38))+(K39))+(K40) -> 0 | L41: =(((L37)+(L38))+(L39))+(L40) -> 0 | M41: =(((M37)+(M38))+(M39))+(M40) -> 0 | N41: =(((N37)+(N38))+(N39))+(N40) -> 0 | O41: =(((O37)+(O38))+(O39))+(O40) -> 0 | P41: =SUM(P38:P40) -> 88.65
B42: 4420 | C42: WBC Events Income
B43: 4421 | C43: WBC Events Attendee Income | E43: 245 | F43: 1575 | P43: =SUM(D43:O43) -> 1820
B44: 4422 | C44: WBC Events Sponsorship Income | D44: 425 | E44: 5525 | F44: 2285 | P44: =SUM(D44:O44) -> 8235
B45: 4425 | C45: WBC Event Expense | F45: -428.68 | P45: =SUM(D45:O45) -> -428.68
C46: Total 4420 WBC Events Income | D46: =(((D42)+(D43))+(D44))+(D45) -> 425 | E46: =(((E42)+(E43))+(E44))+(E45) -> 5770 | F46: =(((F42)+(F43))+(F44))+(F45) -> 3431.32 | G46: =(((G42)+(G43))+(G44))+(G45) -> 0 | H46: =(((H42)+(H43))+(H44))+(H45) -> 0 | I46: =(((I42)+(I43))+(I44))+(I45) -> 0 | J46: =(((J42)+(J43))+(J44))+(J45) -> 0 | K46: =(((K42)+(K43))+(K44))+(K45) -> 0 | L46: =(((L42)+(L43))+(L44))+(L45) -> 0 | M46: =(((M42)+(M43))+(M44))+(M45) -> 0 | N46: =(((N42)+(N43))+(N44))+(N45) -> 0 | O46: =(((O42)+(O43))+(O44))+(O45) -> 0 | P46: =SUM(P43:P45) -> 9626.32
B47: 4430 | C47: Member Luncheon Income
B48: 4432 | C48: Member Luncheon Attendee Income | D48: 450 | E48: 380 | F48: 870 | P48: =SUM(D48:O48) -> 1700
B49: 4435 | C49: Members Luncheon Expense | F49: -1105.76 | P49: =SUM(D49:O49) -> -1105.76
C50: Total 4430 Member Luncheon Income | D50: =((D47)+(D48))+(D49) -> 450 | E50: =((E47)+(E48))+(E49) -> 380 | F50: =((F47)+(F48))+(F49) -> -235.76 | G50: =((G47)+(G48))+(G49) -> 0 | H50: =((H47)+(H48))+(H49) -> 0 | I50: =((I47)+(I48))+(I49) -> 0 | J50: =((J47)+(J48))+(J49) -> 0 | K50: =((K47)+(K48))+(K49) -> 0 | L50: =((L47)+(L48))+(L49) -> 0 | M50: =((M47)+(M48))+(M49) -> 0 | N50: =((N47)+(N48))+(N49) -> 0 | O50: =((O47)+(O48))+(O49) -> 0 | P50: =SUM(P48:P49) -> 594.24
C51: Total 44400 MEMBERSHIP ACTIVITY INCOME | D51: =D38+D39+D43+D44+D48 -> 1175 | E51: =E38+E39+E43+E44+E48 -> 6150 | F51: =F38+F39+F43+F44+F48 -> 4880 | G51: =G38+G39+G43+G44+G48 -> 0 | H51: =H38+H39+H43+H44+H48 -> 0 | I51: =I38+I39+I43+I44+I48 -> 0 | J51: =J38+J39+J43+J44+J48 -> 0 | K51: =K38+K39+K43+K44+K48 -> 0 | L51: =L38+L39+L43+L44+L48 -> 0 | M51: =M38+M39+M43+M44+M48 -> 0 | N51: =N38+N39+N43+N44+N48 -> 0 | O51: =O38+O39+O43+O44+O48 -> 0 | P51: =SUM(D51:O51) -> 12205
C52: Total 4400 MEMBERSHIP ACTIVITY EXPENSES | D52: =D40+D45+D49 -> -315.9 | E52: =E40+E45+E49 -> 0 | F52: =F40+F45+F49 -> -1579.89 | G52: =G40+G45+G49 -> 0 | H52: =H40+H45+H49 -> 0 | I52: =I40+I45+I49 -> 0 | J52: =J40+J45+J49 -> 0 | K52: =K40+K45+K49 -> 0 | L52: =L40+L45+L49 -> 0 | M52: =M40+M45+M49 -> 0 | N52: =N40+N45+N49 -> 0 | O52: =O40+O45+O49 -> 0 | P52: =SUM(D52:O52) -> -1895.79
C53: Total 4400 MEMBERSHIP ACTIVITIES NET INCOME | D53: =D51+D52 -> 859.1 | E53: =E51+E52 -> 6150 | F53: =F51+F52 -> 3300.11 | G53: =G51+G52 -> 0 | H53: =H51+H52 -> 0 | I53: =I51+I52 -> 0 | J53: =J51+J52 -> 0 | K53: =K51+K52 -> 0 | L53: =L51+L52 -> 0 | M53: =M51+M52 -> 0 | N53: =N51+N52 -> 0 | O53: =O51+O52 -> 0 | P53: =P51+P52 -> 10309.21
C54: TOTAL INCOME | D54: =D5+D26+D32+D35+D53 -> 16701.63 | E54: =E5+E26+E32+E35+E53 -> 17970.83 | F54: =F5+F26+F32+F35+F53 -> 19710.75 | G54: =((((G5)+(G26))+(G32))+(G35))+(G53) -> 0 | H54: =((((H5)+(H26))+(H32))+(H35))+(H53) -> 0 | I54: =((((I5)+(I26))+(I32))+(I35))+(I53) -> 0 | J54: =((((J5)+(J26))+(J32))+(J35))+(J53) -> 0 | K54: =((((K5)+(K26))+(K32))+(K35))+(K53) -> 0 | L54: =((((L5)+(L26))+(L32))+(L35))+(L53) -> 0 | M54: =((((M5)+(M26))+(M32))+(M35))+(M53) -> 0 | N54: =((((N5)+(N26))+(N32))+(N35))+(N53) -> 0 | O54: =((((O5)+(O26))+(O32))+(O35))+(O53) -> 0 | P54: =((((P5)+(P26))+(P32))+(P35))+(P53) -> 54383.21
C55: GROSS PROFIT | D55: =(D54)-(0) -> 16701.63 | E55: =(E54)-(0) -> 17970.83 | F55: =(F54)-(0) -> 19710.75 | G55: =(G54)-(0) -> 0 | H55: =(H54)-(0) -> 0 | I55: =(I54)-(0) -> 0 | J55: =(J54)-(0) -> 0 | K55: =(K54)-(0) -> 0 | L55: =(L54)-(0) -> 0 | M55: =(M54)-(0) -> 0 | N55: =(N54)-(0) -> 0 | O55: =(O54)-(0) -> 0 | P55: =(P54)-(0) -> 54383.21
B57: 5003 | C57: Bookkeeping Expense | D57: 1500 | E57: 1000 | F57: 1000 | P57: =SUM(D57:O57) -> 3500
B58: 5009 | C58: Contributions Expense | E58: 50 | P58: =SUM(D58:O58) -> 50
B59: 5011 | C59: Cr Card Processing & Bank Charges Expense | D59: 237.46 | E59: 143.99 | F59: 458.96 | P59: =SUM(D59:O59) -> 840.41
B60: 5015 | C60: Dues & Subscriptions Expense | D60: 242 | E60: 225 | F60: 425.99 | P60: =SUM(D60:O60) -> 892.99
B61: 5021 | C61: Interest Expense | D61: 93.39 | P61: =SUM(D61:O61) -> 93.39
B62: 5023 | C62: Meetings / Conventions Expense | E62: 207.73 | F62: 52.27 | P62: =SUM(D62:O62) -> 260
B63: 5025 | C63: Membership Expense | D63: 501.11 | E63: -436.96 | F63: 430.42 | P63: =SUM(D63:O63) -> 494.57
B64: 5031 | C64: Office Supplies Expense | D64: 118.34 | E64: 32.29 | F64: 103.9 | P64: =SUM(D64:O64) -> 254.53
B65: 5033 | C65: Payroll Processing Expense | D65: 111.5 | E65: 116 | F65: 145.01 | P65: =SUM(D65:O65) -> 372.51
B66: 5035 | C66: Payroll Tax Expense | D66: 760.19 | E66: 733.79 | F66: 738.3 | P66: =SUM(D66:O66) -> 2232.28
B67: 5048 | C67: Rent Expense - PATH Bldg | D67: 776.46 | E67: 776.46 | F67: 776.46 | P67: =SUM(D67:O67) -> 2329.38
B68: TECHNOLOGY EXPENSE
B69: 6054 | C69: Software Costs | D69: 697 | E69: 1015.05 | F69: 698.48 | P69: =SUM(D69:O69) -> 2410.53
B70: 6055 | C70: Utility Costs | D70: 307.54 | F70: 307.52 | P70: =SUM(D70:O70) -> 615.06
B71: 6056 | C71: Equipment Rental | D71: 607.37 | E71: 187.86 | F71: 233.81 | P71: =SUM(D71:O71) -> 1029.04
B72: 6057 | C72: IT Services | D72: 100 | F72: 300 | P72: =SUM(D72:O72) -> 400
B73: Total 5053 | C73: Total 5053 Technology Expense | D73: =((((D68)+(D69))+(D70))+(D71))+(D72) -> 1711.91 | E73: =((((E68)+(E69))+(E70))+(E71))+(E72) -> 1202.91 | F73: =((((F68)+(F69))+(F70))+(F71))+(F72) -> 1539.81 | P73: =SUM(P69:P72) -> 4454.63
B74: TELEPHONE EXPENSE
B75: 5055 | C75: Telephone Expense | D75: 108.36 | E75: 108.36 | F75: 108.36 | P75: =325.08 -> 325.08
C76: Total 5055 Telephone Expense | D76: 108.36 | E76: 108.36 | F76: 108.36 | P76: =SUM(P75) -> 325.08
B77: WAGES EXPENSE
B78: 5063 | C78: Wages_Admin | D78: 1240 | E78: 1740 | F78: 1840 | P78: =4820 -> 4820
B79: 5064 | C79: Wages_Exec Director | D79: 7666.66 | E79: 7666.66 | F79: 7666.66 | P79: =22999.98 -> 22999.98
C80: Total 5060 Wages Expense | D80: =((D78))+(D79) -> 8906.66 | E80: =((E78))+(E79) -> 9406.66 | F80: =((F78))+(F79) -> 9506.66 | P80: =SUM(P78:P79) -> 27819.98
B81: 5065 | C81: Website Development Expense | D81: 151.98 | E81: 151.98 | F81: 151.98 | P81: =455.94 -> 455.94
C82: TOTAL EXPENSES | D82: =D57+D58+D59+D60+D61+D62+D63+D64+D65+D66+D67+D73+D76+D80+D81 -> 15219.36 | E82: =((((((((((((((E57)+(E58))+(E59))+(E60))+(E61))+(E62))+(E63))+(E64))+(E65))+(E66))+(E67))+(E73))+(E75))+(E80))+(E81) -> 13718.21 | F82: =((((((((((((((F57)+(F58))+(F59))+(F60))+(F61))+(F62))+(F63))+(F64))+(F65))+(F66))+(F67))+(F73))+(F75))+(F80))+(F81) -> 15438.12 | P82: =((((((((((((((P57)+(P58))+(P59))+(P60))+(P61))+(P62))+(P63))+(P64))+(P65))+(P66))+(P67))+(P73))+(P75))+(P80))+(P81) -> 44375.69
C83: NET OPERATING INCOME | D83: =(D55)-(D82) -> 1482.27 | E83: =(E55)-(E82) -> 4252.62 | F83: =(F55)-(F82) -> 4272.63 | P83: =(P55)-(P82) -> 10007.52

Sheet Deposit Register
A1: Fauquier Chamber of Commerce | D1: Account | F1: Amount | G1: Deposit Date | H1: Deposit Amount
A2: Account Number: 113596806
A3: 1149 | D3: Fauquier Excellence In Education Foundation | F3: 165 | G3: 2022-03-16 | H3: =SUM(F3:F26) -> 8969.24
A4: 1092 | D4: Center for Holistic Psychotherapy | F4: 245 | G4: 2022-03-16
A5: 15090 | D5: Mark B. Williams | F5: 425 | G5: 2022-03-16
A6: 414801 | D6: County of Fauquier | F6: 270 | G6: 2022-03-16
A7: 2815918293 | D7: SCSM | F7: 165 | G7: 2022-03-16
A8: 6514 | D8: Northside 29 | F8: 245 | G8: 2022-03-16
A9: 98786038 | D9: Edward Jones | F9: 9.24 | G9: 2022-03-16
A10: 33555 | D10: Fauquier Springs Country Club | F10: 460 | G10: 2022-03-16
A11: 142033 | D11: Dominion Energy | F11: 3450 | G11: 2022-03-16
A12: 7327 | D12: Piedmont Fine Properties | F12: 425 | G12: 2022-03-16
A13: 1748 | D13: Constant Water LLC | F13: 245 | G13: 2022-03-16
A14: 1494 | D14: Fauquier NAACP | F14: 165 | G14: 2022-03-16
A15: 3487 | D15: Southstar Construction LLC | F15: 245 | G15: 2022-03-16
A16: 3846 | D16: Republican Committee of Fauquier County | F16: 165 | G16: 2022-03-16
A17: 771522 | D17: WU Business Solutions | F17: 245 | G17: 2022-03-16
A18: 5678 | D18: Community Touch Inc | F18: 165 | G18: 2022-03-16
A19: 8135 | D19: States News Service | F19: 300 | G19: 2022-03-16
A20: 3642 | D20: Anne C Hall | F20: 20 | G20: 2022-03-16
A21: 80863 | D21: Summit Community Bank | F21: 245 | G21: 2022-03-16
A22: 414183 | D22: County of Fauquier | F22: 100 | G22: 2022-03-16
A23: 9174 | D23: Special Olympics VA | F23: 165 | G23: 2022-03-16
A24: 20267 | D24: Piedmont Press and Graphics | F24: 460 | G24: 2022-03-16
A25: 40434 | D25: Allen Wayne LTD | F25: 345 | G25: 2022-03-16
A26: 669 | D26: KLNB | F26: 245 | G26: 2022-03-16
A27: Fauquier Chamber of Commerce | D27: Account | F27: Amount | G27: Deposit Date | H27: Deposit Amount
A28: Account Number: 113596806
A29: 1645 | D29: Serendipity Catering | F29: 245 | G29: 2022-04-06 | H29: =SUM(F29:F31) -> 419.1
A30: 1453 | D30: Experience Old Town Warrenton | F30: 165 | G30: 2022-04-06
A31: 98873972 | D31: Edward Jones | F31: 9.1 | G31: 2022-04-06
A32: Fauquier Chamber of Commerce | D32: Account | F32: Amount | G32: Deposit Date | H32: Deposit Amount
A33: Account Number: 113596806
A34: 956 | D34: Boulder Crest Retreat Foundation | F34: 165 | G34: 2022-04-21 | H34: =SUM(F34:F58) -> 8435
A35: 1121 | D35: Bowman Gaskins Financial Group | F35: 245 | G35: 2022-04-21
A36: 4342 | D36: Able Bodied Computers | F36: 100 | G36: 2022-04-21
A37: 1203 | D37: Fauquier County Democtratic | F37: 175 | G37: 2022-04-21
A38: 1371 | D38: People for Pets Fund | F38: 175 | G38: 2022-04-21
A39: 1029 | D39: Liberty Waste Services | F39: 245 | G39: 2022-04-21
A40: 4042241589 | D40: WYSC (Northern Piedmont Sports Club - NPSC) | F40: 165 | G40: 2022-04-21
A41: 1014 | D41: Genesis Restoration LLC | F41: 670 | G41: 2022-04-21
A42: 80053536 | D42: UVA Community Credit Union | F42: 425 | G42: 2022-04-21
A43: 39398 | D43: Golden Rule Builders, Inc. | F43: 445 | G43: 2022-04-21
A44: 3858 | D44: Republican Committee of Fauquier County | F44: 350 | G44: 2022-04-21
A45: 23152 | D45: Family Shelter Services | F45: 215 | G45: 2022-04-21
A46: 1729 | D46: Warrenton Pregnany Center | F46: 165 | G46: 2022-04-21
A47: 1315 | D47: Ashwell & Ashwell PLLC | F47: 425 | G47: 2022-04-21
A48: 99102 | D48: Century 21 | F48: 245 | G48: 2022-04-21
A49: 6376 | D49: Warrenton Auto Service, Inc | F49: 425 | G49: 2022-04-21
A50: 229845 | D50: Country Chevrolet | F50: 425 | G50: 2022-04-21
A51: 154449 | D51: CroppMetCalfe | F51: 460 | G51: 2022-04-21
A52: 13008 | D52: XS Telecom | F52: 345 | G52: 2022-04-21
A53: 4619 | D53: The Fauquier Times | F53: 460 | G53: 2022-04-21
A54: 4620 | D54: The Fauquier Times | F54: 425 | G54: 2022-04-21
A55: 7634 | D55: The Fauquier Community Food Bank & Thrift Store | F55: 165 | G55: 2022-04-21
A56: 1461 | D56: John W. Adams III, CPA, PC | F56: 750 | G56: 2022-04-21
A57: 2357 | D57: Mountain View Marketing | F57: 425 | G57: 2022-04-21
A58: 6364 | D58: Barrel Oak Winery | F58: 345 | G58: 2022-04-21
D59: Account | E59: Reference | F59: Amount | G59: Deposit Date | H59: Deposit Amount
A60: Account Number: 113596806
A61: 39014 | D61: Gulick, Carson, & Thorpe, P.C. | E61: Womens Business Council Partnership | F61: 425 | G61: 2022-05-06 | H61: =SUM(F61:F67) -> 2008.81
A62: 2487 | D62: Alls Real Estate | E62: Womens Business Council Partnership | F62: 425 | G62: 2022-05-06
A63: 98954597 | D63: Edward Jones | F63: 8.81 | G63: 2022-05-06
A64: 21233 | D64: Oak View | E64: Womens Business Council Partnership | F64: 425 | G64: 2022-05-06
A65: 1735 | D65: Locust Hill Farm LLC | E65: 2021 Anniversary Gala | F65: 200 | G65: 2022-05-06
A66: 1564 | D66: Tuesday Leadshare | E66: New Member Luncheon Sponsorship | F66: 100 | G66: 2022-05-06
A67: 1563 | D67: Tuesday Leadshare | E67: Womens Business Council Partnership | F67: 425 | G67: 2022-05-06
A68: Fauquier Chamber of Commerce | D68: Account | F68: Amount | G68: Deposit Date | H68: Deposit Amount
A69: Account Number: 113596806
A70: 1737 | D70: The Robinson Law Firm LLC (Robinson & Stover, LLC) | E70: $345 dues / $50 admin fee / $100 enhanced web listing | F70: 495 | G70: 2022-05-24 | H70: =SUM(F70:F90) -> 6750
A71: 7830 | D71: Ledo Pizza | E71: dues | F71: 245 | G71: 2022-05-24
A72: 2065 | D72: Spirit Works Foundation | E72: dues | F72: 165 | G72: 2022-05-24
A73: 417801 | D73: Fauquier County Department of Fire, Rescue & Emer. | E73: dues | F73: 165 | G73: 2022-05-24
A74: 1568 | D74: Dawn Arruda | E74: dues | F74: 245 | G74: 2022-05-24
A75: 2763803 | D75: Fauquier Hospital (Fauquier Health System) | E75: Womens Business Council Partnership | F75: 425 | G75: 2022-05-24
A76: 89227 | D76: Glory Days Inc | E76: annual dues | F76: 1145 | G76: 2022-05-24
A77: 1227 | D77: N D Greene PC | E77: Membership Dues | F77: 245 | G77: 2022-05-24
A78: 156 | D78: Kona Ice of Culpeper County | E78: Fall Festival | F78: 25 | G78: 2022-05-24
A79: 19686211 | D79: Farm Credit of the Virginia's | E79: Annual dues | F79: 200 | G79: 2022-05-24
A80: 2777 | D80: Boys and Girls Club | E80: Fauquier Times April 20, 2022 Print Edition | F80: 200 | G80: 2022-05-24
A81: 418151 | D81: Fauquier County Public Library | E81: Annual dues | F81: 165 | G81: 2022-05-24
A82: 38652 | D82: Fresta Valley Christian School | E82: Fall Festival | F82: 175 | G82: 2022-05-24
A83: 45086 | D83: Costello's Ace Hardware | E83: Annual dues | F83: 510 | G83: 2022-05-24
A84: 2126 | D84: Aging Together | E84: Annual dues | F84: 165 | G84: 2022-05-24
A85: 13065 | D85: Frazier Consultants Inc. | E85: Annual dues | F85: 245 | G85: 2022-05-24
A86: 1003473568 | D86: Kimberly Miller Allstate | E86: new membership dues | F86: 295 | G86: 2022-05-24
A87: 208913 | D87: Smith-Midland | E87: annual dues | F87: 1125 | G87: 2022-05-24
A88: 6230 | D88: Don M. Robertson | E88: annual dues | F88: 245 | G88: 2022-05-24
A89: 2376 | D89: Mountain View Marketing | E89: Fee for WBC - Cyber Security Event on 5/18 | F89: 25 | G89: 2022-05-24
A90: 14279 | D90: Montgomery Shade & Awning | E90: Annual dues | F90: 245 | G90: 2022-05-24
A91: Fauquier Chamber of Commerce | D91: Account | F91: Amount | G91: Deposit Date | H91: Deposit Amount
A92: Account Number: 113596806
A93: 15181 | D93: Mark B. Williams | E93: WBC - Cyber Security event fee | F93: 50 | G93: 2022-05-26 | H93: =SUM(F95:F116) -> 7613.68
A94: 3648018 | D94: Junkluggers of Gainesville | E94: Fauquier Times Print edition | F94: 200 | G94: 2022-05-26
A95: 1018 | D95: Franny's Farmacy | E95: Fauquier Times Print edition | F95: 200 | G95: 2022-06-28
A96: 20020713 | D96: Branch Civil Inc | E96: Annual dues | F96: 245 | G96: 2022-06-28
A97: 1156 | D97: WKCW Radio Companion | E97: Annual dues | F97: 245 | G97: 2022-06-28
A98: 15829 | D98: Dave the Mover, LLC | E98: Annual dues | F98: 245 | G98: 2022-06-28
A99: 16194 | D99: Front Porch Market & Grill | E99: Annual dues | F99: 245 | G99: 2022-06-28
A100: 1598 | D100: VolTran Volunteer | E100: Annual dues | F100: 165 | G100: 2022-06-28
A101: 6415 | D101: Raymond F. Utz | E101: Fall Festival | F101: 175 | G101: 2022-06-28
A102: 5371 | D102: Marshall Veterinary Clinic | E102: Annual dues | F102: 345 | G102: 2022-06-28
A103: 2839821 | D103: Fauquier Health | E103: Partnership | F103: 4750 | G103: 2022-06-28
A104: 976630 | D104: Field and Main | E104: Annual dues | F104: 245 | G104: 2022-06-28
A105: 26808 | D105: Horse Country | E105: Annual dues | F105: 245 | G105: 2022-06-28
A106: 2126 | D106: Moo Thru Mobile Warrenton | E106: Fall Festival | F106: 100 | G106: 2022-06-28
A107: 1097 | D107: Lifted Up, LLC | E107: Fall Festival | F107: 175 | G107: 2022-06-28
A108: 1908 | D108: Tanit Kitijarurat (T.K. Grill) | E108: Fall Festival | F108: 25 | G108: 2022-06-28
A109: 13781733 | D109: Carmen Rivera State Farm | E109: Fall Festival | F109: 25 | G109: 2022-06-28
A110: 1168 | D110: Chocolate Infusion LLC | E110: Fall Festival | F110: 25 | G110: 2022-06-28
A111: 150 | D111: DBA Designs by Kent (Kent L Harper) | E111: Fall Festival | F111: 75 | G111: 2022-06-28
A112: 99023251 | D112: Edward Jones | E112: Interest | F112: 8.68 | G112: 2022-06-28
A113: 60408417 | D113: Nationwide Insurance | E113: Refund to credit balance | F113: 5 | G113: 2022-06-28
A114: Cash | D114: Stephan King - Liberty Mutual Insurance (2 each @ $10) | E114: YP Cornhole Tournament fee | F114: 20 | G114: 2022-06-28
A115: Cash | D115: Liz Johnson - Moutain View Marketing | E115: WBC - Cyber Security event fee | F115: 25 | G115: 2022-06-28
A116: 383 | D116: Barshell Designs (Barb Murray) | E116: Fall Festival | F116: 25 | G116: 2022-06-28
A117: Fauquier Chamber of Commerce | D117: Account | F117: Amount | G117: Deposit Date | H117: Deposit Amount
A118: Account Number: 113596806
A119: 99114994 | D119: Edward Jones | E119: Credit Card Interest | F119: 8.36 | G119: 2022-07-25 | H119: =SUM(F119:F140) -> 13855.36
A120: 3667 | D120: Rappahannock Media | E120: Fall Festival | F120: 25 | G120: 2022-07-25
A121: Cash | D121: Ashley O'Meara | E121: YP Cornhole Tournament fee | F121: 27 | G121: 2022-07-25
A122: 3592 | D122: MooThru | E122: YP Cornhole Tournament fee | F122: 245 | G122: 2022-07-25
A123: 2729 | D123: Promise Landscape | E123: Annual dues | F123: 245 | G123: 2022-07-25
A124: 5868 | D124: AES | E124: Investing Partnership Dues | F124: 4750 | G124: 2022-07-25
A125: 2038 | D125: Karen Jennings, Independent Affiliate of DVTD | E125: Annual Dues | F125: 75 | G125: 2022-07-25
A126: 21481 | D126: Oak View | E126: Partnership | F126: 4750 | G126: 2022-07-25
A127: 421388 | D127: Fauquier County Economic Development | E127: Annual dues | F127: 245 | G127: 2022-07-25
A128: 2468 | D128: T&M Contracting and Construction Services | E128: Annual dues | F128: 295 | G128: 2022-07-25
A129: 14341 | D129: Fauquier Free Clinic | E129: Annual dues | F129: 165 | G129: 2022-07-25
A130: 465 | D130: Jeffrey A. Harris | E130: Annual dues | F130: 345 | G130: 2022-07-25
A131: 5076 | D131: Wollam Gardens, LLC | E131: Annual dues | F131: 245 | G131: 2022-07-25
A132: 5227 | D132: Kalis Holdings LLC | E132: Annual dues | F132: 245 | G132: 2022-07-25
A133: 2008 | D133: C&P Offroad Specialists | E133: Annual dues | F133: 345 | G133: 2022-07-25
A134: 3836 | D134: Vint Hill Village | E134: Annual dues | F134: 245 | G134: 2022-07-25
A135: 4169 | D135: Sherri's Crabcakes | E135: Reserved space fee / Fall Festival | F135: 25 | G135: 2022-07-25
A136: 2668 | D136: Cornerstone Baptist Church | E136: Annual dues | F136: 165 | G136: 2022-07-25
A137: 880166 | D137: Palmers Contracting Group | E137: Annual dues | F137: 460 | G137: 2022-07-25
A138: 208962 | D138: Easi-Set Worldwide (Smith-Midland) | E138: Annual dues | F138: 245 | G138: 2022-07-25
A139: 7695 | D139: Aubinoe Management | E139: Annual dues | F139: 245 | G139: 2022-07-25
A140: 14891 | D140: Griffin Tavern | E140: Annual dues | F140: 460 | G140: 2022-07-25
A141: Invoice # | D141: Account | F141: Amount | G141: Deposit Date | H141: Deposit Amount
D142: Edward Jones | E142: Credit Card Interest | F142: 8.13 | G142: 2022-07-29 | H142: =SUM(F142:F150) -> 2803.13
A143: 16271 | D143: Ethnos College | E143: Annual dues | F143: 215 | G143: 2022-07-29
A144: 16526 | D144: Allen Real Estate Co LTD | E144: Annual dues | F144: 245 | G144: 2022-07-29
A145: 16226 | D145: Dominion Construction Group | E145: Annual dues | F145: 345 | G145: 2022-07-29
A146: 16225 | D146: Stonewall Golf Club | E146: Annual Dues - April | F146: 605 | G146: 2022-07-29
A147: 16533 | D147: Groves Hardware | E147: Annual Dues - August | F147: 345 | G147: 2022-07-29
A148: 15370 | E148: 2021 Directory Ad | F148: 400 | G148: 2022-07-29
A149: 156541 | D149: Elite Air | E149: Annual Dues | F149: 245 | G149: 2022-07-29
A150: 16565 | D150: Bank of Clarke County | E150: New Member Fees and Dues | F150: 395 | G150: 2022-07-29
A151: Invoice # | D151: Account | F151: Amount | G151: Deposit Date | H151: Deposit Amount
A152: 16037 | D152: State Farm Insurance - R. Glenn Albert | E152: Annual dues - December 2021 | F152: 245 | G152: 2022-08-22 | H152: =SUM(F152:F169) -> 5415
A153: 16531 | D153: Mark B. Williams | E153: Annual dues - July | F153: 345 | G153: 2022-08-22
D154: Sons of Confederate Veterans - Richard | E154: Fall Festival | F154: 175 | G154: 2022-08-22
A155: 16574 | D155: Walker Jones, PC | E155: Annual dues | F155: 460 | G155: 2022-08-22
D156: Haymarket Physical Therapy, LLC - Samantha | E156: Fall Festival | F156: 200 | G156: 2022-08-22
D157: Anne C Hall | E157: Accidental check sent - Credit towards her account | F157: 245 | G157: 2022-08-22
A158: 16575 | D158: Barrel Oak Winery | E158: Annual dues - August 2022 | F158: 345 | G158: 2022-08-22
D159: Lifted Up, LLC | E159: Fall Festival | F159: 25 | G159: 2022-08-22
A160: 16591 | D160: Stars & Strikes Bowling Center | E160: Annual dues - August 2022 | F160: 460 | G160: 2022-08-22
A161: 16584 | D161: Shannon Moore and Associates | E161: Annual dues - August 2022 | F161: 245 | G161: 2022-08-22
A162: 16493 | D162: Poets Walk | E162: Annua dues - June 2022 | F162: 245 | G162: 2022-08-22
D163: Toni Lou Sauder | E163: Fall Festival | F163: 175 | G163: 2022-08-22
A164: 16552 | D164: The Town Duck | E164: Annual dues - July 2022 | F164: 245 | G164: 2022-08-22
A165: 16605 | D165: Kalis Holdings LLC | E165: e-blast sponsorship - company logo on weekly eblasts | F165: 300 | G165: 2022-08-22
A166: 16573 | D166: Brenda L. Payne | E166: Annual dues - August 2022 | F166: 245 | G166: 2022-08-22
A167: 16581 | D167: Meridian Financial Partners LLC | E167: Annual dues - August 2022 | F167: 245 | G167: 2022-08-22
A168: 16577 | D168: Rescue Roofing & Home Services | E168: Annual dues - August 2022 | F168: 245 | G168: 2022-08-22
A169: 15824 & 16557 | D169: Planet Fitness | E169: Annual dues - September 2021 & July 2022 | F169: 970 | G169: 2022-08-22
A170: Invoice # | D170: Account | F170: Amount | G170: Deposit Date | H170: Deposit Amount
D171: TBD Enterprises Inc | E171: New membership dues | F171: 295 | G171: 2022-09-07 | H171: =SUM(F171:F177) -> 4056.46
A172: 16576 | D172: Warrenton Village Center | E172: Annual dues - August 2022 | F172: 245 | G172: 2022-09-07
A173: 15940 | D173: PBMares, LLP | E173: Annual dues - November 2021 | F173: 460 | G173: 2022-09-07
A174: 16580 | D174: Northstar Group, LLC | E174: Annual dues - August 2022 | F174: 245 | G174: 2022-09-07
D175: Edward Jones | E175: Credit Card Interest | F175: 7.86 | G175: 2022-09-07
A176: 16613 | D176: Lindas Gala Inc | E176: New Member application | F176: 295 | G176: 2022-09-07
D177: Commonwealth of Virginia | E177: VA Employment Comission refund | F177: 2508.6 | G177: 2022-09-07
A178: Invoice # | D178: Account | F178: Amount | G178: Deposit Date | H178: Deposit Amount
A179: 16539 | D179: Genesis Home Improvement, LLC | E179: Annual dues - August 2022 | F179: 245 | G179: 2022-09-22 | H179: =SUM(F179:F194) -> 5790
D180: Pawz Paradise Doggie Daycare | E180: Fall Festival | F180: 200 | G180: 2022-09-22
A181: 16698 | D181: VFW Post 9835 (Veterans of Foreign Wars) | E181: Fall Festival | F181: 125 | G181: 2022-09-22
A182: 16664 | D182: Blaser Physical Therapy | E182: Annual dues - September 2022 | F182: 345 | G182: 2022-09-22
A183: 16653 | D183: Paws Awhile Pet Motel | E183: Annual dues - September 2022 | F183: 315 | G183: 2022-09-22
A184: 16663 | D184: Chemetrics, Inc. | E184: Annual dues - September 2022 | F184: 895 | G184: 2022-09-22
A185: 16656 | D185: Oak View National Bank | E185: Annual dues | F185: 605 | G185: 2022-09-22
A186: 16650 | D186: Early's Carpet, Inc. | E186: Annual dues | F186: 345 | G186: 2022-09-22
A187: 16586 | D187: Miss Commonwealth Scholarship Organization | E187: Annual dues - August 2022 | F187: 165 | G187: 2022-09-22
A188: 16625 | D188: Culligan Water | E188: Annual dues - August 2022 | F188: 345 | G188: 2022-09-22
A189: 16693 | D189: Bank of Clarke County | E189: YP Event Sponsorship October 2022 | F189: 1500 | G189: 2022-09-22
A190: 16652 | D190: County of Fauquier | E190: Annual Dues | F190: 165 | G190: 2022-09-22
A191: 16669 | D191: Warrenton Center Cleaners | E191: Annual Dues | F191: 245 | G191: 2022-09-22
A192: 16658 | D192: Mountain View Marketing | E192: Annual Dues | F192: 245 | G192: 2022-09-22
D193: Mountain View Marketing | E193: WBC Event | F193: 25 | G193: 2022-09-22
D194: Piedmont Fine Properties | E194: WBC Evetnt | F194: 25 | G194: 2022-09-22
A195: Invoice # | D195: Account | F195: Amount | G195: Deposit Date | H195: Deposit Amount
D196: Edward Jones | E196: Credit Card Interest | F196: 7.7 | G196: 2022-10-05 | H196: =SUM(F196:F205) -> 1747.7
A197: 16667 | D197: Greenhill Media LLC | E197: Annual dues - September 2022 | F197: 245 | G197: 2022-10-05
A198: 16671 | D198: Morais Vineyards and Winery Inc | E198: Annual dues - September 2022 | F198: 345 | G198: 2022-10-05
A199: 16670 | D199: Middleburg Humane Foundation | E199: Annual dues - September 2022 | F199: 165 | G199: 2022-10-05
A200: 16649 | D200: Cres, Inc. | E200: Annual dues - September 2022 | F200: 245 | G200: 2022-10-05
... 563 more rows

Sheet Approved 2024 Budget
C2: JANUARY | D2: FEBRUARY | E2: MARCH | F2: APRIL | G2: MAY | H2: JUNE | I2: JULY | J2: AUGUST | K2: SEPTEMBER | L2: OCTOBER | M2: NOVEMBER | N2: DECEMBER | O2: TOTAL
C3: 2024 | D3: 2024 | E3: 2024 | F3: 2024 | G3: 2024 | H3: 2024 | I3: 2024 | J3: 2024 | K3: 2024 | L3: 2024 | M3: 2024 | N3: 2024 | O3: 2024
B4: NET NEW MEMBERS | C4: 20 | D4: 20 | E4: 30 | F4: 25 | G4: 20 | H4: 10 | I4: 20 | J4: 10 | K4: 15 | L4: 15 | M4: 10 | N4: 10 | O4: =C4+D4+E4+F4+G4+H4+I4+J4+K4+L4+M4+N4 -> 205
A5: 4011 | B5: Admin Fees Income | C5: =C4*50 -> 1000 | D5: 1000 | E5: 1500 | F5: 1250 | G5: 1000 | H5: 500 | I5: 1000 | J5: 500 | K5: 750 | L5: 750 | M5: 500 | N5: 500 | O5: =C5+D5+E5+F5+G5+H5+I5+J5+K5+L5+M5+N5 -> 10250
A6: 4012 | B6: Renewal Member Dues Income | C6: 34983 | D6: 9839 | E6: 6264 | F6: 7458 | G6: 8384 | H6: 3426 | I6: 5516 | J6: 7535 | K6: 3440 | L6: 7210 | M6: 2695 | N6: 2750 | O6: =C6+D6+E6+F6+G6+H6+I6+J6+K6+L6+M6+N6 -> 99500
A7: 4013 | B7: New Member Dues Income | C7: =C4*302.5 -> 6050 | D7: 6050 | E7: 9075 | F7: 7562.5 | G7: 6050 | H7: 3025 | I7: 6050 | J7: 3025 | K7: 4537.5 | L7: 4537.5 | M7: 3025 | N7: 3025 | O7: =C7+D7+E7+F7+G7+H7+I7+J7+K7+L7+M7+N7 -> 62012.5
B8: 18% Commision | C8: =(C5+C7)*-0.18 -> -1269 | D8: -1269 | E8: -1903.5 | F8: -1586.25 | G8: -1269 | H8: -634.5 | I8: -1269 | J8: -634.5 | K8: -951.75 | L8: -951.75 | M8: -634.5 | N8: -634.5 | O8: =C8+D8+E8+F8+G8+H8+I8+J8+K8+L8+M8+N8 -> -13007.25
A9: TOTAL DUES INCOME | B9: Total 4010 MEMBERSHIP INCOME | C9: =SUM(C5:C8) -> 40764 | D9: 15620 | E9: 14935.5 | F9: 14684.25 | G9: 14165 | H9: 6316.5 | I9: 11297 | J9: 10425.5 | K9: 7775.75 | L9: 11545.75 | M9: =(M5+M6+M7)-M8 -> 6854.5 | N9: =(N5+N6+N7)-N8 -> 6909.5 | O9: =SUM(O5:O8) -> 158755.25
A10: 4111 | B10: Valor Awards Sponsorship Income | D10: 2500 | E10: 4500 | F10: 5000 | O10: =C10+D10+E10+F10+G10+H10+I10+J10+K10+L10+M10+N10 -> 12000
A11: 4112 | B11: Valor Awards Attendee Income | F11: 1750 | O11: =C11+D11+E11+F11+G11+H11+I11+J11+K11+L11+M11+N11 -> 1750
A12: 4115 | B12: Valor Awards Expense | F12: -10000 | O12: =C12+D12+E12+F12+G12+H12+I12+J12+K12+L12+M12+N12 -> -10000
B13: Total 4110 Valor Awards Income | C13: =SUM(C10:C12) -> 0 | D13: 2500 | E13: 4500 | F13: -3250 | G13: 0 | H13: 0 | I13: 0 | J13: 0 | K13: 0 | L13: 0 | M13: 0 | N13: 0 | O13: 3750
A14: 4121 | B14: Festival Sponsorship Income | J14: 2000 | K14: 2000 | O14: =C14+D14+E14+F14+G14+H14+I14+J14+K14+L14+M14++N14 -> 4000
A15: 4123 | B15: Festival Booth Fees Income | G15: 4800 | H15: 4800 | I15: 4800 | O15: =C15+D15+E15+F15+G15+H15+I15+J15+K15+L15+M15++N15 -> 14400
A16: 4125 | B16: Festival Expense | C16: -103.98 | K16: -1500 | L16: -1500 | O16: =C16+D16+E16+F16+G16+H16+I16+J16+K16+L16+M16++N16 -> -3103.98
B17: Total 4120 Festival Income | C17: =SUM(C14:C16) -> -103.98 | D17: 0 | E17: 0 | F17: 0 | G17: 4800 | H17: 4800 | I17: 4800 | J17: 2000 | K17: 500 | L17: -1500 | M17: 0 | N17: 0 | O17: 15296.02
A18: 4132 | B18: Legislative Events Attendee Income | C18: 100 | D18: 100 | E18: 100 | F18: 100 | G18: 100 | H18: 100 | I18: 100 | J18: 100 | K18: 100 | L18: 100 | M18: 100 | N18: 100 | O18: =C18+D18+E18+F18+G18+H18+I18+J18+K18+L18+M18+N18 -> 1200
A19: 4135 | B19: Legislative Events Expense | C19: -100 | D19: -100 | E19: -100 | F19: -100 | G19: -100 | H19: -100 | I19: -100 | J19: -100 | K19: -100 | L19: -100 | M19: -100 | N19: -100 | O19: =C19+D19+E19+F19+G19+H19+I19+J19+K19+L19+M19+N19 -> -1200
A20: 4137 | B20: Economic Summit Attendee Income | O20: =C20+D20+E20+F20+G20+H20+I20+J20+K20+L20+M20+N20 -> 0
B21: Total 4130 Legislative Events Income | C21: =SUM(C18:C20) -> 0 | D21: 0 | E21: 0 | F21: 0 | G21: 0 | H21: 0 | I21: 0 | J21: 0 | K21: 0 | L21: 0 | M21: 0 | N21: 0 | O21: 0
A22: 4145 | B22: BPOY Expense | M22: -20000 | O22: =C22+D22+E22+F22+G22+H22+I22+J22+K22+L22+M22+N22 -> -20000
A23: 4141 | B23: BPOY Sponsorship Income | M23: 5000 | O23: =C23+D23+E23+F23+G23+H23+I23+J23+K23+L23+M23+N23 -> 5000
A24: 4142 | B24: BPOY Attendee Income | M24: 1600 | O24: =C24+D24+E24+F24+G24+H24+I24+J24+K24+L24+M24+N24 -> 1600
A25: 4145 | B25: BPOY Income | O25: 5000
B26: Total 4140 BPOY Income | C26: 0 | E26: =SUM(E22:E25) -> 0 | F26: 0 | G26: 0 | H26: 0 | I26: 0 | J26: 0 | K26: 0 | L26: 0 | M26: -13400 | N26: 0 | O26: -8400
A27: 4161 | B27: Member Orientation Sponsorship | C27: 150 | D27: 150 | E27: 150 | F27: 150 | G27: 150 | H27: 150 | I27: 150 | J27: 150 | K27: 150 | L27: 150 | O27: =C27+D27+E27+F27+G27+H27+I27+J27+K27+L27+M27+N27 -> 1500
A28: 4165 | B28: Member Orientation Expenses | C28: 0 | D28: 0 | E28: 0 | F28: 0 | G28: 0 | H28: 0 | I28: 0 | J28: 0 | K28: 0 | L28: 0 | O28: =C28+D28+E28+F28+G28+H28+I28+J28+K28+L28+M28+N28 -> 0
B29: Total 4160 Member Orientation | C29: =SUM(C27:C28) -> 150 | D29: 150 | E29: 150 | F29: 150 | G29: 150 | H29: 150 | I29: 150 | J29: 150 | K29: 150 | L29: 150 | M29: 0 | N29: 0 | O29: 1500
A30: 4171 | B30: After 5 Sponsorship | C30: 200 | D30: 200 | E30: 200 | F30: 200 | G30: 200 | H30: 200 | I30: 200 | J30: 200 | K30: 200 | L30: 200 | M30: 200 | N30: 200 | O30: =C30+D30+E30+F30+G30+H30+I30+J30+K30+L30+M30+N30 -> 2400
A31: 4175 | B31: After 5 Expense | C31: -50 | D31: -50 | E31: -50 | F31: -50 | G31: -50 | H31: -50 | I31: -50 | J31: -50 | K31: -50 | L31: -50 | M31: -50 | N31: -50 | O31: =C31+D31+E31+F31+G31+H31+I31+J31+K31+L31+M31+N31 -> -600
B32: Total 4170 After 5 | C32: =SUM(C30:C31) -> 150 | D32: 150 | E32: 150 | F32: 150 | G32: 150 | H32: 150 | I32: 150 | J32: 150 | K32: 150 | L32: 150 | M32: 150 | N32: 150 | O32: 1800
A33: 4185 | B33: Before 9 Expenses | D33: 0 | O33: 0
B34: Total 4180 Before 9 | D34: =SUM(D33) -> 0 | E34: 0 | F34: 0 | G34: 0 | H34: 0 | I34: 0 | J34: 0 | K34: 0 | L34: 0 | M34: 0 | N34: 0 | O34: =O33 -> 0
A35: TOTAL EVENTS INCOME | C35: =C13+C17+C21+C26+C29+C32+C34 -> 196.02 | D35: 2800 | E35: 4800 | F35: -2950 | G35: 5100 | H35: 5100 | I35: 5100 | J35: 2300 | K35: 800 | L35: -1200 | M35: -13250 | N35: 150 | O35: 13946.02
A36: 4204 | B36: Corporate Sponsorship Income | C36: 5154.16 | D36: 5154.16 | E36: 5154.16 | F36: 5154.16 | G36: 5154.16 | H36: 5154.16 | I36: 5154.16 | J36: 0 | K36: 5154.16 | L36: 5154.16 | M36: 5154.16 | N36: 5154.16 | O36: =C36+D36+E36+F36+G36+H36+I36+J36+K36+L36+M36+N36 -> 56695.76
A37: 4208 | B37: Advertising Sponsorships | C37: 400 | D37: 400 | E37: 400 | F37: 400 | G37: 400 | H37: 400 | I37: 400 | J37: 400 | K37: 400 | L37: 400 | M37: 400 | N37: 400 | O37: =C37+D37+E37+F37+G37+H37+I37+J37+K37+L37+M37+N37 -> 4800
A38: 4800 | B38: Donated "Rent" Income-New Space | C38: 776.46 | D38: 776.46 | E38: 776.46 | F38: 776.46 | G38: 776.46 | H38: 776.46 | I38: 776.46 | J38: 776.46 | K38: 776.46 | L38: 776.46 | M38: 776.46 | N38: 776.46 | O38: =C38+D38+E38+F38+G38+H38+I38+J38+K38+L38+M38+N38 -> 9317.52
B39: Total 4200 NON DUES INCOME | C39: =SUM(C36:C38) -> 6330.62 | D39: 6330.62 | E39: 6330.62 | F39: 6330.62 | G39: 6330.62 | H39: 6330.62 | I39: 6330.62 | J39: 1176.46 | K39: 6330.62 | L39: 6330.62 | M39: 6330.62 | N39: 6330.62 | O39: 70813.28
B40: Directory Page Review/Revision Income | C40: 100 | D40: 200 | E40: 200 | F40: 200 | G40: 200 | H40: 200 | I40: 200 | J40: 200 | K40: 200 | L40: 200 | M40: 200 | N40: 200 | O40: =C40+D40+E40+F40+G40+H40+I40+J40+K40+L40+M40+N40 -> 2300
B41: Directory Page Review/Revision Expense | C41: -25 | D41: -50 | E41: -50 | F41: -50 | G41: -50 | H41: -50 | I41: -50 | J41: -50 | K41: -50 | L41: -50 | M41: -50 | N41: -50 | O41: =C41+D41+E41+F41+G41+H41+I41+J41+K41+L41+M41+N41 -> -575
B42: Total Directory Page Review/Revision | C42: =SUM(C40:C41) -> 75 | D42: 150 | E42: 150 | F42: 150 | G42: 150 | H42: 150 | I42: 150 | J42: 150 | K42: 150 | L42: 150 | M42: 150 | N42: 150 | O42: 1725
A43: 4310 | B43: Digital Business Directory Income | C43: 0 | D43: 250 | E43: 500 | F43: 500 | G43: 500 | H43: 500 | I43: 500 | J43: 500 | K43: 500 | L43: 500 | M43: 500 | N43: 500 | O43: =C43+D43+E43+F43+G43+H43+I43+J43+K43+L43+M43+N43 -> 5250
A44: 4311 | B44: Digital Business Directory Expense | C44: 0 | D44: -25 | E44: -50 | F44: -50 | G44: -50 | H44: -50 | I44: -50 | J44: -50 | K44: -50 | L44: -50 | M44: -50 | N44: -50 | O44: =C44+D44+E44+F44+G44+H44+I44+J44+K44+L44+M44+N44 -> -525
C45: =SUM(C43:C44) -> 0 | D45: =SUM(D43:D44) -> 225 | E45: =SUM(E43:E44) -> 450 | F45: =SUM(F43:F44) -> 450
B46: Directoy Listing Income | C46: 0 | D46: 500 | E46: 500 | F46: 700 | G46: 700 | H46: 700 | I46: 700 | J46: 700 | K46: 700 | L46: 700 | M46: 700 | N46: 700 | O46: =C46+D46+E46+F46+G46+H46+I46+J46+K46+L46+M46+N46 -> 7300
B47: Directory Listing Expense | C47: -750 | D47: 0 | E47: 0 | F47: 0 | G47: 0 | H47: 0 | I47: 0 | J47: 0 | K47: 0 | L47: 0 | M47: 0 | N47: 0 | O47: =C47+D47+E47+F47+G47+H47+I47+J47+K47+L47+M47+N47 -> -750
B48: Total 4300 Digital Directory Income | C48: =SUM(C46:C47) -> -750 | D48: 500 | E48: 500 | F48: 700 | G48: 700 | H48: 700 | I48: 700 | J48: 700 | K48: 700 | L48: 700 | M48: 700 | N48: 700 | O48: =SUM(O43:O44) -> 4725
A49: 4410 | B49: FYPG Events Income | C49: 0 | D49: 0 | E49: 0 | F49: 0 | G49: 0 | H49: 0 | I49: 0 | J49: 0 | K49: 0 | L49: 0 | M49: 0 | N49: 0 | O49: =C49+D49+E49+F49+G49+H49+I49+J49+K49+L49+M49+N49 -> 0
A50: 4415 | B50: FYPG Events Expense | C50: 0 | D50: 0 | E50: 0 | F50: 0 | G50: 0 | H50: 0 | I50: 0 | J50: 0 | K50: 0 | L50: 0 | M50: 0 | N50: 0 | O50: =C50+D50+E50+F50+G50+H50+I50+J50+K50+L50+M50+N50 -> 0
B51: Total 4410 FYPG Events Income | C51: =SUM(C49:C50) -> 0 | D51: 0 | E51: 0 | F51: 0 | G51: 0 | H51: 0 | I51: 0 | J51: 0 | K51: 0 | L51: 0 | M51: 0 | N51: 0 | O51: 0
A52: 4421 | B52: WBC Events Attendee Income | C52: 0 | D52: 0 | E52: 1750 | F52: 0 | G52: 0 | H52: 1750 | I52: 0 | J52: 0 | K52: 1750 | L52: 0 | M52: 1750 | N52: 0 | O52: =C52+D52+E52+F52+G52+H52+I52+J52+K52+L52+M52+N52 -> 7000
A53: 4422 | B53: WBC Events Sponsorship Income | C53: 4500 | D53: 4500 | E53: 4500 | F53: 0 | G53: 0 | H53: 0 | I53: 0 | J53: 0 | K53: 0 | L53: 0 | M53: 0 | N53: 0 | O53: =C53+D53+E53+F53+G53+H53+I53+J53+K53+L53+M53+N53 -> 13500
A54: 4425 | B54: WBC Event Expense | C54: 0 | D54: 0 | E54: -2650 | F54: 0 | G54: 0 | H54: -2650 | I54: 0 | J54: 0 | K54: -2650 | L54: 0 | M54: -2650 | N54: 0 | O54: =C54+D54+E54+F54+G54+H54+I54+J54+K54+L54+M54+N54 -> -10600
B55: Total 4420 WBC Events Income | C55: =SUM(C52:C54) -> 4500 | D55: 4500 | E55: 3600 | F55: 0 | G55: 0 | H55: -900 | I55: 0 | J55: 0 | K55: -900 | L55: 0 | M55: -900 | N55: 0 | O55: 9900
A56: 4432 | B56: Member Luncheon Attendee Income | C56: 0 | D56: 0 | E56: 250 | F56: 0 | G56: 0 | H56: 250 | I56: 0 | J56: 0 | K56: 250 | L56: 0 | M56: 0 | N56: 250 | O56: =C56+D56+E56+F56+G56+H56+I56+J56+K56+L56+M56+N56 -> 1000
A57: 4435 | B57: Members Luncheon Expense | C57: 0 | D57: 0 | E57: 0 | F57: 0 | G57: 0 | H57: -50 | I57: 0 | J57: 0 | K57: -50 | L57: 0 | M57: 0 | N57: -50 | O57: =C57+D57+E57+F57+G57+H57+I57+J57+K57+L57+M57+N57 -> -150
B58: Total 4430 Member Luncheon Income | C58: =SUM(C56:C57) -> 0 | D58: 0 | E58: 250 | F58: 0 | G58: 0 | H58: 200 | I58: 0 | J58: 0 | K58: 200 | L58: 0 | M58: 0 | N58: 200 | O58: 850
B59: TOTAL MEMBERSHIP ACTIVITIES INCOME | C59: =C39+C42+C48+C51+C55+C58 -> 10155.62 | D59: 11480.62 | E59: 10830.62 | F59: 7180.62 | G59: 7180.62 | H59: 6480.62 | I59: 7180.62 | J59: 2026.46 | K59: 6480.62 | L59: 7180.62 | M59: 6280.62 | N59: 7380.62 | O59: 88013.28
B60: TOTAL INCOME | C60: =C9+C35+C59 -> 51115.64 | D60: 29900.62 | E60: 30566.12 | F60: 18914.87 | G60: 26445.62 | H60: 17897.12 | I60: 23577.62 | J60: 14751.96 | K60: 15056.37 | L60: 17526.37 | M60: -114.88 | N60: 14440.12 | O60: =N60+M60+L60+K60+J60+I60+H60+G60+F60+E60+D60+C60 -> 260077.55
A61: 5001 | B61: Advertising Expense | C61: 350 | D61: 350 | E61: 350 | F61: 350 | G61: 350 | H61: 350 | I61: 350 | J61: 350 | K61: 350 | L61: 350 | M61: 350 | N61: 350 | O61: =C61+D61+E61+F61+G61+H61+I61+J61+K61+L61+M61+N61 -> 4200
A62: 5003 | B62: Bookeeping Expense | C62: 1200 | D62: 1200 | E62: 1200 | F62: 1200 | G62: 1200 | H62: 1200 | I62: 1200 | J62: 1200 | K62: 1200 | L62: 1200 | M62: 1200 | N62: 1200 | O62: 14400
A63: 5007 | B63: Contract Labor Expense | C63: 0 | D63: 0 | E63: 0 | F63: 0 | G63: 0 | H63: 0 | I63: 0 | J63: 0 | L63: 0 | M63: 0 | N63: 0 | O63: 0
A64: 5009 | B64: Contributions Expense | C64: 0 | D64: 0 | E64: 0 | F64: 0 | G64: 0 | H64: 0 | I64: 0 | J64: 0 | L64: 0 | M64: 0 | N64: 0 | O64: 0
A65: 5011 | B65: Cr Card Processing & Bank Charges Expense | C65: =C60*0.017 -> 868.96588 | D65: 508.31054 | E65: 519.62404 | F65: 321.55279 | G65: 449.57554 | H65: 304.25104 | I65: 400.81954 | J65: 250.78332 | K65: 255.95829 | L65: 297.94829 | M65: -1.95296 | N65: 245.48204 | O65: 4421.31835
A66: 5015 | B66: Dues & Subscriptions Expense | C66: 250 | D66: 250 | E66: 250 | F66: 250 | G66: 250 | H66: 250 | I66: 250 | J66: 250 | K66: 250 | L66: 250 | M66: 250 | N66: 250 | O66: 3000
B67: TOTAL | C67: =SUM(C61:C66) -> 2668.96588 | D67: 2308.31054 | E67: 2319.62404 | F67: 2121.55279 | G67: 2249.57554 | H67: 2104.25104 | I67: 2200.81954 | J67: 2050.78332 | K67: 2055.95829 | L67: 2097.94829 | M67: 1798.04704 | N67: 2045.48204 | O67: 26021.31835
A68: 5018 | B68: Insurance Expense | C68: 0 | D68: 0 | E68: 0 | F68: 0 | G68: 0 | H68: 0 | I68: 0 | J68: 0 | K68: 0 | L68: 0 | M68: 0 | N68: 0 | O68: =C68+D68+E68+F68+G68+H68+I68+J68+K68+L68+M68+N68 -> 0
A69: 5019 | B69: General Insurance Expense | C69: 0 | D69: 0 | E69: 0 | F69: 1000 | G69: 1000 | H69: 0 | I69: 0 | J69: 0 | K69: 0 | L69: 0 | M69: 0 | N69: 0 | O69: =C69+D69+E69+F69+G69+H69+I69+J69+K69+L69+M69+N69 -> 2000
A70: 5018 | B70: TOTAL INSURANCE EXPENSE | C70: =C69 -> 0 | D70: 0 | E70: 0 | F70: 1000 | G70: 1000 | H70: 0 | I70: 0 | J70: 0 | K70: 0 | L70: 0 | M70: 0 | N70: 0 | O70: =SUM(O68:O69) -> 2000
A71: 5023 | B71: Meeting/Conventions Expense | C71: 50 | D71: 50 | E71: 50 | F71: 50 | G71: 50 | H71: 50 | I71: 50 | J71: 50 | K71: 50 | L71: 50 | M71: 50 | N71: 50 | O71: =C71+D71+E71+F71+G71+H71+I71+J71+K71+L71+M71+N71 -> 600
A72: 5025 | B72: Membership Expense | C72: 175 | D72: 175 | E72: 175 | F72: 175 | G72: 175 | H72: 175 | I72: 175 | J72: 175 | K72: 175 | L72: 175 | M72: 175 | N72: 175 | O72: =C72+D72+E72+F72+G72+H72+I72+J72+K72+L72+M72+N72 -> 2100
A73: 5030 | B73: Meals & Entertainment | C73: 0 | D73: 0 | E73: 0 | F73: 0 | H73: 0 | I73: 0 | J73: 0 | K73: 0 | L73: 0 | M73: 0 | N73: 0 | O73: =C73+D73+E73+F73+G73+H73+I73+J73+K73+L73+M73+N73 -> 0
A74: 5032 | B74: Meals - 50% | C74: 0 | D74: 0 | E74: 0 | F74: 0 | G74: 0 | H74: 0 | I74: 0 | J74: 0 | K74: 0 | L74: 0 | M74: 0 | N74: 0 | O74: =C74+D74+E74+F74+G74+H74+I74+J74+K74+L74+M74+N74 -> 0
A75: 5030 | B75: TOTAL MEALS & ENTERTAINMENT EXPENSE | C75: =SUM(C71:C74) -> 225 | D75: 225 | E75: 225 | F75: 225 | G75: 225 | H75: 225 | I75: 225 | J75: 225 | K75: 225 | L75: 225 | M75: 225 | N75: 225 | O75: 2700
A76: 5031 | B76: Office Supplies Expense | C76: 167.4 | D76: 2266.18 | E76: 117.19 | F76: 430.8 | G76: 245.92 | H76: 31.57 | I76: 196.9 | K76: 0 | L76: 79.47 | M76: 0 | N76: 0 | O76: =C76+D76+E76+F76+G76+H76+I76+J76+K76+L76+M76+N76 -> 3535.43
A77: 5033 | B77: Payroll Processing Expense | C77: 102 | D77: 100.25 | E77: 102 | F77: 102 | G77: 102 | H77: 195.25 | I77: 100.25 | J77: 7 | K77: 102 | L77: 107 | M77: 100 | N77: 100 | O77: 1219.75
A78: 5035 | B78: Payroll Tax Expense | C78: =C96*7.7% -> 947.09923 | D78: 947.09923 | E78: 947.09923 | F78: 947.09923 | G78: 947.09923 | H78: 947.09923 | I78: 947.09923 | J78: 947.09923 | K78: 947.09923 | L78: 947.09923 | M78: 947.09923 | N78: 947.09923 | O78: 11365.19076
A79: 5039 | B79: Postage & Delivery Expense | C79: 0 | D79: 202 | E79: 36.67 | F79: 63 | G79: 201 | H79: 0 | I79: 0 | J79: 0 | K79: 200 | L79: 200 | M79: 200 | N79: 200 | O79: 1302.67
A80: 5048 | B80: Rent Expense - PATH | C80: 776.46 | D80: 776.46 | E80: 776.46 | F80: 776.46 | G80: 776.46 | H80: 776.46 | I80: 776.46 | J80: 776.46 | K80: 776.46 | L80: 776.46 | M80: 776.46 | N80: 776.46 | O80: 9317.52
A81: 5049 | B81: Repairs & Maintenance Expense | C81: 0 | D81: 0 | E81: 0 | F81: 433.65 | G81: 0 | H81: 0 | I81: 0 | J81: 0 | K81: 0 | L81: 0 | M81: 0 | N81: 0 | O81: 433.65
A82: 5051 | B82: Simple IRA Company Contribution Expense | C82: 230 | D82: 230 | E82: 230 | F82: 230 | G82: 230 | H82: 115 | I82: 115 | J82: 230 | K82: 230 | L82: 230 | M82: 230 | N82: 230 | O82: 2530
B83: TOTAL EXPENSE | C83: =SUM(C76:C82) -> 2222.95923 | D83: 4521.98923 | E83: 2209.41923 | F83: 2983.00923 | G83: 2502.47923 | H83: 2065.37923 | I83: 2135.70923 | J83: 1960.55923 | K83: 2255.55923 | L83: 2340.02923 | M83: 2253.55923 | N83: 2253.55923 | O83: 29704.21076
A84: 5053 | B84: Technology Expense | C84: 0 | D84: 0 | E84: 0 | F84: 0 | G84: 0 | H84: 0 | I84: 0 | J84: 0 | K84: 0 | L84: 0 | M84: 0 | N84: 0 | O84: =C84+D84+E84+F84+G84+H84+I84+J84+K84+L84+M84+N84 -> 0
A85: 6054 | B85: Software Costs | C85: 1000 | D85: 1000 | E85: 1000 | F85: 1000 | G85: 1000 | H85: 1000 | I85: 1000 | J85: 1000 | K85: 1000 | L85: 1000 | M85: 1000 | N85: 1000 | O85: =C85+D85+E85+F85+G85+H85+I85+J85+K85+L85+M85+N85 -> 12000
A86: 6055 | B86: Utility Costs | C86: 250 | D86: 250 | E86: 250 | F86: 250 | G86: 250 | H86: 250 | I86: 250 | J86: 250 | K86: 250 | L86: 250 | M86: 250 | N86: 250 | O86: =C86+D86+E86+F86+G86+H86+I86+J86+K86+L86+M86+N86 -> 3000
A87: 6056 | B87: Equipment Rental | C87: 300 | D87: 300 | E87: 300 | F87: 300 | G87: 300 | H87: 300 | I87: 300 | J87: 300 | K87: 300 | L87: 300 | M87: 300 | N87: 300 | O87: =C87+D87+E87+F87+G87+H87+I87+J87+K87+L87+M87+N87 -> 3600
A88: 6057 | B88: IT Services | C88: 100 | D88: 100 | E88: 100 | F88: 100 | G88: 100 | H88: 100 | I88: 100 | J88: 100 | K88: 100 | L88: 100 | M88: 100 | N88: 100 | O88: =C88+D88+E88+F88+G88+H88+I88+J88+K88+L88+M88+N88 -> 1200
A89: 5053 | B89: TOTAL TECHNOLOGY EXPENSE | C89: =SUM(C84:C88) -> 1650 | D89: 1650 | E89: 1650 | F89: 1650 | G89: 1650 | H89: 1650 | I89: 1650 | J89: 1650 | K89: 1650 | L89: 1650 | M89: 1650 | N89: 1650 | O89: 19800
A90: 5055 | B90: Telephone Expense | C90: 75 | D90: 75 | E90: 75 | F90: 75 | G90: 75 | H90: 75 | I90: 75 | J90: 75 | K90: 75 | L90: 75 | M90: 75 | N90: 75 | O90: =C90+D90+E90+F90+G90+H90+I90+J90+K90+L90+M90+N90 -> 900
B91: TOTAL TELEPHONE EXPENSE | C91: =C90 -> 75 | D91: 75 | E91: 75 | F91: 75 | G91: 75 | H91: 75 | I91: 75 | J91: 75 | K91: 75 | L91: 75 | M91: =SUM(M90) -> 75 | N91: =SUM(N90) -> 75 | O91: =SUM(O90) -> 900
A92: 5060 | B92: Wages Expense | C92: 0 | D92: 0 | E92: 0 | F92: 0 | G92: 0 | H92: 0 | I92: 0 | J92: 0 | K92: 0 | L92: 0 | M92: 0 | N92: 0 | O92: =C92+D92+E92+F92+G92+H92+I92+J92+K92+L92+M92+N92 -> 0
A93: 5063 | B93: Wages_Admin | C93: 1300 | D93: 1300 | E93: 1300 | F93: 1300 | G93: 1300 | H93: 1300 | I93: 1300 | J93: 1300 | K93: 1300 | L93: 1300 | M93: 1300 | N93: 1300 | O93: =C93+D93+E93+F93+G93+H93+I93+J93+K93+L93+M93+N93 -> 15600
B94: Wages_Event Manager | C94: 3333.33 | D94: 3333.33 | E94: 3333.33 | F94: 3333.33 | G94: 3333.33 | H94: 3333.33 | I94: 3333.33 | J94: 3333.33 | K94: 3333.33 | L94: 3333.33 | M94: 3333.33 | N94: 3333.33 | O94: =C94+D94+E94+F94+G94+H94+I94+J94+K94+L94+M94+N94 -> 39999.96
A95: 5064 | B95: Wages_Exec Director | C95: 7666.66 | D95: 7666.66 | E95: 7666.66 | F95: 7666.66 | G95: 7666.66 | H95: 7666.66 | I95: 7666.66 | J95: 7666.66 | K95: 7666.66 | L95: 7666.66 | M95: 7666.66 | N95: 7666.66 | O95: =C95+D95+E95+F95+G95+H95+I95+J95+K95+L95+M95+N95 -> 91999.92
A96: 5060 | B96: TOTAL WAGES EXPENSE | C96: =SUM(C92:C95) -> 12299.99 | D96: 12299.99 | E96: 12299.99 | F96: 12299.99 | G96: 12299.99 | H96: 12299.99 | I96: 12299.99 | J96: 12299.99 | K96: 12299.99 | L96: 12299.99 | M96: 12299.99 | N96: 12299.99 | O96: 147599.88
A97: 5065 | B97: Website Development Expense | C97: 150 | D97: 150 | E97: 150 | F97: 150 | G97: 150 | H97: 150 | I97: 150 | J97: 150 | K97: 150 | L97: 150 | M97: 150 | N97: 150 | O97: =C97+D97+E97+F97+G97+H97+I97+J97+K97+L97+M97+N97 -> 1800
B98: Unapplied Cash Bill Payment Expense - 1 | C98: 0 | D98: 0 | E98: 0 | F98: 0 | G98: 0 | H98: 0 | I98: 0 | J98: 0 | K98: 0 | L98: 0 | M98: 0 | N98: 0 | O98: =C98+D98+E98+F98+G98+H98+I98+J98+K98+L98+M98+N98 -> 0
C99: =SUM(C97:C98) -> 150 | D99: 150 | E99: 150 | F99: 150 | G99: 150 | H99: 150 | I99: 150 | J99: 150 | K99: 150 | L99: 150 | M99: 150 | N99: 150 | O99: 1800
B101: TOTAL INCOME | C101: =C60 -> 51115.64 | D101: 29900.62 | E101: 30566.12 | F101: 18914.87 | G101: 26445.62 | H101: 17897.12 | I101: 23577.62 | J101: 14751.96 | K101: 15056.37 | L101: 17526.37 | M101: -114.88 | N101: 14440.12 | O101: 260077.55
B102: TOTAL EXPENSES | C102: =C67+C70+C75+C83+C89+C91+C96+C99 -> 19291.91511 | D102: 21230.28977 | E102: 18929.03327 | F102: 20504.55202 | G102: 20152.04477 | H102: 18569.62027 | I102: 18736.51877 | J102: 18411.33255 | K102: 18711.50752 | L102: 18837.96752 | M102: 18451.59627 | N102: 18699.03127 | O102: 230525.4091
B103: NET OPERATING INCOME | C103: =C101-C102 -> 31823.72489 | D103: 8670.33023 | E103: 11637.08673 | F103: -1589.68202 | G103: 6293.57523 | H103: -672.50027 | I103: 4841.10123 | J103: -3659.37255 | K103: -3655.13752 | L103: -1311.59752 | M103: -18566.47627 | N103: -4258.91127 | O103: 29552.14089

Sheet 23 V 24 Budget
C2: JANUARY | F2: FEBRUARY | I2: MARCH | L2: APRIL | O2: MAY | R2: JUNE | U2: JULY | X2: AUGUST | AA2: SEPTEMBER | AD2: OCTOBER | AG2: NOVEMBER | AJ2: DECEMBER | AN2: TOTAL
C3: 2023 | D3: 2024 | E3: PERCENTAGE GAIN/LOSS | F3: 2023 | G3: 2024 | H3: PERCENTAGE GAIN/LOSS | I3: 2023 | J3: 2024 | K3: PERCENTAGE GAIN/LOSS | L3: 2023 | M3: 2024 | N3: PERCENTAGE GAIN/LOSS | O3: 2023 | P3: 2024 | Q3: PERCENTAGE GAIN/LOSS | R3: 2023 | S3: 2024 | T3: PERCENTAGE GAIN/LOSS | U3: 2023 | V3: 2024 | W3: PERCENTAGE GAIN/LOSS | X3: 2023 | Y3: 2024 | Z3: PERCENTAGE GAIN/LOSS | AA3: 2023 | AB3: 2024 | AC3: PERCENTAGE GAIN/LOSS | AD3: 2023 | AE3: 2024 | AF3: PERCENTAGE GAIN/LOSS | AG3: 2023 | AH3: 2024 | AI3: PERCENTAGE GAIN/LOSS | AJ3: 2023 | AK3: 2024 | AL3: PERCENTAGE GAIN/LOSS | AN3: 2023 | AO3: 2024 | AP3: $$$ GAIN/LOSS | AQ3: PERCENTAGE GAIN/LOSS
B4: NET NEW MEMBERS | C4: 3 | D4: 20 | E4: =((D4-C4)/C4) -> 5.666666667 | F4: 3 | G4: 20 | H4: =((G4-F4)/F4) -> 5.666666667 | I4: 15 | J4: 30 | K4: =((J4-I4)/I4) -> 1 | L4: 8 | M4: 25 | N4: =((M4-L4)/L4) -> 2.125 | O4: 7 | P4: 20 | Q4: =((P4-O4)/O4) -> 1.857142857 | R4: -5 | S4: 10 | T4: =((S4-R4)/R4) -> -3 | U4: 10 | V4: 20 | W4: =((V4-U4)/U4) -> 1 | X4: 4 | Y4: 10 | Z4: =((Y4-X4)/X4) -> 1.5 | AA4: 2 | AB4: 15 | AC4: =((AB4-AA4)/AA4) -> 6.5 | AD4: 3 | AE4: 15 | AF4: =((AE4-AD4)/AD4) -> 4 | AH4: 10 | AI4: =((AH4-AG4)/AG4) ->  | AK4: 10 | AL4: =((AK4-AJ4)/AJ4) ->  | AN4: =C4+F4+I4+L4+O4+R4+U4+X4+AA4+AD4 -> 50 | AO4: 185 | AQ4: =((AO4-AN4)/AN4) -> 2.7
A5: 4011 | B5: Admin Fees Income | C5: 250 | D5: =D4*50 -> 1000 | E5: =((D5-C5)/C5) -> 3 | F5: 250 | G5: =G4*50 -> 1000 | H5: =((G5-F5)/F5) -> 3 | I5: 250 | J5: =J4*50 -> 1500 | K5: =((J5-I5)/I5) -> 5 | L5: 500 | M5: =M4*50 -> 1250 | N5: =((M5-L5)/L5) -> 1.5 | O5: 300 | P5: =P4*50 -> 1000 | Q5: =((P5-O5)/O5) -> 2.333333333 | R5: 50 | S5: =S4*50 -> 500 | T5: =((S5-R5)/R5) -> 9 | U5: 100 | V5: =V4*50 -> 1000 | W5: =((V5-U5)/U5) -> 9 | X5: 450 | Y5: =Y4*50 -> 500 | Z5: =((Y5-X5)/X5) -> 0.1111111111 | AA5: 100 | AB5: =AB4*50 -> 750 | AC5: =((AB5-AA5)/AA5) -> 6.5 | AD5: 150 | AE5: =AE4*50 -> 750 | AF5: =((AE5-AD5)/AD5) -> 4 | AG5: 200 | AH5: =AH4*50 -> 500 | AI5: =((AH5-AG5)/AG5) -> 1.5 | AJ5: 200 | AK5: =AK4*50 -> 500 | AL5: =((AK5-AJ5)/AJ5) -> 1.5 | AN5: 2400 | AO5: 9250 | AP5: =AO5-AN5 -> 6850 | AQ5: =((AO5-AN5)/AN5) -> 2.854166667
A6: 4012 | B6: Renewal Member Dues Income | C6: 3180 | D6: =C6*1.1 -> 3498 | E6: =((D6-C6)/C6) -> 0.1 | F6: 8945 | G6: =F6*1.1 -> 9839.5 | H6: =((G6-F6)/F6) -> 0.1 | I6: 5695 | J6: =I6*1.1 -> 6264.5 | K6: =((J6-I6)/I6) -> 0.1 | L6: 6780 | M6: =L6*1.1 -> 7458 | N6: =((M6-L6)/L6) -> 0.1 | O6: 7622.5 | P6: =O6*1.1 -> 8384.75 | Q6: =((P6-O6)/O6) -> 0.1 | R6: 3115 | S6: =R6*1.1 -> 3426.5 | T6: =((S6-R6)/R6) -> 0.1 | U6: 5015 | V6: =U6*1.1 -> 5516.5 | W6: =((V6-U6)/U6) -> 0.1 | X6: 6850 | Y6: =X6*1.1 -> 7535 | Z6: =((Y6-X6)/X6) -> 0.1 | AA6: 3127.5 | AB6: =AA6*1.1 -> 3440.25 | AC6: =((AB6-AA6)/AA6) -> 0.1 | AD6: 6555 | AE6: =AD6*1.1 -> 7210.5 | AF6: =((AE6-AD6)/AD6) -> 0.1 | AG6: 2450 | AH6: =AG6*1.1 -> 2695 | AI6: =((AH6-AG6)/AG6) -> 0.1 | AJ6: 2500 | AK6: =AJ6*1.1 -> 2750 | AL6: =((AK6-AJ6)/AJ6) -> 0.1 | AN6: 56885 | AO6: 62573.5 | AP6: 5688.5 | AQ6: =((AO6-AN6)/AN6) -> 0.1
A7: 4013 | B7: New Member Dues Income | C7: 1180 | D7: =D4*302.5 -> 6050 | E7: =((D7-C7)/C7) -> 4.127118644 | F7: 1315 | G7: =G4*302.5 -> 6050 | H7: =((G7-F7)/F7) -> 3.600760456 | I7: 1345 | J7: =J4*302.5 -> 9075 | K7: =((J7-I7)/I7) -> 5.747211896 | L7: 3160 | M7: =M4*302.5 -> 7562.5 | N7: =((M7-L7)/L7) -> 1.393196203 | O7: 1570 | P7: =P4*302.5 -> 6050 | Q7: =((P7-O7)/O7) -> 2.853503185 | R7: 245 | S7: =S4*302.5 -> 3025 | T7: =((S7-R7)/R7) -> 11.34693878 | U7: 490 | V7: =V4*302.5 -> 6050 | W7: =((V7-U7)/U7) -> 11.34693878 | X7: 2215 | Y7: =Y4*302.5 -> 3025 | Z7: =((Y7-X7)/X7) -> 0.3656884876 | AA7: 410 | AB7: =AB4*302.5 -> 4537.5 | AC7: =((AB7-AA7)/AA7) -> 10.06707317 | AD7: 835 | AE7: =AE4*302.5 -> 4537.5 | AF7: =((AE7-AD7)/AD7) -> 4.434131737 | AG7: 1215 | AH7: =AH4*302.5 -> 3025 | AI7: =((AH7-AG7)/AG7) -> 1.489711934 | AJ7: 1200 | AK7: =AK4*302.5 -> 3025 | AL7: =((AK7-AJ7)/AJ7) -> 1.520833333 | AN7: 12765 | AO7: 55962.5 | AP7: 43197.5 | AQ7: =((AO7-AN7)/AN7) -> 3.384057971
B8: 18% Commision | D8: =(D5+D7)*-0.18 -> -1269 | G8: =(G5+G7)*-0.18 -> -1269 | J8: =(J5+J7)*-0.18 -> -1903.5 | M8: =(M5+M7)*-0.18 -> -1586.25 | P8: =(P5+P7)*-0.18 -> -1269 | S8: =(S5+S7)*-0.18 -> -634.5 | V8: =(V5+V7)*-0.18 -> -1269 | Y8: =(Y5+Y7)*-0.18 -> -634.5 | AB8: =(AB5+AB7)*-0.18 -> -951.75 | AE8: =(AE5+AE7)*-0.18 -> -951.75 | AH8: =(AH5+AH7)*-0.18 -> -634.5 | AK8: =(AK5+AK7)*-0.18 -> -634.5 | AO8: =(AO5+AO7)*-0.18 -> -11738.25 | AP8: -11738.25
A9: TOTAL DUES INCOME | B9: Total 4010 MEMBERSHIP INCOME | C9: =C5+C6+C7 -> 4610 | D9: =SUM(D5:D8) -> 9279 | F9: =F5+F6+F7 -> 10510 | G9: =SUM(G5:G8) -> 15620.5 | I9: =I5+I6+I7 -> 7290 | J9: =SUM(J5:J8) -> 14936 | L9: =L5+L6+L7 -> 10440 | M9: =SUM(M5:M8) -> 14684.25 | O9: =O5+O6+O7 -> 9492.5 | P9: =SUM(P5:P8) -> 14165.75 | R9: =R5+R6+R7 -> 3410 | S9: =SUM(S5:S8) -> 6317 | U9: =U5+U6+U7 -> 5605 | V9: =SUM(V5:V8) -> 11297.5 | X9: =X5+X6+X7 -> 9515 | Y9: =SUM(Y5:Y8) -> 10425.5 | AA9: =AA5+AA6+AA7 -> 3637.5 | AB9: =SUM(AB5:AB8) -> 7776 | AD9: =AD5+AD6+AD7 -> 7540 | AE9: =SUM(AE5:AE8) -> 11546.25 | AG9: =AG5+AG6+AG7 -> 3865 | AH9: =(AH5+AH6+AH7)-AH8 -> 6854.5 | AI9: =((AH9-AG9)/AG9) -> 0.7734799483 | AJ9: =AJ5+AJ6+AJ7 -> 3900 | AK9: =(AK5+AK6+AK7)-AK8 -> 6909.5 | AL9: =((AK9-AJ9)/AJ9) -> 0.7716666667 | AN9: =SUM(AN5:AN8) -> 72050 | AO9: =SUM(AO5:AO8) -> 116047.75 | AP9: 43997.75 | AQ9: =((AO9-AN9)/AN9) -> 0.6106557946
A10: 4111 | B10: Valor Awards Sponsorship Income | F10: 1550 | G10: 2500 | H10: =((G10-F10)/F10) -> 0.6129032258 | I10: 3725 | J10: 4500 | K10: =((J10-I10)/I10) -> 0.2080536913 | L10: 5066.07 | M10: 5000 | N10: =((M10-L10)/L10) -> -0.01304166741 | AN10: =C10+F10+I10+L10+O10+R10+U10+X10+AA10+AD10+AG10+AJ10 -> 10341.07 | AO10: 12000 | AP10: 1658.93
A11: 4112 | B11: Valor Awards Attendee Income | I11: 250 | K11: =((J11-I11)/I11) -> -1 | L11: 1500 | M11: 1750 | N11: =((M11-L11)/L11) -> 0.1666666667 | AN11: 1750 | AO11: 1750 | AP11: 0
A12: 4115 | B12: Valor Awards Expense | L12: -10914.58 | M12: -10000 | N12: =((M12-L12)/L12) -> -0.08379433748 | O12: -21.06 | AN12: -10935.64 | AO12: -10000 | AP12: 935.64
B13: Total 4110 Valor Awards Income | C13: =SUM(C10:C12) -> 0 | D13: =SUM(D10:D12) -> 0 | E13: =((D13-C13)/C13) ->  | F13: =SUM(F10:F12) -> 1550 | G13: =SUM(G10:G12) -> 2500 | H13: =((G13-F13)/F13) -> 0.6129032258 | I13: =SUM(I10:I12) -> 3975 | J13: =SUM(J10:J12) -> 4500 | K13: =((J13-I13)/I13) -> 0.1320754717 | L13: =SUM(L10:L12) -> -4348.51 | M13: =SUM(M10:M12) -> -3250 | N13: =((M13-L13)/L13) -> -0.2526175633 | O13: =SUM(O10:O12) -> -21.06 | P13: =SUM(P10:P12) -> 0 | Q13: =((P13-O13)/O13) -> -1 | R13: =SUM(R10:R12) -> 0 | S13: =SUM(S10:S12) -> 0 | T13: =((S13-R13)/R13) ->  | U13: =SUM(U10:U12) -> 0 | V13: =SUM(V10:V12) -> 0 | W13: =((V13-U13)/U13) ->  | X13: =SUM(X10:X12) -> 0 | Y13: =SUM(Y10:Y12) -> 0 | Z13: =((Y13-X13)/X13) ->  | AA13: =SUM(AA10:AA12) -> 0 | AB13: =SUM(AB10:AB12) -> 0 | AC13: =((AB13-AA13)/AA13) ->  | AD13: =SUM(AD10:AD12) -> 0 | AE13: =SUM(AE10:AE12) -> 0 | AF13: =((AE13-AD13)/AD13) ->  | AG13: =SUM(AG10:AG12) -> 0 | AH13: =SUM(AH10:AH12) -> 0 | AI13: =((AH13-AG13)/AG13) ->  | AJ13: =SUM(AJ10:AJ12) -> 0 | AK13: =SUM(AK10:AK12) -> 0 | AL13: =((AK13-AJ13)/AJ13) ->  | AN13: =SUM(AN10:AN12) -> 1155.43 | AO13: =SUM(AO10:AO12) -> 3750 | AP13: 2594.57 | AQ13: =((AO13-AN13)/AN13) -> 2.245544949
A14: 4121 | B14: Festival Sponsorship Income | X14: 1750 | Y14: 2000 | AB14: 2000 | AN14: =C14+F14+I14+L14+O14+R14+U14+X14+AA14+AD14+AG14++AJ14 -> 1750 | AO14: 4000 | AP14: 2250
A15: 4123 | B15: Festival Booth Fees Income | O15: 9600 | P15: 4800 | R15: 5237.5 | S15: 4800 | U15: 4550 | V15: 4800 | X15: 525 | AA15: 1187.5 | AD15: -7516.67 | AN15: 13583.33 | AO15: 14400 | AP15: 816.67
A16: 4125 | B16: Festival Expense | C16: -103.98 | D16: -103.98 | O16: -30 | U16: -50 | X16: -37.5 | AA16: -474.28 | AB16: -1500 | AD16: -1588.45 | AE16: -1500 | AN16: -2284.21 | AO16: -3103.98 | AP16: -819.77
B17: Total 4120 Festival Income | C17: =SUM(C14:C16) -> -103.98 | D17: =SUM(D14:D16) -> -103.98 | E17: =((D17-C17)/C17) -> 0 | F17: =SUM(F14:F16) -> 0 | G17: =SUM(G14:G16) -> 0 | H17: =((G17-F17)/F17) ->  | I17: =SUM(I14:I16) -> 0 | J17: =SUM(J14:J16) -> 0 | K17: =((J17-I17)/I17) ->  | L17: =SUM(L14:L16) -> 0 | M17: =SUM(M14:M16) -> 0 | N17: =((M17-L17)/L17) ->  | O17: =SUM(O14:O16) -> 9570 | P17: =SUM(P14:P16) -> 4800 | Q17: =((P17-O17)/O17) -> -0.4984326019 | R17: =SUM(R14:R16) -> 5237.5 | S17: =SUM(S14:S16) -> 4800 | T17: =((S17-R17)/R17) -> -0.08353221957 | U17: =SUM(U14:U16) -> 4500 | V17: =SUM(V14:V16) -> 4800 | W17: =((V17-U17)/U17) -> 0.06666666667 | X17: =SUM(X14:X16) -> 2237.5 | Y17: =SUM(Y14:Y16) -> 2000 | Z17: =((Y17-X17)/X17) -> -0.1061452514 | AA17: =SUM(AA14:AA16) -> 713.22 | AB17: =SUM(AB14:AB16) -> 500 | AC17: =((AB17-AA17)/AA17) -> -0.2989540394 | AD17: =SUM(AD14:AD16) -> -9105.12 | AE17: =SUM(AE14:AE16) -> -1500 | AF17: =((AE17-AD17)/AD17) -> -0.8352575254 | AG17: =SUM(AG14:AG16) -> 0 | AH17: =SUM(AH14:AH16) -> 0 | AI17: =((AH17-AG17)/AG17) ->  | AJ17: =SUM(AJ14:AJ16) -> 0 | AK17: =SUM(AK14:AK16) -> 0 | AL17: =((AK17-AJ17)/AJ17) ->  | AN17: =SUM(AN14:AN16) -> 13049.12 | AO17: =SUM(AO14:AO16) -> 15296.02 | AP17: 2246.9 | AQ17: =((AO17-AN17)/AN17) -> 0.1721878563
A18: 4132 | B18: Legislative Events Attendee Income | C18: 1160 | D18: 100 | G18: 100 | J18: 100 | L18: 15 | M18: 100 | P18: 100 | R18: 30 | S18: 100 | V18: 100 | Y18: 100 | AB18: 100 | AD18: 15 | AE18: 100 | AG18: 20 | AH18: 100 | AK18: 100 | AN18: =C18+F18+I18+L18+O18+R18+U18+X18+AA18+AD18+AG18+AJ18 -> 1240 | AO18: =D18+G18+J18+M18+P18+S18+V18+Y18+AB18+AE18+AH18+AK18 -> 1200 | AP18: -40
A19: 4135 | B19: Legislative Events Expense | D19: -100 | F19: -754.07 | G19: -100 | J19: -100 | M19: -100 | O19: -380.24 | P19: -100 | S19: -100 | V19: -100 | Y19: -100 | AB19: -100 | AD19: -16.24 | AE19: -100 | AH19: -100 | AK19: -100 | AN19: =C19+F19+I19+L19+O19+R19+U19+X19+AA19+AD19+AG19+AJ19 -> -1150.55 | AO19: =D19+G19+J19+M19+P19+S19+V19+Y19+AB19+AE19+AH19+AK19 -> -1200 | AP19: -49.45
A20: 4137 | B20: Economic Summit Attendee Income | AA20: 43 | AN20: =SUM(AN18:AN19) -> 89.45 | AO20: =D20+G20+J20+M20+P20+S20+V20+Y20+AB20+AE20+AH20+AK20 -> 0
B21: Total 4130 Legislative Events Income | C21: =SUM(C18:C20) -> 1160 | D21: =SUM(D18:D20) -> 0 | E21: =((D21-C21)/C21) -> -1 | F21: =SUM(F18:F20) -> -754.07 | G21: =SUM(G18:G20) -> 0 | H21: =((G21-F21)/F21) -> -1 | I21: =SUM(I18:I20) -> 0 | J21: =SUM(J18:J20) -> 0 | K21: =((J21-I21)/I21) ->  | L21: =SUM(L18:L20) -> 15 | M21: =SUM(M18:M20) -> 0 | N21: =((M21-L21)/L21) -> -1 | O21: =SUM(O18:O20) -> -380.24 | P21: =SUM(P18:P20) -> 0 | Q21: =((P21-O21)/O21) -> -1 | R21: =SUM(R18:R20) -> 30 | S21: =SUM(S18:S20) -> 0 | T21: =((S21-R21)/R21) -> -1 | U21: =SUM(U18:U20) -> 0 | V21: =SUM(V18:V20) -> 0 | W21: =((V21-U21)/U21) ->  | X21: =SUM(X18:X20) -> 0 | Y21: =SUM(Y18:Y20) -> 0 | Z21: =((Y21-X21)/X21) ->  | AA21: =SUM(AA18:AA20) -> 43 | AB21: =SUM(AB18:AB20) -> 0 | AC21: =((AB21-AA21)/AA21) -> -1 | AD21: =SUM(AD18:AD20) -> -1.24 | AE21: =SUM(AE18:AE20) -> 0 | AF21: =((AE21-AD21)/AD21) -> -1 | AG21: =SUM(AG18:AG20) -> 20 | AH21: =SUM(AH18:AH20) -> 0 | AI21: =((AH21-AG21)/AG21) -> -1 | AJ21: =SUM(AJ18:AJ20) -> 0 | AK21: =SUM(AK18:AK20) -> 0 | AL21: =((AK21-AJ21)/AJ21) ->  | AN21: =SUM(AN18:AN20) -> 178.9 | AO21: =SUM(AO18:AO20) -> 0 | AP21: =AN21-AO21 -> 178.9 | AQ21: =((AO21-AN21)/AN21) -> -1
A22: 4145 | B22: BPOY Expense | X22: -1842.75 | AA22: -3761.22 | AD22: -1842.75 | AG22: -13596.66 | AH22: -20000 | AN22: =C22+F22+I22+L22+O22+R22+U22+X22+AA22+AD22+AG22+AJ22 -> -21043.38 | AO22: -20000 | AP22: =AO22-AN22 -> 1043.38
A23: 4141 | B23: BPOY Sponsorship Income | AD23: 3400 | AG23: 5551.98 | AH23: 5000 | AN23: 8951.98 | AO23: 5000 | AP23: =AO23-AN23 -> -3951.98
A24: 4142 | B24: BPOY Attendee Income | AD24: 1600 | AG24: 2250 | AH24: 1600 | AN24: 3850 | AO24: 1600 | AP24: =AO24-AN24 -> -2250
A25: 4145 | B25: BPOY Income | AN25: =C25+F25+I25+L25+O25+R25+U25+X25+AA25+AD25+AG25+AJ25 -> 0 | AO25: 5000 | AP25: =AO25-AN25 -> 5000
B26: Total 4140 BPOY Income | C26: =SUM(C22:C25) -> 0 | D26: 0 | E26: =((D26-C26)/C26) ->  | F26: =SUM(F22:F25) -> 0 | H26: =((G26-F26)/F26) ->  | I26: =SUM(I22:I25) -> 0 | J26: =SUM(J22:J25) -> 0 | K26: =((J26-I26)/I26) ->  | L26: =SUM(L22:L25) -> 0 | M26: =SUM(M22:M25) -> 0 | N26: =((M26-L26)/L26) ->  | O26: =SUM(O22:O25) -> 0 | P26: =SUM(P22:P25) -> 0 | Q26: =((P26-O26)/O26) ->  | R26: =SUM(R22:R25) -> 0 | S26: =SUM(S22:S25) -> 0 | T26: =((S26-R26)/R26) ->  | U26: =SUM(U22:U25) -> 0 | V26: =SUM(V22:V25) -> 0 | W26: =((V26-U26)/U26) ->  | X26: =SUM(X22:X25) -> -1842.75 | Y26: =SUM(Y22:Y25) -> 0 | Z26: =((Y26-X26)/X26) -> -1 | AA26: =SUM(AA22:AA25) -> -3761.22 | AB26: =SUM(AB22:AB25) -> 0 | AC26: =((AB26-AA26)/AA26) -> -1 | AD26: =SUM(AD22:AD25) -> 3157.25 | AE26: =SUM(AE22:AE25) -> 0 | AF26: =((AE26-AD26)/AD26) -> -1 | AG26: =SUM(AG22:AG25) -> -5794.68 | AH26: =SUM(AH22:AH25) -> -13400 | AI26: =((AH26-AG26)/AG26) -> 1.312465917 | AJ26: =SUM(AJ22:AJ25) -> 0 | AK26: =SUM(AK22:AK25) -> 0 | AL26: =((AK26-AJ26)/AJ26) ->  | AN26: =SUM(AN22:AN25) -> -8241.4 | AO26: =SUM(AO22:AO25) -> -8400 | AP26: =SUM(AP22:AP25) -> -158.6 | AQ26: =((AO26-AN26)/AN26) -> 0.01924430315
A27: 4161 | B27: Member Orientation Sponsorship | C27: 43.5 | D27: 150 | F27: 34.5 | G27: 150 | I27: 52.5 | J27: 150 | L27: 44 | M27: 150 | O27: 135.5 | P27: 150 | R27: 41 | S27: 150 | U27: 214.5 | V27: 150 | X27: 24 | Y27: 150 | AA27: 41 | AB27: 150 | AD27: 24 | AE27: 150 | AG27: 9 | AN27: =C27+F27+I27+L27+O27+R27+U27+X27+AA27+AD27+AG27+AJ27 -> 663.5 | AO27: =D27+G27+J27+M27+P27+S27+V27+Y27+AB27+AE27+AH27+AK27 -> 1500 | AP27: =AO27-AN27 -> 836.5
A28: 4165 | B28: Member Orientation Expenses | D28: 0 | F28: -58.35 | G28: 0 | J28: 0 | L28: -158.94 | M28: 0 | O28: -320.53 | P28: 0 | R28: -77.35 | S28: 0 | U28: -57.61 | V28: 0 | X28: -66.47 | Y28: 0 | AA28: -93.59 | AB28: 0 | AE28: 0 | AG28: -24.01 | AN28: =C28+F28+I28+L28+O28+R28+U28+X28+AA28+AD28+AG28+AJ28 -> -856.85 | AO28: =D28+G28+J28+M28+P28+S28+V28+Y28+AB28+AE28+AH28+AK28 -> 0 | AP28: =AO28-AN28 -> 856.85
B29: Total 4160 Member Orientation | C29: =SUM(C27:C28) -> 43.5 | D29: =SUM(D27:D28) -> 150 | E29: =((D29-C29)/C29) -> 2.448275862 | F29: =SUM(F27:F28) -> -23.85 | G29: =SUM(G27:G28) -> 150 | H29: =((G29-F29)/F29) -> -7.289308176 | I29: =SUM(I27:I28) -> 52.5 | J29: =SUM(J27:J28) -> 150 | K29: =((J29-I29)/I29) -> 1.857142857 | L29: =SUM(L27:L28) -> -114.94 | M29: =SUM(M27:M28) -> 150 | N29: =((M29-L29)/L29) -> -2.305028711 | O29: =SUM(O27:O28) -> -185.03 | P29: =SUM(P27:P28) -> 150 | Q29: =((P29-O29)/O29) -> -1.810679349 | R29: =SUM(R27:R28) -> -36.35 | S29: =SUM(S27:S28) -> 150 | T29: =((S29-R29)/R29) -> -5.126547455 | U29: =SUM(U27:U28) -> 156.89 | V29: =SUM(V27:V28) -> 150 | W29: =((V29-U29)/U29) -> -0.04391611957 | X29: =SUM(X27:X28) -> -42.47 | Y29: =SUM(Y27:Y28) -> 150 | Z29: =((Y29-X29)/X29) -> -4.531904874 | AA29: =SUM(AA27:AA28) -> -52.59 | AB29: =SUM(AB27:AB28) -> 150 | AC29: =((AB29-AA29)/AA29) -> -3.85225328 | AD29: =SUM(AD27:AD28) -> 24 | AE29: =SUM(AE27:AE28) -> 150 | AF29: =((AE29-AD29)/AD29) -> 5.25 | AG29: =SUM(AG27:AG28) -> -15.01 | AH29: =SUM(AH27:AH28) -> 0 | AI29: =((AH29-AG29)/AG29) -> -1 | AJ29: =SUM(AJ27:AJ28) -> 0 | AK29: =SUM(AK27:AK28) -> 0 | AL29: =((AK29-AJ29)/AJ29) ->  | AN29: =SUM(AN27:AN28) -> -193.35 | AO29: =SUM(AO27:AO28) -> 1500 | AP29: =SUM(AP27:AP28) -> 1693.35 | AQ29: =((AO29-AN29)/AN29) -> -8.757951901
A30: 4171 | B30: After 5 Sponsorship | C30: 150 | D30: 200 | G30: 200 | J30: 200 | M30: 200 | P30: 200 | R30: 450 | S30: 200 | V30: 200 | X30: 1290 | Y30: 200 | AA30: 100 | AB30: 200 | AE30: 200 | AH30: 200 | AK30: 200 | AN30: =C30+F30+I30+L30+O30+R30+U30+X30+AA30+AD30+AG30+AJ30 -> 1990 | AO30: =D30+G30+J30+M30+P30+S30+V30+Y30+AB30+AE30+AH30+AK30 -> 2400 | AP30: =AO30-AN30 -> 410
A31: 4175 | B31: After 5 Expense | D31: -50 | G31: -50 | J31: -50 | L31: -720.82 | M31: -50 | P31: -50 | S31: -50 | V31: -50 | X31: -600 | Y31: -50 | AA31: 100 | AB31: -50 | AE31: -50 | AH31: -50 | AK31: -50 | AN31: =C31+F31+I31+L31+O31+R31+U31+X31+AA31+AD31+AG31+AJ31 -> -1220.82 | AO31: =D31+G31+J31+M31+P31+S31+V31+Y31+AB31+AE31+AH31+AK31 -> -600 | AP31: =AO31-AN31 -> 620.82
B32: Total 4170 After 5 | C32: =SUM(C30:C31) -> 150 | D32: =SUM(D30:D31) -> 150 | E32: =((D32-C32)/C32) -> 0 | F32: =SUM(F30:F31) -> 0 | G32: =SUM(G30:G31) -> 150 | H32: =((G32-F32)/F32) ->  | I32: =SUM(I30:I31) -> 0 | J32: =SUM(J30:J31) -> 150 | K32: =((J32-I32)/I32) ->  | L32: =SUM(L30:L31) -> -720.82 | M32: =SUM(M30:M31) -> 150 | N32: =((M32-L32)/L32) -> -1.208096335 | O32: =SUM(O30:O31) -> 0 | P32: =SUM(P30:P31) -> 150 | Q32: =((P32-O32)/O32) ->  | R32: =SUM(R30:R31) -> 450 | S32: =SUM(S30:S31) -> 150 | T32: =((S32-R32)/R32) -> -0.6666666667 | U32: =SUM(U30:U31) -> 0 | V32: =SUM(V30:V31) -> 150 | W32: =((V32-U32)/U32) ->  | X32: =SUM(X30:X31) -> 690 | Y32: =SUM(Y30:Y31) -> 150 | Z32: =((Y32-X32)/X32) -> -0.7826086957 | AA32: =SUM(AA30:AA31) -> 200 | AB32: =SUM(AB30:AB31) -> 150 | AC32: =((AB32-AA32)/AA32) -> -0.25 | AD32: =SUM(AD30:AD31) -> 0 | AE32: =SUM(AE30:AE31) -> 150 | AF32: =((AE32-AD32)/AD32) ->  | AG32: =SUM(AG30:AG31) -> 0 | AH32: =SUM(AH30:AH31) -> 150 | AI32: =((AH32-AG32)/AG32) ->  | AJ32: =SUM(AJ30:AJ31) -> 0 | AK32: =SUM(AK30:AK31) -> 150 | AL32: =((AK32-AJ32)/AJ32) ->  | AN32: =SUM(AN30:AN31) -> 769.18 | AO32: =SUM(AO30:AO31) -> 1800 | AP32: =SUM(AP30:AP31) -> 1030.82 | AQ32: =((AO32-AN32)/AN32) -> 1.34015445
A33: 4185 | B33: Before 9 Expenses | F33: -315.15 | G33: 0 | O33: -104.24 | R33: -12 | AN33: =SUM(C33:AJ33) -> -431.39 | AO33: 0 | AP33: =AO33-AN33 -> 431.39
B34: Total 4180 Before 9 | C34: =SUM(C33) -> 0 | E34: =((D34-C34)/C34) ->  | F34: =SUM(F33) -> -315.15 | G34: =SUM(G33) -> 0 | H34: =((G34-F34)/F34) -> -1 | I34: =SUM(I33) -> 0 | J34: =SUM(J33) -> 0 | K34: =((J34-I34)/I34) ->  | L34: =SUM(L33) -> 0 | M34: =SUM(M33) -> 0 | N34: =((M34-L34)/L34) ->  | O34: =SUM(O33) -> -104.24 | P34: =SUM(P33) -> 0 | Q34: =((P34-O34)/O34) -> -1 | R34: =SUM(R33) -> -12 | S34: =SUM(S33) -> 0 | T34: =((S34-R34)/R34) -> -1 | U34: =SUM(U33) -> 0 | V34: =SUM(V33) -> 0 | W34: =((V34-U34)/U34) ->  | X34: =SUM(X33) -> 0 | Y34: =SUM(Y33) -> 0 | Z34: =((Y34-X34)/X34) ->  | AA34: =SUM(AA33) -> 0 | AB34: =SUM(AB33) -> 0 | AC34: =((AB34-AA34)/AA34) ->  | AD34: =SUM(AD33) -> 0 | AE34: =SUM(AE33) -> 0 | AF34: =((AE34-AD34)/AD34) ->  | AG34: =SUM(AG33) -> 0 | AH34: =SUM(AH33) -> 0 | AI34: =((AH34-AG34)/AG34) ->  | AJ34: =SUM(AJ33) -> 0 | AK34: =SUM(AK33) -> 0 | AL34: =((AK34-AJ34)/AJ34) ->  | AN34: =AN33 -> -431.39 | AO34: =AO33 -> 0 | AP34: 431.39 | AQ34: =((AO34-AN34)/AN34) -> -1
A35: TOTAL EVENTS INCOME | C35: =C13+C17+C21+C26+C29+C32+C34 -> 1249.52 | D35: =D13+D17+D21+D26+D29+D32+D34 -> 196.02 | F35: =F13+F17+F21+F26+F29+F32+F34 -> 456.93 | G35: =G13+G17+G21+G26+G29+G32+G34 -> 2800 | I35: =I13+I17+I21+I26+I29+I32+I34 -> 4027.5 | J35: =J13+J17+J21+J26+J29+J32+J34 -> 4800 | L35: =L13+L17+L21+L26+L29+L32+L34 -> -5169.27 | M35: =M13+M17+M21+M26+M29+M32+M34 -> -2950 | O35: =O13+O17+O21+O26+O29+O32+O34 -> 8879.43 | P35: =P13+P17+P21+P26+P29+P32+P34 -> 5100 | R35: =R13+R17+R21+R26+R29+R32+R34 -> 5669.15 | S35: =S13+S17+S21+S26+S29+S32+S34 -> 5100 | U35: =U13+U17+U21+U26+U29+U32+U34 -> 4656.89 | V35: =V13+V17+V21+V26+V29+V32+V34 -> 5100 | X35: =X13+X17+X21+X26+X29+X32+X34 -> 1042.28 | Y35: =Y13+Y17+Y21+Y26+Y29+Y32+Y34 -> 2300 | AA35: =AA13+AA17+AA21+AA26+AA29+AA32+AA34 -> -2857.59 | AB35: =AB13+AB17+AB21+AB26+AB29+AB32+AB34 -> 800 | AD35: =AD13+AD17+AD21+AD26+AD29+AD32+AD34 -> -5925.11 | AE35: =AE13+AE17+AE21+AE26+AE29+AE32+AE34 -> -1200 | AG35: =AG13+AG17+AG21+AG26+AG29+AG32+AG34 -> -5789.69 | AH35: =AH13+AH17+AH21+AH26+AH29+AH32+AH34 -> -13250 | AJ35: =AJ13+AJ17+AJ21+AJ26+AJ29+AJ32+AJ34 -> 0 | AK35: =AK13+AK17+AK21+AK26+AK29+AK32+AK34 -> 150 | AN35: =AN13+AN17+AN21+AN26+AN29+AN32+AN34 -> 6286.49 | AO35: =AO13+AO17+AO21+AO26+AO29+AO32+AO34 -> 13946.02 | AP35: 7659.53 | AQ35: =((AO35-AN35)/AN35) -> 1.218411228
A36: 4204 | B36: Corporate Sponsorship Income | C36: 6105 | D36: 5154.16 | F36: 3040 | G36: 5154.16 | I36: 7350 | J36: 5154.16 | L36: 3905 | M36: 5154.16 | O36: 0 | P36: 5154.16 | R36: 0 | S36: 5154.16 | U36: 0 | V36: 5154.16 | X36: 0 | Y36: 0 | AA36: 0 | AB36: 5154.16 | AD36: 0 | AE36: 5154.16 | AG36: 0 | AH36: 5154.16 | AJ36: 0 | AK36: 5154.16 | AN36: =C36+F36+I36+L36+O36+R36+U36+X36+AA36+AD36+AG36+AJ36 -> 20400 | AO36: 56695.76 | AP36: 36295.76
A37: 4208 | B37: Advertising Sponsorships | C37: 680 | D37: 400 | F37: 720 | G37: 400 | I37: 100 | J37: 400 | L37: 0 | M37: 400 | O37: 100 | P37: 400 | R37: 0 | S37: 400 | U37: 0 | V37: 400 | X37: 100 | Y37: 400 | AA37: 0 | AB37: 400 | AD37: 10 | AE37: 400 | AG37: 0 | AH37: 400 | AJ37: 0 | AK37: 400 | AN37: 1710 | AO37: 4800 | AP37: 3090
A38: 4800 | B38: Donated "Rent" Income-New Space | C38: 776.46 | D38: 776.46 | F38: 776.46 | G38: 776.46 | I38: 776.46 | J38: 776.46 | L38: 776.46 | M38: 776.46 | O38: 776.46 | P38: 776.46 | R38: 776.46 | S38: 776.46 | U38: 776.46 | V38: 776.46 | X38: 776.46 | Y38: 776.46 | AA38: 776.46 | AB38: 776.46 | AD38: 776.46 | AE38: 776.46 | AG38: 776.46 | AH38: 776.46 | AJ38: 776.42 | AK38: 776.46 | AN38: 9317.48 | AO38: 9317.52 | AP38: 0.04
B39: Total 4200 NON DUES INCOME | C39: =SUM(C36:C38) -> 7561.46 | D39: =SUM(D36:D38) -> 6330.62 | F39: =SUM(F36:F38) -> 4536.46 | G39: =SUM(G36:G38) -> 6330.62 | I39: =SUM(I36:I38) -> 8226.46 | J39: =SUM(J36:J38) -> 6330.62 | L39: =SUM(L36:L38) -> 4681.46 | M39: =SUM(M36:M38) -> 6330.62 | O39: =SUM(O36:O38) -> 876.46 | P39: =SUM(P36:P38) -> 6330.62 | R39: =SUM(R36:R38) -> 776.46 | S39: =SUM(S36:S38) -> 6330.62 | U39: =SUM(U36:U38) -> 776.46 | V39: =SUM(V36:V38) -> 6330.62 | X39: =SUM(X36:X38) -> 876.46 | Y39: =SUM(Y36:Y38) -> 1176.46 | AA39: =SUM(AA36:AA38) -> 776.46 | AB39: =SUM(AB36:AB38) -> 6330.62 | AD39: =SUM(AD36:AD38) -> 786.46 | AE39: =SUM(AE36:AE38) -> 6330.62 | AG39: =SUM(AG36:AG38) -> 776.46 | AH39: =SUM(AH36:AH38) -> 6330.62 | AJ39: =SUM(AJ36:AJ38) -> 776.42 | AK39: =SUM(AK36:AK38) -> 6330.62 | AN39: =SUM(AN36:AN38) -> 31427.48 | AO39: =SUM(AO36:AO38) -> 70813.28 | AP39: 39385.8 | AQ39: =((AO39-AN39)/AN39) -> 1.253228067
B40: Directory Page Review/Revision Income | C40: 0 | D40: 100 | F40: 0 | G40: 200 | I40: 0 | J40: 200 | L40: 0 | M40: 200 | O40: 0 | P40: 200 | R40: 0 | S40: 200 | U40: 0 | V40: 200 | X40: 0 | Y40: 200 | AA40: 0 | AB40: 200 | AD40: 0 | AE40: 200 | AG40: 0 | AH40: 200 | AJ40: 0 | AK40: 200 | AN40: =C40+F40+I40+L40+O40+R40+U40+X40+AA40+AD40+AG40+AJ40 -> 0 | AO40: =D40+G40+J40+M40+P40+S40+V40+Y40+AB40+AE40+AH40+AK40 -> 2300 | AP40: 2300
B41: Directory Page Review/Revision Expense | C41: 0 | D41: -25 | F41: 0 | G41: -50 | I41: 0 | J41: -50 | L41: 0 | M41: -50 | O41: 0 | P41: -50 | R41: 0 | S41: -50 | U41: 0 | V41: -50 | X41: 0 | Y41: -50 | AA41: 0 | AB41: -50 | AD41: 0 | AE41: -50 | AG41: 0 | AH41: -50 | AJ41: 0 | AK41: -50 | AN41: =C41+F41+I41+L41+O41+R41+U41+X41+AA41+AD41+AG41+AJ41 -> 0 | AO41: =D41+G41+J41+M41+P41+S41+V41+Y41+AB41+AE41+AH41+AK41 -> -575 | AP41: -575
B42: Total Directory Page Review/Revision | C42: =SUM(C40:C41) -> 0 | D42: =SUM(D40:D41) -> 75 | F42: =SUM(F40:F41) -> 0 | G42: =SUM(G40:G41) -> 150 | I42: =SUM(I40:I41) -> 0 | J42: =SUM(J40:J41) -> 150 | L42: =SUM(L40:L41) -> 0 | M42: =SUM(M40:M41) -> 150 | O42: =SUM(O40:O41) -> 0 | P42: =SUM(P40:P41) -> 150 | R42: =SUM(R40:R41) -> 0 | S42: =SUM(S40:S41) -> 150 | U42: =SUM(U40:U41) -> 0 | V42: =SUM(V40:V41) -> 150 | X42: =SUM(X40:X41) -> 0 | Y42: =SUM(Y40:Y41) -> 150 | AA42: =SUM(AA40:AA41) -> 0 | AB42: =SUM(AB40:AB41) -> 150 | AD42: =SUM(AD40:AD41) -> 0 | AE42: =SUM(AE40:AE41) -> 150 | AG42: =SUM(AG40:AG41) -> 0 | AH42: =SUM(AH40:AH41) -> 150 | AJ42: =SUM(AJ40:AJ41) -> 0 | AK42: =SUM(AK40:AK41) -> 150 | AN42: =SUM(AN40:AN41) -> 0 | AO42: =SUM(AO40:AO41) -> 1725 | AP42: 1725 | AQ42: =((AO42-AN42)/AN42) -> 
A43: 4310 | B43: Digital Business Directory Income | C43: 0 | D43: 0 | F43: 0 | G43: 250 | I43: 0 | J43: 500 | L43: 0 | M43: 500 | O43: 0 | P43: 500 | R43: 0 | S43: 500 | U43: 0 | V43: 500 | X43: 0 | Y43: 500 | AA43: 0 | AB43: 500 | AD43: 0 | AE43: 500 | AG43: 3799 | AH43: 500 | AJ43: 0 | AK43: 500 | AN43: =C43+F43+I43+L43+O43+R43+U43+X43+AA43+AD43+AG43+AJ43 -> 3799 | AO43: =D43+G43+J43+M43+P43+S43+V43+Y43+AB43+AE43+AH43+AK43 -> 5250 | AP43: 1451
A44: 4311 | B44: Digital Business Directory Expense | C44: 0 | D44: 0 | F44: 0 | G44: -25 | I44: 0 | J44: -50 | L44: 0 | M44: -50 | O44: 0 | P44: -50 | R44: 0 | S44: -50 | U44: 0 | V44: -50 | X44: 0 | Y44: -50 | AA44: 0 | AB44: -50 | AD44: 0 | AE44: -50 | AG44: 0 | AH44: -50 | AJ44: 0 | AK44: -50 | AN44: =C44+F44+I44+L44+O44+R44+U44+X44+AA44+AD44+AG44+AJ44 -> 0 | AO44: =D44+G44+J44+M44+P44+S44+V44+Y44+AB44+AE44+AH44+AK44 -> -525 | AP44: -525
C45: =SUM(C43:C44) -> 0 | D45: =SUM(D43:D44) -> 0 | F45: =SUM(F43:F44) -> 0 | G45: =SUM(G43:G44) -> 225 | I45: =SUM(I43:I44) -> 0 | J45: =SUM(J43:J44) -> 450 | L45: =SUM(L43:L44) -> 0 | M45: =SUM(M43:M44) -> 450 | AN45: =SUM(AN43:AN44) -> 3799 | AQ45: =((AO45-AN45)/AN45) -> -1
B46: Directoy Listing Income | C46: 0 | D46: 0 | F46: 0 | G46: 500 | I46: 0 | J46: 500 | L46: 0 | M46: 700 | O46: 0 | P46: 700 | R46: 0 | S46: 700 | U46: 0 | V46: 700 | X46: 0 | Y46: 700 | AA46: 0 | AB46: 700 | AD46: 0 | AE46: 700 | AG46: 0 | AH46: 700 | AJ46: 0 | AK46: 700 | AN46: =C46+F46+I46+L46+O46+R46+U46+X46+AA46+AD46+AG46+AJ46 -> 0 | AO46: =D46+G46+J46+M46+P46+S46+V46+Y46+AB46+AE46+AH46+AK46 -> 7300 | AP46: =AO46-AN46 -> 7300
B47: Directory Listing Expense | C47: 0 | D47: -750 | F47: 0 | G47: 0 | I47: 0 | J47: 0 | L47: 0 | M47: 0 | O47: 0 | P47: 0 | R47: 0 | S47: 0 | U47: 0 | V47: 0 | X47: 0 | Y47: 0 | AA47: 0 | AB47: 0 | AD47: 0 | AE47: 0 | AG47: 0 | AH47: 0 | AJ47: 0 | AK47: 0 | AN47: =C47+F47+I47+L47+O47+R47+U47+X47+AA47+AD47+AG47+AJ47 -> 0 | AO47: =D47+G47+J47+M47+P47+S47+V47+Y47+AB47+AE47+AH47+AK47 -> -750 | AP47: =AO47-AN47 -> -750
B48: Total 4300 Digital Directory Income | C48: =SUM(C46:C47) -> 0 | D48: =SUM(D46:D47) -> -750 | F48: =SUM(F46:F47) -> 0 | G48: =SUM(G46:G47) -> 500 | I48: =SUM(I46:I47) -> 0 | J48: =SUM(J46:J47) -> 500 | L48: =SUM(L46:L47) -> 0 | M48: =SUM(M46:M47) -> 700 | O48: =SUM(O46:O47) -> 0 | P48: =SUM(P46:P47) -> 700 | R48: =SUM(R46:R47) -> 0 | S48: =SUM(S46:S47) -> 700 | U48: =SUM(U46:U47) -> 0 | V48: =SUM(V46:V47) -> 700 | X48: =SUM(X46:X47) -> 0 | Y48: =SUM(Y46:Y47) -> 700 | AA48: =SUM(AA46:AA47) -> 0 | AB48: =SUM(AB46:AB47) -> 700 | AD48: =SUM(AD46:AD47) -> 0 | AE48: =SUM(AE46:AE47) -> 700 | AG48: =SUM(AG46:AG47) -> 0 | AH48: =SUM(AH46:AH47) -> 700 | AJ48: =SUM(AJ46:AJ47) -> 0 | AK48: =SUM(AK46:AK47) -> 700 | AN48: =SUM(AN46:AN47) -> 0 | AO48: =SUM(AO43:AO44) -> 4725 | AP48: =AO48-AN48 -> 4725 | AQ48: =((AO48-AN48)/AN48) -> 
A49: 4410 | B49: FYPG Events Income | C49: 0 | D49: 0 | F49: 0 | G49: 0 | I49: 0 | J49: 0 | L49: 0 | M49: 0 | O49: 0 | P49: 0 | R49: 0 | S49: 0 | U49: 0 | V49: 0 | X49: 0 | Y49: 0 | AA49: 0 | AB49: 0 | AD49: 0 | AE49: 0 | AG49: 0 | AH49: 0 | AJ49: 0 | AK49: 0 | AN49: =C49+F49+I49+L49+O49+R49+U49+X49+AA49+AD49+AG49+AJ49 -> 0 | AO49: =D49+G49+J49+M49+P49+S49+V49+Y49+AB49+AE49+AH49+AK49 -> 0 | AP49: =AO49-AN49 -> 0
A50: 4415 | B50: FYPG Events Expense | C50: -131.22 | D50: 0 | F50: 0 | G50: 0 | I50: 0 | J50: 0 | L50: 0 | M50: 0 | O50: 0 | P50: 0 | R50: 0 | S50: 0 | U50: -45.4 | V50: 0 | X50: 0 | Y50: 0 | AA50: 0 | AB50: 0 | AD50: 0 | AE50: 0 | AG50: 0 | AH50: 0 | AJ50: 0 | AK50: 0 | AN50: =C50+F50+I50+L50+O50+R50+U50+X50+AA50+AD50+AG50+AJ50 -> -176.62 | AO50: =D50+G50+J50+M50+P50+S50+V50+Y50+AB50+AE50+AH50+AK50 -> 0 | AP50: =AO50-AN50 -> 176.62
B51: Total 4410 FYPG Events Income | C51: =SUM(C49:C50) -> -131.22 | D51: =SUM(D49:D50) -> 0 | F51: =SUM(F49:F50) -> 0 | G51: =SUM(G49:G50) -> 0 | I51: =SUM(I49:I50) -> 0 | J51: =SUM(J49:J50) -> 0 | L51: =SUM(L49:L50) -> 0 | M51: =SUM(M49:M50) -> 0 | O51: =SUM(O49:O50) -> 0 | P51: =SUM(P49:P50) -> 0 | R51: =SUM(R49:R50) -> 0 | S51: =SUM(S49:S50) -> 0 | U51: =SUM(U49:U50) -> -45.4 | V51: =SUM(V49:V50) -> 0 | X51: =SUM(X49:X50) -> 0 | Y51: =SUM(Y49:Y50) -> 0 | AA51: =SUM(AA49:AA50) -> 0 | AB51: =SUM(AB49:AB50) -> 0 | AD51: =SUM(AD49:AD50) -> 0 | AE51: =SUM(AE49:AE50) -> 0 | AG51: =SUM(AG49:AG50) -> 0 | AH51: =SUM(AH49:AH50) -> 0 | AJ51: =SUM(AJ49:AJ50) -> 0 | AK51: =SUM(AK49:AK50) -> 0 | AN51: =SUM(AN49:AN50) -> -176.62 | AO51: =SUM(AO49:AO50) -> 0 | AP51: =-AO51-AN51 -> 176.62 | AQ51: =((AO51-AN51)/AN51) -> -1
A52: 4421 | B52: WBC Events Attendee Income | C52: 0 | D52: 0 | F52: 0 | G52: 0 | I52: 1500 | J52: 1750 | L52: 90 | M52: 0 | O52: 270 | P52: 0 | R52: 1025 | S52: 1750 | U52: 30 | V52: 0 | X52: 30 | Y52: 0 | AA52: 1020 | AB52: 1750 | AD52: 300 | AE52: 0 | AG52: 685 | AH52: 1750 | AJ52: 0 | AK52: 0 | AN52: =C52+F52+I52+L52+O52+R52+U52+X52+AA52+AD52+AG52+AJ52 -> 4950 | AO52: 7000 | AP52: =AO52-AN52 -> 2050
A53: 4422 | B53: WBC Events Sponsorship Income | C53: 0 | D53: 4500 | F53: 3825 | G53: 4500 | I53: 5100 | J53: 4500 | L53: 850 | M53: 0 | O53: 425 | P53: 0 | R53: 425 | S53: 0 | U53: 0 | V53: 0 | X53: 0 | Y53: 0 | AA53: 0 | AB53: 0 | AD53: 0 | AE53: 0 | AG53: 100 | AH53: 0 | AJ53: 0 | AK53: 0 | AN53: 10725 | AO53: 13500 | AP53: 2775
A54: 4425 | B54: WBC Event Expense | C54: 0 | D54: 0 | F54: 0 | G54: 0 | I54: -750 | J54: -2650 | L54: -2005.46 | M54: 0 | O54: 0 | P54: 0 | R54: 0 | S54: -2650 | U54: -1500 | V54: 0 | X54: 0 | Y54: 0 | AA54: -685 | AB54: -2650 | AD54: -2500.4 | AE54: 0 | AG54: 2785 | AH54: -2650 | AJ54: 0 | AK54: 0 | AN54: -4655.86 | AO54: -10600 | AP54: -5944.14
B55: Total 4420 WBC Events Income | C55: =SUM(C52:C54) -> 0 | D55: =SUM(D52:D54) -> 4500 | F55: =SUM(F52:F54) -> 3825 | G55: =SUM(G52:G54) -> 4500 | I55: =SUM(I52:I54) -> 5850 | J55: =SUM(J52:J54) -> 3600 | L55: =SUM(L52:L54) -> -1065.46 | M55: =SUM(M52:M54) -> 0 | O55: =SUM(O52:O54) -> 695 | P55: =SUM(P52:P54) -> 0 | R55: =SUM(R52:R54) -> 1450 | S55: =SUM(S52:S54) -> -900 | U55: =SUM(U52:U54) -> -1470 | V55: =SUM(V52:V54) -> 0 | X55: =SUM(X52:X54) -> 30 | Y55: =SUM(Y52:Y54) -> 0 | AA55: =SUM(AA52:AA54) -> 335 | AB55: =SUM(AB52:AB54) -> -900 | AD55: =SUM(AD52:AD54) -> -2200.4 | AE55: =SUM(AE52:AE54) -> 0 | AG55: =SUM(AG52:AG54) -> 3570 | AH55: =SUM(AH52:AH54) -> -900 | AJ55: =SUM(AJ52:AJ54) -> 0 | AK55: =SUM(AK52:AK54) -> 0 | AN55: =SUM(AN52:AN54) -> 11019.14 | AO55: =SUM(AO52:AO54) -> 9900 | AP55: -1119.14 | AQ55: =((AO55-AN55)/AN55) -> -0.1015632799
A56: 4432 | B56: Member Luncheon Attendee Income | C56: 25 | D56: 0 | F56: 530 | G56: 0 | I56: 325 | J56: 250 | L56: 275 | M56: 0 | O56: 345 | P56: 0 | R56: 85 | S56: 250 | U56: 0 | V56: 0 | X56: 90 | Y56: 0 | AA56: 220 | AB56: 250 | AD56: 75 | AE56: 0 | AG56: 0 | AH56: 0 | AJ56: 0 | AK56: 250 | AN56: =C56+F56+I56+L56+O56+R56+U56+X56+AA56+AD56+AG56+AJ56 -> 1970 | AO56: =D56+G56+J56+M56+P56+S56+V56+Y56+AB56+AE56+AH56+AK56 -> 1000 | AP56: -970
A57: 4435 | B57: Members Luncheon Expense | C57: -150 | D57: 0 | F57: -150 | G57: 0 | I57: -376.61 | J57: 0 | L57: -144.1 | M57: 0 | O57: -154.92 | P57: 0 | R57: 0 | S57: -50 | U57: 0 | V57: 0 | X57: 0 | Y57: 0 | AA57: -144.83 | AB57: -50 | AD57: -215.6 | AE57: 0 | AG57: 0 | AH57: 0 | AJ57: 0 | AK57: -50 | AN57: =C57+F57+I57+L57+O57+R57+U57+X57+AA57+AD57+AG57+AJ57 -> -1336.06 | AO57: =D57+G57+J57+M57+P57+S57+V57+Y57+AB57+AE57+AH57+AK57 -> -150 | AP57: 1186.06
B58: Total 4430 Member Luncheon Income | C58: =SUM(C56:C57) -> -125 | D58: =SUM(D56:D57) -> 0 | F58: =SUM(F56:F57) -> 380 | G58: =SUM(G56:G57) -> 0 | I58: =SUM(I56:I57) -> -51.61 | J58: =SUM(J56:J57) -> 250 | L58: =SUM(L56:L57) -> 130.9 | M58: =SUM(M56:M57) -> 0 | O58: =SUM(O56:O57) -> 190.08 | P58: =SUM(P56:P57) -> 0 | R58: =SUM(R56:R57) -> 85 | S58: =SUM(S56:S57) -> 200 | U58: =SUM(U56:U57) -> 0 | V58: =SUM(V56:V57) -> 0 | X58: =SUM(X56:X57) -> 90 | Y58: =SUM(Y56:Y57) -> 0 | AA58: =SUM(AA56:AA57) -> 75.17 | AB58: =SUM(AB56:AB57) -> 200 | AD58: =SUM(AD56:AD57) -> -140.6 | AE58: =SUM(AE56:AE57) -> 0 | AG58: =SUM(AG56:AG57) -> 0 | AH58: =SUM(AH56:AH57) -> 0 | AJ58: =SUM(AJ56:AJ57) -> 0 | AK58: =SUM(AK56:AK57) -> 200 | AN58: =SUM(AN56:AN57) -> 633.94 | AO58: =SUM(AO56:AO57) -> 850 | AP58: =-AO58-AN58 -> -1483.94 | AQ58: =((AO58-AN58)/AN58) -> 0.3408208979
B59: TOTAL MEMBERSHIP ACTIVITIES INCOME | C59: =C39+C42+C48+C51+C55+C58 -> 7305.24 | D59: =D39+D42+D48+D51+D55+D58 -> 10155.62 | F59: =F39+F42+F48+F51+F55+F58 -> 8741.46 | G59: =G39+G42+G48+G51+G55+G58 -> 11480.62 | I59: =I39+I42+I48+I51+I55+I58 -> 14024.85 | J59: =J39+J42+J48+J51+J55+J58 -> 10830.62 | L59: =L39+L42+L48+L51+L55+L58 -> 3746.9 | M59: =M39+M42+M48+M51+M55+M58 -> 7180.62 | O59: =O39+O42+O48+O51+O55+O58 -> 1761.54 | P59: =P39+P42+P48+P51+P55+P58 -> 7180.62 | R59: =R39+R42+R48+R51+R55+R58 -> 2311.46 | S59: =S39+S42+S48+S51+S55+S58 -> 6480.62 | U59: =U39+U42+U48+U51+U55+U58 -> -738.94 | V59: =V39+V42+V48+V51+V55+V58 -> 7180.62 | X59: =X39+X42+X48+X51+X55+X58 -> 996.46 | Y59: =Y39+Y42+Y48+Y51+Y55+Y58 -> 2026.46 | AA59: =AA39+AA42+AA48+AA51+AA55+AA58 -> 1186.63 | AB59: =AB39+AB42+AB48+AB51+AB55+AB58 -> 6480.62 | AD59: =AD39+AD42+AD48+AD51+AD55+AD58 -> -1554.54 | AE59: =AE39+AE42+AE48+AE51+AE55+AE58 -> 7180.62 | AG59: =AG39+AG42+AG48+AG51+AG55+AG58 -> 4346.46 | AH59: =AH39+AH42+AH48+AH51+AH55+AH58 -> 6280.62 | AJ59: =AJ39+AJ42+AJ48+AJ51+AJ55+AJ58 -> 776.42 | AK59: =AK39+AK42+AK48+AK51+AK55+AK58 -> 7380.62 | AN59: =AN39+AN42+AN45+AN48+AN51+AN55+AN58 -> 46702.94 | AO59: =AO39+AO42+AO48+AO51+AO55+AO58 -> 88013.28 | AP59: =AO59-AN59 -> 41310.34 | AQ59: =((AO59-AN59)/AN59) -> 0.8845340358
B60: TOTAL INCOME | C60: =C9+C35+C59 -> 13164.76 | D60: =D9+D35+D59 -> 19630.64 | E60: =((D60-C60)/C60) -> 0.4911506173 | F60: =F9+F35+F59 -> 19708.39 | G60: =G9+G35+G59 -> 29901.12 | H60: =((G60-F60)/F60) -> 0.5171772022 | I60: =I9+I35+I59 -> 25342.35 | J60: =J9+J35+J59 -> 30566.62 | K60: =((J60-I60)/I60) -> 0.2061478119 | L60: =L9+L35+L59 -> 9017.63 | M60: =M9+M35+M59 -> 18914.87 | N60: =((M60-L60)/L60) -> 1.097543368 | O60: =O9+O35+O59 -> 20133.47 | P60: =P9+P35+P59 -> 26446.37 | Q60: =((P60-O60)/O60) -> 0.3135525073 | R60: =R9+R35+R59 -> 11390.61 | S60: =S9+S35+S59 -> 17897.62 | T60: =((S60-R60)/R60) -> 0.5712608895 | U60: =U9+U35+U59 -> 9522.95 | V60: =V9+V35+V59 -> 23578.12 | W60: =((V60-U60)/U60) -> 1.475926052 | X60: =X9+X35+X59 -> 11553.74 | Y60: =Y9+Y35+Y59 -> 14751.96 | Z60: =((Y60-X60)/X60) -> 0.27681253 | AA60: =AA9+AA35+AA59 -> 1966.54 | AB60: =AB9+AB35+AB59 -> 15056.62 | AD60: =AD9+AD35+AD59 -> 60.35 | AE60: =AE9+AE35+AE59 -> 17526.87 | AF60: =((AE60-AD60)/AD60) -> 289.4203811 | AG60: =AG9+AG35+AG59 -> 2421.77 | AH60: =AH9+AH35+AH59 -> -114.88 | AI60: =((AH60-AG60)/AG60) -> -1.047436379 | AJ60: =AJ9+AJ35+AJ59 -> 4676.42 | AK60: =AK9+AK35+AK59 -> 14440.12 | AL60: =((AK60-AJ60)/AJ60) -> 2.087857806 | AN60: =C60+F60+I60+L60+O60+R60+U60+X60+AA60+AD60+AG60+AJ60 -> 128958.98 | AO60: =AK60+AH60+AE60+AB60+Y60+V60+S60+P60+M60+J60+G60+D60 -> 228596.05 | AP60: 99637.07 | AQ60: =((AO60-AN60)/AN60) -> 0.7726260707
A61: 5001 | B61: Advertising Expense | C61: 0 | D61: 350 | F61: 0 | G61: 350 | I61: 375 | J61: 350 | L61: 375 | M61: 350 | O61: 375 | P61: 350 | R61: 0 | S61: 350 | U61: 0 | V61: 350 | X61: 0 | Y61: 350 | AA61: 1064.6 | AB61: 350 | AD61: 1040.6 | AE61: 350 | AG61: 0 | AH61: 350 | AJ61: 0 | AK61: 350 | AN61: 3230.2 | AO61: =D61+G61+J61+M61+P61+S61+V61+Y61+AB61+AE61+AH61+AK61 -> 4200 | AP61: 969.8
A62: 5003 | B62: Bookeeping Expense | C62: 1250 | D62: 1200 | F62: 1000 | G62: 1200 | I62: 1250 | J62: 1200 | L62: 1437.5 | M62: 1200 | O62: 1400 | P62: 1200 | R62: 1000 | S62: 1200 | U62: 1050 | V62: 1200 | X62: 1150 | Y62: 1200 | AA62: 1000 | AB62: 1200 | AD62: 1500 | AE62: 1200 | AG62: 1200 | AH62: 1200 | AJ62: 1200 | AK62: 1200 | AN62: 14437.5 | AO62: 14400 | AP62: -37.5
A63: 5007 | B63: Contract Labor Expense | C63: 150 | D63: 0 | F63: 0 | G63: 0 | I63: 0 | J63: 0 | L63: 315 | M63: 0 | O63: 0 | P63: 0 | R63: 260 | S63: 0 | U63: 0 | V63: 0 | X63: 0 | Y63: 0 | AD63: 0 | AE63: 0 | AG63: 0 | AH63: 0 | AJ63: 0 | AK63: 0 | AN63: 725 | AO63: 0 | AP63: -725
A64: 5009 | B64: Contributions Expense | C64: 103.14 | D64: 0 | F64: 100 | G64: 0 | I64: 215 | J64: 0 | L64: 0 | M64: 0 | O64: 0 | P64: 0 | R64: 0 | S64: 0 | U64: 0 | V64: 0 | X64: 0 | Y64: 0 | AD64: 0 | AE64: 0 | AG64: 0 | AH64: 0 | AJ64: 0 | AK64: 0 | AN64: 418.14 | AO64: 0 | AP64: -418.14
A65: 5011 | B65: Cr Card Processing & Bank Charges Expense | C65: 224.29 | D65: =D60*0.017 -> 333.72088 | F65: 268.15 | G65: =G60*0.017 -> 508.31904 | I65: 321.76 | J65: =J60*0.017 -> 519.63254 | L65: 162.35 | M65: =M60*0.017 -> 321.55279 | O65: 240.82 | P65: =P60*0.017 -> 449.58829 | R65: 83.79 | S65: =S60*0.017 -> 304.25954 | U65: 52.5 | V65: =V60*0.017 -> 400.82804 | X65: 183.47 | Y65: =Y60*0.017 -> 250.78332 | AA65: 70.6 | AB65: =AB60*0.017 -> 255.96254 | AD65: 268.68 | AE65: =AE60*0.017 -> 297.95679 | AG65: 180 | AH65: =AH60*0.017 -> -1.95296 | AJ65: 180 | AK65: =AK60*0.017 -> 245.48204 | AN65: 2236.41 | AO65: 3886.13285 | AP65: 1649.72285
A66: 5015 | B66: Dues & Subscriptions Expense | C66: 151 | D66: 250 | F66: 696 | G66: 250 | I66: 476 | J66: 250 | L66: 200 | M66: 250 | O66: 101 | P66: 250 | R66: 347 | S66: 250 | U66: 300.82 | V66: 250 | X66: 121 | Y66: 250 | AA66: 121 | AB66: 250 | AD66: 171 | AE66: 250 | AG66: 250 | AH66: 250 | AJ66: 250 | AK66: 250 | AN66: 3184.82 | AO66: 3000 | AP66: -184.82
B67: TOTAL | C67: =SUM(C61:C66) -> 1878.43 | D67: =SUM(D61:D66) -> 2133.72088 | F67: =SUM(F61:F66) -> 2064.15 | G67: =SUM(G61:G66) -> 2308.31904 | I67: =SUM(I61:I66) -> 2637.76 | J67: =SUM(J61:J66) -> 2319.63254 | L67: =SUM(L61:L66) -> 2489.85 | M67: =SUM(M61:M66) -> 2121.55279 | O67: =SUM(O61:O66) -> 2116.82 | P67: =SUM(P61:P66) -> 2249.58829 | R67: =SUM(R61:R66) -> 1690.79 | S67: =SUM(S61:S66) -> 2104.25954 | U67: =SUM(U61:U66) -> 1403.32 | V67: =SUM(V61:V66) -> 2200.82804 | X67: =SUM(X61:X66) -> 1454.47 | Y67: =SUM(Y61:Y66) -> 2050.78332 | AA67: =SUM(AA61:AA66) -> 2256.2 | AB67: =SUM(AB61:AB66) -> 2055.96254 | AD67: =SUM(AD61:AD66) -> 2980.28 | AE67: =SUM(AE61:AE66) -> 2097.95679 | AG67: =SUM(AG61:AG66) -> 1630 | AH67: =SUM(AH61:AH66) -> 1798.04704 | AJ67: =SUM(AJ61:AJ66) -> 1630 | AK67: =SUM(AK61:AK66) -> 2045.48204 | AN67: =SUM(AN61:AN66) -> 24232.07 | AO67: =SUM(AO61:AO66) -> 25486.13285 | AP67: 1254.06285 | AQ67: =((AO67-AN67)/AN67) -> 0.05175219657
A68: 5018 | B68: Insurance Expense | C68: 0 | D68: 0 | F68: 0 | G68: 0 | J68: 0 | L68: 0 | M68: 0 | O68: 0 | P68: 0 | R68: 0 | S68: 0 | U68: 0 | V68: 0 | X68: 0 | Y68: 0 | AA68: 0 | AB68: 0 | AD68: 0 | AE68: 0 | AG68: 0 | AH68: 0 | AJ68: 0 | AK68: 0 | AN68: =C68+F68+I68+L68+O68+R68+U68+X68+AA68+AD68+AG68+AJ68 -> 0 | AO68: =D68+G68+J68+M68+P68+S68+V68+Y68+AB68+AE68+AH68+AK68 -> 0 | AP68: 0
A69: 5019 | B69: General Insurance Expense | C69: 0 | D69: 0 | F69: 0 | G69: 0 | I69: 0 | J69: 0 | L69: 1009 | M69: 1000 | O69: 964 | P69: 1000 | R69: 0 | S69: 0 | U69: 0 | V69: 0 | X69: 0 | Y69: 0 | AA69: 0 | AB69: 0 | AD69: 0 | AE69: 0 | AG69: 0 | AH69: 0 | AJ69: 0 | AK69: 0 | AN69: =C69+F69+I69+L69+O69+R69+U69+X69+AA69+AD69+AG69+AJ69 -> 1973 | AO69: =D69+G69+J69+M69+P69+S69+V69+Y69+AB69+AE69+AH69+AK69 -> 2000 | AP69: 27
A70: 5018 | B70: TOTAL INSURANCE EXPENSE | C70: =C69 -> 0 | D70: =D69 -> 0 | F70: =F69 -> 0 | G70: =G69 -> 0 | I70: =I69 -> 0 | J70: =J69 -> 0 | L70: =L69 -> 1009 | M70: =M69 -> 1000 | O70: =O69 -> 964 | P70: =P69 -> 1000 | R70: =R69 -> 0 | S70: =S69 -> 0 | U70: =U69 -> 0 | V70: =V69 -> 0 | X70: =X69 -> 0 | Y70: =Y69 -> 0 | AA70: =AA69 -> 0 | AB70: =AB69 -> 0 | AD70: =AD69 -> 0 | AE70: =AE69 -> 0 | AG70: =AG69 -> 0 | AH70: =AH69 -> 0 | AJ70: =AJ69 -> 0 | AK70: =AK69 -> 0 | AN70: =SUM(AN68:AN69) -> 1973 | AO70: =SUM(AO68:AO69) -> 2000 | AP70: 27 | AQ70: =((AO70-AN70)/AN70) -> 0.01368474404
A71: 5023 | B71: Meeting/Conventions Expense | C71: 250 | D71: 50 | F71: 125 | G71: 50 | I71: 0 | J71: 50 | L71: 0 | M71: 50 | O71: 0 | P71: 50 | R71: 0 | S71: 50 | U71: 0 | V71: 50 | X71: 145 | Y71: 50 | AA71: 0 | AB71: 50 | AD71: 0 | AE71: 50 | AG71: 0 | AH71: 50 | AJ71: 0 | AK71: 50 | AN71: =C71+F71+I71+L71+O71+R71+U71+X71+AA71+AD71+AG71+AJ71 -> 520 | AO71: 600 | AP71: 80
A72: 5025 | B72: Membership Expense | C72: 218.33 | D72: 175 | F72: 46.9 | G72: 175 | I72: 361.5 | J72: 175 | L72: 429.38 | M72: 175 | O72: 190.87 | P72: 175 | R72: 87.86 | S72: 175 | U72: 240.27 | V72: 175 | X72: 140.31 | Y72: 175 | AA72: 16.14 | AB72: 175 | AD72: 0 | AE72: 175 | AG72: 0 | AH72: 175 | AJ72: 0 | AK72: 175 | AN72: 1731.56 | AO72: 2100 | AP72: 368.44
A73: 5030 | B73: Meals & Entertainment | C73: 0 | D73: 0 | F73: 0 | G73: 0 | I73: 0 | J73: 0 | L73: 0 | M73: 0 | O73: 0 | R73: 0 | S73: 0 | U73: 0 | V73: 0 | X73: 0 | Y73: 0 | AA73: 0 | AB73: 0 | AD73: 0 | AE73: 0 | AG73: 0 | AH73: 0 | AJ73: 0 | AK73: 0 | AN73: 0 | AO73: 0 | AP73: 0
A74: 5032 | B74: Meals - 50% | C74: 37.17 | D74: 0 | F74: 72.04 | G74: 0 | I74: 0 | J74: 0 | L74: 0 | M74: 0 | O74: 0 | P74: 0 | R74: 0 | S74: 0 | U74: 66.47 | V74: 0 | X74: 0 | Y74: 0 | AA74: 0 | AB74: 0 | AD74: 104.61 | AE74: 0 | AG74: 0 | AH74: 0 | AJ74: 0 | AK74: 0 | AN74: 280.29 | AO74: 0 | AP74: -280.29
A75: 5030 | B75: TOTAL MEALS & ENTERTAINMENT EXPENSE | C75: =SUM(C71:C74) -> 505.5 | D75: =SUM(D71:D74) -> 225 | F75: =SUM(F71:F74) -> 243.94 | G75: =SUM(G71:G74) -> 225 | I75: =SUM(I71:I74) -> 361.5 | J75: =SUM(J71:J74) -> 225 | L75: =SUM(L71:L74) -> 429.38 | M75: =SUM(M71:M74) -> 225 | O75: =SUM(O71:O74) -> 190.87 | P75: =SUM(P71:P74) -> 225 | R75: =SUM(R71:R74) -> 87.86 | S75: =SUM(S71:S74) -> 225 | U75: =SUM(U71:U74) -> 306.74 | V75: =SUM(V71:V74) -> 225 | X75: =SUM(X71:X74) -> 285.31 | Y75: =SUM(Y71:Y74) -> 225 | AA75: =SUM(AA71:AA74) -> 16.14 | AB75: =SUM(AB71:AB74) -> 225 | AD75: =SUM(AD71:AD74) -> 104.61 | AE75: =SUM(AE71:AE74) -> 225 | AG75: =SUM(AG71:AG74) -> 0 | AH75: =SUM(AH71:AH74) -> 225 | AJ75: =SUM(AJ71:AJ74) -> 0 | AK75: =SUM(AK71:AK74) -> 225 | AN75: =SUM(AN71:AN74) -> 2531.85 | AO75: =SUM(AO71:AO74) -> 2700 | AP75: 168.15 | AQ75: =((AO75-AN75)/AN75) -> 0.06641388708
A76: 5031 | B76: Office Supplies Expense | C76: 167.4 | D76: 167.4 | F76: 2266.18 | G76: 2266.18 | I76: 117.19 | J76: 117.19 | L76: 430.8 | M76: 430.8 | O76: 245.92 | P76: 245.92 | R76: 31.57 | S76: 31.57 | U76: 196.9 | V76: 196.9 | X76: -24.23 | AA76: 0 | AB76: 0 | AD76: 79.47 | AE76: 79.47 | AG76: 0 | AH76: 0 | AJ76: 0 | AK76: 0 | AN76: =C76+F76+I76+L76+O76+R76+U76+X76+AA76+AD76+AG76+AJ76 -> 3511.2 | AO76: 3535.43 | AP76: 24.23
A77: 5033 | B77: Payroll Processing Expense | C77: 102 | D77: 102 | F77: 100.25 | G77: 100.25 | I77: 102 | J77: 102 | L77: 102 | M77: 102 | O77: 102 | P77: 102 | R77: 195.25 | S77: 195.25 | U77: 100.25 | V77: 100.25 | X77: 7 | Y77: 7 | AA77: 102 | AB77: 102 | AD77: 107 | AE77: 107 | AG77: 100 | AH77: 100 | AJ77: 100 | AK77: 100 | AN77: 1219.75 | AO77: 1219.75 | AP77: 0
A78: 5035 | B78: Payroll Tax Expense | C78: 783.79 | D78: =D96*7.7% -> 947.09923 | F78: 677.68 | G78: =G96*7.7% -> 947.09923 | I78: 677.87 | J78: =J96*7.7% -> 947.09923 | L78: 742.23 | M78: =M96*7.7% -> 947.09923 | O78: 730.64 | P78: =P96*7.7% -> 947.09923 | R78: 663.73 | S78: =S96*7.7% -> 947.09923 | U78: 622.54 | V78: =V96*7.7% -> 947.09923 | X78: 737.49 | Y78: =Y96*7.7% -> 947.09923 | AA78: 740.95 | AB78: =AB96*7.7% -> 947.09923 | AD78: 723.78 | AE78: =AE96*7.7% -> 947.09923 | AG78: =AG96*7.7% -> 690.43282 | AH78: =AH96*7.7% -> 947.09923 | AJ78: =AJ96*7.7% -> 690.43282 | AK78: =AK96*7.7% -> 947.09923 | AN78: 8481.56564 | AO78: 11365.19076 | AP78: 2883.62512
A79: 5039 | B79: Postage & Delivery Expense | C79: 0 | D79: 0 | F79: 202 | G79: 202 | I79: 36.67 | J79: 36.67 | L79: 63 | M79: 63 | O79: 201 | P79: 201 | R79: 0 | S79: 0 | U79: 0 | V79: 0 | X79: 0 | Y79: 0 | AA79: 200 | AB79: 200 | AD79: 0 | AE79: 200 | AG79: 0 | AH79: 200 | AJ79: 0 | AK79: 200 | AN79: 702.67 | AO79: 1302.67 | AP79: 600
A80: 5048 | B80: Rent Expense - PATH | C80: 776.46 | D80: 776.46 | F80: 776.46 | G80: 776.46 | I80: 776.46 | J80: 776.46 | L80: 776.46 | M80: 776.46 | O80: 776.46 | P80: 776.46 | R80: 776.46 | S80: 776.46 | U80: 776.46 | V80: 776.46 | X80: 776.46 | Y80: 776.46 | AA80: 776.46 | AB80: 776.46 | AD80: 776.46 | AE80: 776.46 | AG80: 776.46 | AH80: 776.46 | AJ80: 776.46 | AK80: 776.46 | AN80: 9317.52 | AO80: 9317.52 | AP80: 0
A81: 5049 | B81: Repairs & Maintenance Expense | C81: 0 | D81: 0 | F81: 0 | G81: 0 | I81: 0 | J81: 0 | L81: 433.65 | M81: 433.65 | O81: 0 | P81: 0 | R81: 0 | S81: 0 | U81: 0 | V81: 0 | X81: 0 | Y81: 0 | AA81: 0 | AB81: 0 | AD81: 0 | AE81: 0 | AG81: 0 | AH81: 0 | AJ81: 0 | AK81: 0 | AN81: 433.65 | AO81: 433.65 | AP81: 0
A82: 5051 | B82: Simple IRA Company Contribution Expense | C82: 230 | D82: 230 | F82: 230 | G82: 230 | I82: 230 | J82: 230 | L82: 230 | M82: 230 | O82: 230 | P82: 230 | R82: 115 | S82: 115 | U82: 115 | V82: 115 | X82: 230 | Y82: 230 | AA82: 230 | AB82: 230 | AD82: 230 | AE82: 230 | AG82: 230 | AH82: 230 | AJ82: 230 | AK82: 230 | AN82: 2530 | AO82: 2530 | AP82: 0
B83: TOTAL EXPENSE | C83: =SUM(C76:C82) -> 2059.65 | D83: =SUM(D76:D82) -> 2222.95923 | F83: =SUM(F76:F82) -> 4252.57 | G83: =SUM(G76:G82) -> 4521.98923 | I83: =SUM(I76:I82) -> 1940.19 | J83: =SUM(J76:J82) -> 2209.41923 | L83: =SUM(L76:L82) -> 2778.14 | M83: =SUM(M76:M82) -> 2983.00923 | O83: =SUM(O76:O82) -> 2286.02 | P83: =SUM(P76:P82) -> 2502.47923 | R83: =SUM(R76:R82) -> 1782.01 | S83: =SUM(S76:S82) -> 2065.37923 | U83: =SUM(U76:U82) -> 1811.15 | V83: =SUM(V76:V82) -> 2135.70923 | X83: =SUM(X76:X82) -> 1726.72 | Y83: =SUM(Y76:Y82) -> 1960.55923 | AA83: =SUM(AA76:AA82) -> 2049.41 | AB83: =SUM(AB76:AB82) -> 2255.55923 | AD83: =SUM(AD76:AD82) -> 1916.71 | AE83: =SUM(AE76:AE82) -> 2340.02923 | AG83: =SUM(AG76:AG82) -> 1796.89282 | AH83: =SUM(AH76:AH82) -> 2253.55923 | AJ83: =SUM(AJ76:AJ82) -> 1796.89282 | AK83: =SUM(AK76:AK82) -> 2253.55923 | AN83: =SUM(AN76:AN82) -> 26196.35564 | AO83: =SUM(AO76:AO82) -> 29704.21076 | AP83: 3507.85512 | AQ83: =((AO83-AN83)/AN83) -> 0.133906226
A84: 5053 | B84: Technology Expense | C84: 0 | D84: 0 | F84: 0 | G84: 0 | I84: 0 | J84: 0 | L84: 0 | M84: 0 | O84: 0 | P84: 0 | R84: 0 | S84: 0 | U84: 0 | V84: 0 | X84: 0 | Y84: 0 | AA84: 0 | AB84: 0 | AD84: 0 | AE84: 0 | AG84: 0 | AH84: 0 | AJ84: 0 | AK84: 0 | AN84: =C84+F84+I84+L84+O84+R84+U84+X84+AA84+AD84+AG84+AJ84 -> 0 | AO84: 0 | AP84: 0
A85: 6054 | B85: Software Costs | C85: 831.19 | D85: 1000 | F85: 1208.6 | G85: 1000 | I85: 844.72 | J85: 1000 | L85: 3128.65 | M85: 1000 | O85: 723.14 | P85: 1000 | R85: 953.99 | S85: 1000 | U85: 608.99 | V85: 1000 | X85: 590.68 | Y85: 1000 | AA85: 605.5 | AB85: 1000 | AD85: 694.07 | AE85: 1000 | AG85: 600 | AH85: 1000 | AJ85: 600 | AK85: 1000 | AN85: 11389.53 | AO85: 12000 | AP85: 610.47
A86: 6055 | B86: Utility Costs | C86: 265.46 | D86: 250 | F86: 0 | G86: 250 | I86: 272.92 | J86: 250 | L86: 272.92 | M86: 250 | O86: 272.92 | P86: 250 | R86: 273.03 | S86: 250 | U86: 273.03 | V86: 250 | X86: 273.03 | Y86: 250 | AA86: 274.12 | AB86: 250 | AD86: 274.122 | AE86: 250 | AG86: 275 | AH86: 250 | AJ86: 275 | AK86: 250 | AN86: 3001.552 | AO86: 3000 | AP86: -1.552
A87: 6056 | B87: Equipment Rental | C87: 405.62 | D87: 300 | F87: 0 | G87: 300 | I87: 569.17 | J87: 300 | L87: 460.37 | M87: 300 | O87: 616.16 | P87: 300 | R87: 187.86 | S87: 300 | U87: 0 | V87: 300 | X87: 187.86 | Y87: 300 | AA87: 266.36 | AB87: 300 | AD87: 407.37 | AE87: 300 | AG87: 300 | AH87: 300 | AJ87: 300 | AK87: 300 | AN87: 3700.77 | AO87: 3600 | AP87: -100.77
A88: 6057 | B88: IT Services | C88: 104 | D88: 100 | F88: 0 | G88: 100 | I88: 78 | J88: 100 | L88: 535 | M88: 100 | O88: 0 | P88: 100 | R88: 275 | S88: 100 | U88: 100 | V88: 100 | X88: 0 | Y88: 100 | AA88: 25 | AB88: 100 | AD88: 0 | AE88: 100 | AG88: 100 | AH88: 100 | AJ88: 100 | AK88: 100 | AN88: 1317 | AO88: 1200 | AP88: -117
A89: 5053 | B89: TOTAL TECHNOLOGY EXPENSE | C89: =SUM(C84:C88) -> 1606.27 | D89: =SUM(D84:D88) -> 1650 | F89: =SUM(F84:F88) -> 1208.6 | G89: =SUM(G84:G88) -> 1650 | I89: =SUM(I84:I88) -> 1764.81 | J89: =SUM(J84:J88) -> 1650 | L89: =SUM(L84:L88) -> 4396.94 | M89: =SUM(M84:M88) -> 1650 | O89: =SUM(O84:O88) -> 1612.22 | P89: =SUM(P84:P88) -> 1650 | R89: =SUM(R84:R88) -> 1689.88 | S89: =SUM(S84:S88) -> 1650 | U89: =SUM(U84:U88) -> 982.02 | V89: =SUM(V84:V88) -> 1650 | X89: =SUM(X84:X88) -> 1051.57 | Y89: =SUM(Y84:Y88) -> 1650 | AA89: =SUM(AA84:AA88) -> 1170.98 | AB89: =SUM(AB84:AB88) -> 1650 | AD89: =SUM(AD84:AD88) -> 1375.562 | AE89: =SUM(AE84:AE88) -> 1650 | AG89: =SUM(AG84:AG88) -> 1275 | AH89: =SUM(AH84:AH88) -> 1650 | AJ89: =SUM(AJ84:AJ88) -> 1275 | AK89: =SUM(AK84:AK88) -> 1650 | AN89: =SUM(AN84:AN88) -> 19408.852 | AO89: =SUM(AO84:AO88) -> 19800 | AP89: 391.148 | AQ89: =((AO89-AN89)/AN89) -> 0.02015307242
A90: 5055 | B90: Telephone Expense | C90: 128.81 | D90: 75 | F90: 128.81 | G90: 75 | I90: 0 | J90: 75 | L90: 0 | M90: 75 | O90: 0 | P90: 75 | R90: 0 | S90: 75 | U90: 171.91 | V90: 75 | X90: 108.36 | Y90: 75 | AA90: 108.36 | AB90: 75 | AD90: 108.36 | AE90: 75 | AG90: 75 | AH90: 75 | AJ90: 75 | AK90: 75 | AN90: =C90+F90+I90+L90+O90+R90+U90+X90+AA90+AD90+AG90+AJ90 -> 904.61 | AO90: =D90+G90+J90+M90+P90+S90+V90+Y90+AB90+AE90+AH90+AK90 -> 900 | AP90: -4.61
B91: TOTAL TELEPHONE EXPENSE | C91: =C90 -> 128.81 | D91: =D90 -> 75 | F91: =F90 -> 128.81 | G91: =G90 -> 75 | I91: =I90 -> 0 | J91: =J90 -> 75 | L91: =L90 -> 0 | M91: =M90 -> 75 | O91: =O90 -> 0 | P91: =P90 -> 75 | R91: =R90 -> 0 | S91: =S90 -> 75 | U91: =U90 -> 171.91 | V91: =V90 -> 75 | X91: =X90 -> 108.36 | Y91: =Y90 -> 75 | AA91: =AA90 -> 108.36 | AB91: =AB90 -> 75 | AD91: =AD90 -> 108.36 | AE91: =AE90 -> 75 | AG91: =SUM(AG90) -> 75 | AH91: =SUM(AH90) -> 75 | AJ91: =SUM(AJ90) -> 75 | AK91: =SUM(AK90) -> 75 | AN91: =SUM(AN90) -> 904.61 | AO91: =SUM(AO90) -> 900 | AP91: -4.61 | AQ91: =((AO91-AN91)/AN91) -> -0.005096118769
A92: 5060 | B92: Wages Expense | C92: 0 | D92: 0 | F92: 0 | G92: 0 | I92: 0 | J92: 0 | L92: 0 | M92: 0 | O92: 0 | P92: 0 | R92: 0 | S92: 0 | U92: 0 | V92: 0 | X92: 0 | Y92: 0 | AA92: 0 | AB92: 0 | AD92: 0 | AE92: 0 | AG92: 0 | AH92: 0 | AJ92: 0 | AK92: 0 | AN92: =C92+F92+I92+L92+O92+R92+U92+X92+AA92+AD92+AG92+AJ92 -> 0 | AO92: 0 | AP92: 0
A93: 5063 | B93: Wages_Admin | C93: 1515 | D93: 1300 | F93: 1050 | G93: 1300 | I93: 1065 | J93: 1300 | L93: 1815 | M93: 1300 | O93: 1680 | P93: 1300 | R93: 900 | S93: 1300 | U93: 420 | V93: 1300 | X93: 1760 | Y93: 1300 | AA93: 1800 | AB93: 1300 | AD93: 1600 | AE93: 1300 | AG93: 1300 | AH93: 1300 | AJ93: 1300 | AK93: 1300 | AN93: 16205 | AO93: 15600 | AP93: -605
B94: Wages_Event Manager | D94: 3333.33 | G94: 3333.33 | J94: 3333.33 | M94: 3333.33 | P94: 3333.33 | S94: 3333.33 | V94: 3333.33 | Y94: 3333.33 | AB94: 3333.33 | AE94: 3333.33 | AH94: 3333.33 | AK94: 3333.33 | AN94: 0 | AO94: 39999.96 | AP94: 39999.96
A95: 5064 | B95: Wages_Exec Director | C95: 7666.66 | D95: 7666.66 | F95: 7666.66 | G95: 7666.66 | I95: 7666.66 | J95: 7666.66 | L95: 7666.66 | M95: 7666.66 | O95: 7666.66 | P95: 7666.66 | R95: 7666.66 | S95: 7666.66 | U95: 7666.66 | V95: 7666.66 | X95: 7666.66 | Y95: 7666.66 | AA95: 7666.66 | AB95: 7666.66 | AD95: 7666.66 | AE95: 7666.66 | AG95: 7666.66 | AH95: 7666.66 | AJ95: 7666.66 | AK95: 7666.66 | AN95: 91999.92 | AO95: 91999.92 | AP95: 0
A96: 5060 | B96: TOTAL WAGES EXPENSE | C96: =SUM(C92:C95) -> 9181.66 | D96: =SUM(D92:D95) -> 12299.99 | F96: =SUM(F92:F95) -> 8716.66 | G96: =SUM(G92:G95) -> 12299.99 | I96: =SUM(I92:I95) -> 8731.66 | J96: =SUM(J92:J95) -> 12299.99 | L96: =SUM(L92:L95) -> 9481.66 | M96: =SUM(M92:M95) -> 12299.99 | O96: =SUM(O92:O95) -> 9346.66 | P96: =SUM(P92:P95) -> 12299.99 | R96: =SUM(R92:R95) -> 8566.66 | S96: =SUM(S92:S95) -> 12299.99 | U96: =SUM(U92:U95) -> 8086.66 | V96: =SUM(V92:V95) -> 12299.99 | W96: =SUM(W92:W95) -> 0 | X96: =SUM(X92:X95) -> 9426.66 | Y96: =SUM(Y92:Y95) -> 12299.99 | AA96: =SUM(AA92:AA95) -> 9466.66 | AB96: =SUM(AB92:AB95) -> 12299.99 | AD96: =SUM(AD92:AD95) -> 9266.66 | AE96: =SUM(AE92:AE95) -> 12299.99 | AG96: =SUM(AG92:AG95) -> 8966.66 | AH96: =SUM(AH92:AH95) -> 12299.99 | AJ96: =SUM(AJ92:AJ95) -> 8966.66 | AK96: =SUM(AK92:AK95) -> 12299.99 | AN96: =SUM(AN92:AN95) -> 108204.92 | AO96: =SUM(AO92:AO95) -> 147599.88 | AP96: 39394.96 | AQ96: =((AO96-AN96)/AN96) -> 0.3640773451
A97: 5065 | B97: Website Development Expense | C97: 0 | D97: 150 | F97: 0 | G97: 150 | I97: 250 | J97: 150 | L97: 149 | M97: 150 | O97: 149 | P97: 150 | R97: 151.98 | S97: 150 | U97: 151.98 | V97: 150 | X97: 151.98 | Y97: 150 | AA97: 151.98 | AB97: 150 | AD97: 151.98 | AE97: 150 | AG97: 151.98 | AH97: 150 | AJ97: 151.98 | AK97: 150 | AN97: =C97+F97+I97+L97+O97+R97+U97+X97+AA97+AD97+AG97+AJ97 -> 1611.86 | AO97: =D97+G97+J97+M97+P97+S97+V97+Y97+AB97+AE97+AH97+AK97 -> 1800 | AP97: 188.14
B98: Unapplied Cash Bill Payment Expense - 1 | C98: 0 | D98: 0 | F98: 0 | G98: 0 | I98: 0 | J98: 0 | L98: 0 | M98: 0 | O98: 0 | P98: 0 | R98: 0 | S98: 0 | U98: 0 | V98: 0 | X98: 0 | Y98: 0 | AA98: 0 | AB98: 0 | AD98: 0 | AE98: 0 | AG98: 0 | AH98: 0 | AJ98: 0 | AK98: 0 | AN98: =C98+F98+I98+L98+O98+R98+U98+X98+AA98+AD98+AG98+AJ98 -> 0 | AO98: =D98+G98+J98+M98+P98+S98+V98+Y98+AB98+AE98+AH98+AK98 -> 0 | AP98: 0
C99: =SUM(C97:C98) -> 0 | D99: =SUM(D97:D98) -> 150 | F99: =SUM(F97:F98) -> 0 | G99: =SUM(G97:G98) -> 150 | I99: =SUM(I97:I98) -> 250 | J99: =SUM(J97:J98) -> 150 | L99: =SUM(L97:L98) -> 149 | M99: =SUM(M97:M98) -> 150 | O99: =SUM(O97:O98) -> 149 | P99: =SUM(P97:P98) -> 150 | R99: =SUM(R97:R98) -> 151.98 | S99: =SUM(S97:S98) -> 150 | U99: =SUM(U97:U98) -> 151.98 | V99: =SUM(V97:V98) -> 150 | X99: =SUM(X97:X98) -> 151.98 | Y99: =SUM(Y97:Y98) -> 150 | AA99: =SUM(AA97:AA98) -> 151.98 | AB99: =SUM(AB97:AB98) -> 150 | AD99: =SUM(AD97:AD98) -> 151.98 | AE99: =SUM(AE97:AE98) -> 150 | AG99: =SUM(AG97:AG98) -> 151.98 | AH99: =SUM(AH97:AH98) -> 150 | AJ99: =SUM(AJ97:AJ98) -> 151.98 | AK99: =SUM(AK97:AK98) -> 150 | AN99: =SUM(AN97:AN98) -> 1611.86 | AO99: =SUM(AO97:AO98) -> 1800 | AP99: 188.14 | AQ99: =((AO99-AN99)/AN99) -> 0.116722296
B101: TOTAL INCOME | C101: =C60 -> 13164.76 | D101: 19630.64 | E101: 0.4911506173 | F101: 19708.39 | G101: 29901.12 | H101: 0.5171772022 | I101: 25342.35 | J101: 30566.62 | K101: 0.2061478119 | L101: 9017.63 | M101: 18914.87 | N101: 1.097543368 | O101: 20133.47 | P101: 26446.37 | Q101: 0.3135525073 | R101: 11390.61 | S101: 17897.62 | T101: 0.5712608895 | U101: 9522.95 | V101: 23578.12 | W101: 1.475926052 | X101: 11553.74 | Y101: 14751.96 | Z101: 0.27681253 | AA101: 1966.54 | AB101: 15056.62 | AC101: 0 | AD101: 60.35 | AE101: 17526.87 | AF101: 289.4203811 | AG101: 2421.77 | AH101: -114.88 | AI101: -1.047436379 | AJ101: 4676.42 | AK101: 14440.12 | AN101: =AN60 -> 128958.98 | AO101: =AO60 -> 228596.05 | AP101: =AO101-AN101 -> 99637.07 | AQ101: =((AO101-AN101)/AN101) -> 0.7726260707
B102: TOTAL EXPENSES | C102: =C67+C70+C75+C83+C89+C91+C96+C99 -> 15360.32 | D102: =D67+D70+D75+D83+D89+D91+D96+D99 -> 18756.67011 | F102: =F67+F70+F75+F83+F89+F91+F96+F99 -> 16614.73 | G102: =G67+G70+G75+G83+G89+G91+G96+G99 -> 21230.29827 | I102: =I67+I70+I75+I83+I89+I91+I96+I99 -> 15685.92 | J102: =J67+J70+J75+J83+J89+J91+J96+J99 -> 18929.04177 | L102: =L67+L70+L75+L83+L89+L91+L96+L99 -> 20733.97 | M102: =M67+M70+M75+M83+M89+M91+M96+M99 -> 20504.55202 | O102: =O67+O70+O75+O83+O89+O91+O96+O99 -> 16665.59 | P102: =P67+P70+P75+P83+P89+P91+P96+P99 -> 20152.05752 | R102: =R67+R70+R75+R83+R89+R91+R96+R99 -> 13969.18 | S102: =S67+S70+S75+S83+S89+S91+S96+S99 -> 18569.62877 | U102: =U67+U70+U75+U83+U89+U91+U96+U99 -> 12913.78 | V102: =V67+V70+V75+V83+V89+V91+V96+V99 -> 18736.52727 | X102: =X67+X70+X75+X83+X89+X91+X96+X99 -> 14205.07 | Y102: =Y67+Y70+Y75+Y83+Y89+Y91+Y96+Y99 -> 18411.33255 | AA102: =AA67+AA70+AA75+AA83+AA89+AA91+AA96+AA99 -> 15219.73 | AB102: =AB67+AB70+AB75+AB83+AB89+AB91+AB96+AB99 -> 18711.51177 | AD102: =AD67+AD70+AD75+AD83+AD89+AD91+AD96+AD99 -> 15904.162 | AE102: =AE67+AE70+AE75+AE83+AE89+AE91+AE96+AE99 -> 18837.97602 | AG102: =AG67+AG70+AG75+AG83+AG89+AG91+AG96+AG99 -> 13895.53282 | AH102: =AH67+AH70+AH75+AH83+AH89+AH91+AH96+AH99 -> 18451.59627 | AJ102: =AJ67+AJ70+AJ75+AJ83+AJ89+AJ91+AJ96+AJ99 -> 13895.53282 | AK102: =AK67+AK70+AK75+AK83+AK89+AK91+AK96+AK99 -> 18699.03127 | AN102: =AN67+AN70+AN75+AN83+AN89+AN91+AN96+AN99 -> 185063.5176 | AO102: =AO67+AO70+AO75+AO83+AO89+AO91+AO96+AO99 -> 229990.2236 | AP102: =AO102-AN102 -> 44926.70597 | AQ102: =((AO102-AN102)/AN102) -> 0.2427637091
B103: NET OPERATING INCOME | C103: =C101-C102 -> -2195.56 | D103: 873.96989 | E103: 0.4911506173 | F103: 3093.66 | G103: 8670.82173 | H103: 0.5171772022 | I103: 9656.43 | J103: 11637.57823 | K103: 0.2061478119 | L103: -11716.34 | M103: -1589.68202 | N103: 1.097543368 | O103: 3467.88 | P103: 6294.31248 | Q103: 0.3135525073 | R103: -2578.57 | S103: -672.00877 | T103: 0.5712608895 | U103: -3390.83 | V103: 4841.59273 | W103: 1.475926052 | X103: -2651.33 | Y103: -3659.37255 | Z103: 0.27681253 | AA103: -13253.19 | AB103: -3654.89177 | AC103: 0 | AD103: -15843.812 | AE103: -1311.10602 | AF103: 289.4203811 | AG103: -11473.76282 | AH103: -18566.47627 | AI103: -1.047436379 | AJ103: -9219.11282 | AK103: -4258.91127 | AN103: =AN101-AN102 -> -56104.53764 | AO103: =AO101-AO102 -> -1394.17361 | AP103: =AP101-AP102 -> 54710.36403 | AQ103: =((AO103-AN103)/AN103) -> -0.9751504305

Sheet 2023 ACTUAL
C1: JANUARY | D1: FEBRUARY | E1: MARCH | F1: APRIL | G1: MAY | H1: JUNE | I1: JULY | J1: AUGUST | K1: SEPTEMBER | L1: OCTOBER | M1: NOVEMBER | N1: DECEMBER | O1: TOTAL
C2: 2023 | D2: 2023 | E2: 2023 | F2: 2023 | G2: 2023 | H2: 2023 | I2: 2023 | J2: 2023 | K2: 2023 | L2: 2023 | M2: 2023 | N2: 2023 | O2: 2023
A3: 4011 | B3: Admin Fees Income | C3: 250 | D3: 250 | E3: 250 | F3: 500 | G3: 300 | H3: 50 | I3: 100 | J3: 450 | K3: 100 | L3: 150 | M3: 200 | O3: =C3+D3+E3+F3+G3+H3+I3+J3+K3+L3+M3+N3 -> 2600
A4: 4012 | B4: Renewal Member Dues Income | C4: 3180 | D4: 8945 | E4: 5695 | F4: 6780 | G4: 7622.5 | H4: 3115 | I4: 5015 | J4: 6850 | K4: 3127.5 | L4: 6555 | M4: 2450 | O4: =C4+D4+E4+F4+G4+H4+I4+J4+K4+L4+M4+N4 -> 59335
A5: 4013 | B5: New Member Dues Income | C5: 1180 | D5: 1315 | E5: 1345 | F5: 3160 | G5: 1570 | H5: 245 | I5: 490 | J5: 2215 | K5: 410 | L5: 835 | M5: 1215 | O5: =C5+D5+E5+F5+G5+H5+I5+J5+K5+L5+M5+N5 -> 13980
A6: TOTAL DUES INCOME | C6: =SUM(C3:C5) -> 4610 | D6: 10510 | E6: 7290 | F6: 10440 | G6: 9492.5 | H6: 3410 | I6: 5605 | J6: 9515 | K6: 3637.5 | L6: 7540 | M6: 3865 | N6: 0 | O6: =SUM(C6:N6) -> 75915
A7: 4111 | B7: Valor Awards Sponsorship Income | D7: 1550 | E7: 3725 | F7: 5066.07 | O7: =C7+D7+E7+F7+G7+H7+I7+J7+K7+L7+M7+N7 -> 10341.07
A8: 4112 | B8: Valor Awards Attendee Income | E8: 250 | F8: 1500 | O8: =C8+D8+E8+F8+G8+H8+I8+J8+K8+L8+M8+N8 -> 1750
A9: 4115 | B9: Valor Awards Expense | F9: -10914.58 | G9: -21.06 | O9: =C9+D9+E9+F9+G9+H9+I9+J9+K9+L9+M9+N9 -> -10935.64
C10: =SUM(C7:C9) -> 0 | D10: 1550 | E10: 3975 | F10: -4348.51 | G10: -21.06 | H10: 0 | I10: 0 | J10: 0 | K10: 0 | L10: 0 | M10: 0 | N10: 0 | O10: =SUM(C10:N10) -> 1155.43
A11: 4121 | B11: Festival Sponsorship Income | J11: 1750 | O11: =C11+D11+E11+F11+G11+H11+I11+J11+K11+L11+M11++N11 -> 1750
A12: 4123 | B12: Festival Booth Fees Income | G12: 9600 | H12: 5237.5 | I12: 4550 | J12: 525 | K12: 1187.5 | L12: -7516.67 | O12: =C12+D12+E12+F12+G12+H12+I12+J12+K12+L12+M12++N12 -> 13583.33
A13: 4125 | B13: Festival Expense | C13: -103.98 | G13: -30 | I13: -50 | J13: -37.5 | K13: -474.28 | L13: -1588.45 | O13: =C13+D13+E13+F13+G13+H13+I13+J13+K13+L13+M13++N13 -> -2284.21
C14: =SUM(C11:C13) -> -103.98 | D14: 0 | E14: 0 | F14: 0 | G14: 9570 | H14: 5237.5 | I14: 4500 | J14: 2237.5 | K14: 713.22 | L14: -9105.12 | M14: 0 | N14: 0 | O14: =SUM(C14:N14) -> 13049.12
A15: 4132 | B15: Legislative Events Attendee Income | C15: 1160 | F15: 15 | H15: 30 | L15: 15 | M15: 20 | O15: =C15+D15+E15+F15+G15+H15+I15+J15+K15+L15+M15+N15 -> 1240
A16: 4135 | B16: Legislative Events Expense | D16: -754.07 | G16: -380.24 | L16: -16.24 | O16: =C16+D16+E16+F16+G16+H16+I16+J16+K16+L16+M16+N16 -> -1150.55
A17: 4137 | B17: Economic Summit Attendee Income | K17: 43 | O17: =C17+D17+E17+F17+G17+H17+I17+J17+K17+L17+M17+N17 -> 43
C18: =SUM(C15:C17) -> 1160 | D18: -754.07 | E18: 0 | F18: 15 | G18: -380.24 | H18: 30 | I18: 0 | J18: 0 | K18: 43 | L18: -1.24 | M18: 20 | N18: 0 | O18: =SUM(C18:N18) -> 132.45
A19: 4145 | B19: BPOY Expense | J19: -1842.75 | K19: -3761.22 | L19: -1842.75 | M19: -13596.66 | O19: =C19+D19+E19+F19+G19+H19+I19+J19+K19+L19+M19+N19 -> -21043.38
A20: 4141 | B20: BPOY Sponsorship Income | L20: 3400 | M20: 5551.98 | O20: =C20+D20+E20+F20+G20+H20+I20+J20+K20+L20+M20+N20 -> 8951.98
A21: 4142 | B21: BPOY Attendee Income | L21: 1600 | M21: 2250 | O21: =C21+D21+E21+F21+G21+H21+I21+J21+K21+L21+M21+N21 -> 3850
A22: 4145 | B22: BPOY Income | O22: =C22+D22+E22+F22+G22+H22+I22+J22+K22+L22+M22+N22 -> 0
C23: =SUM(C19:C22) -> 0 | D23: 0 | E23: 0 | F23: 0 | G23: 0 | H23: 0 | I23: 0 | J23: -1842.75 | K23: -3761.22 | L23: 3157.25 | M23: -5794.68 | N23: 0 | O23: =SUM(C23:N23) -> -8241.4
A24: 4161 | B24: Member Orientation Sponsorship | C24: 43.5 | D24: 34.5 | E24: 52.5 | F24: 44 | G24: 135.5 | H24: 41 | I24: 214.5 | J24: 24 | K24: 41 | L24: 24 | M24: 9 | O24: =C24+D24+E24+F24+G24+H24+I24+J24+K24+L24+M24+N24 -> 663.5
A25: 4165 | B25: Member Orientation Expenses | D25: -58.35 | F25: -158.94 | G25: -320.53 | H25: -77.35 | I25: -57.61 | J25: -66.47 | K25: -93.59 | M25: -24.01 | O25: =C25+D25+E25+F25+G25+H25+I25+J25+K25+L25+M25+N25 -> -856.85
C26: =SUM(C24:C25) -> 43.5 | D26: -23.85 | E26: 52.5 | F26: -114.94 | G26: -185.03 | H26: -36.35 | I26: 156.89 | J26: -42.47 | K26: -52.59 | L26: 24 | M26: -15.01 | N26: 0 | O26: =SUM(C26:N26) -> -193.35
A27: 4171 | B27: After 5 Sponsorship | C27: 150 | H27: 450 | J27: 1290 | K27: 100 | O27: =C27+D27+E27+F27+G27+H27+I27+J27+K27+L27+M27+N27 -> 1990
A28: 4175 | B28: After 5 Expense | F28: -720.82 | J28: -600 | K28: 100 | O28: =C28+D28+E28+F28+G28+H28+I28+J28+K28+L28+M28+N28 -> -1220.82
C29: =SUM(C27:C28) -> 150 | D29: 0 | E29: 0 | F29: -720.82 | G29: 0 | H29: 450 | I29: 0 | J29: 690 | K29: 200 | L29: 0 | M29: 0 | N29: 0 | O29: =SUM(C29:N29) -> 769.18
A30: 4185 | B30: Before 9 Expenses | C30: 0 | D30: -315.15 | G30: -104.24 | H30: -12 | O30: =C30+D30+E30+F30+G30+H30+I30+J30+K30+L30+M30+N30 -> -431.39
C31: =SUM(C30) -> 0 | D31: -315.15 | E31: 0 | F31: 0 | G31: -104.24 | H31: -12 | I31: 0 | J31: 0 | K31: 0 | L31: 0 | M31: 0 | N31: 0 | O31: =SUM(C31:N31) -> -431.39
A32: TOTAL EVENTS INCOME | C32: =C10+C14+C18+C23+C26+C29+C31 -> 1249.52 | D32: 456.93 | E32: 4027.5 | F32: -5169.27 | G32: 8879.43 | H32: 5669.15 | I32: 4656.89 | J32: 1042.28 | K32: -2857.59 | L32: -5925.11 | M32: -5789.69 | N32: 0 | O32: =SUM(C32:N32) -> 6240.04
A33: 4204 | B33: Corporate Sponsorship Income | C33: 6105 | D33: 3040 | E33: 7350 | F33: 3905 | G33: 0 | H33: 0 | I33: 0 | J33: 0 | K33: 0 | L33: 0 | M33: 0 | O33: =C33+D33+E33+F33+G33+H33+I33+J33+K33+L33+M33+N33 -> 20400
A34: 4208 | B34: Advertising Sponsorships | C34: 680 | D34: 720 | E34: 100 | F34: 0 | G34: 100 | H34: 0 | I34: 0 | J34: 100 | K34: 0 | L34: 10 | M34: 0 | O34: 1710
A35: 4800 | B35: Donated "Rent" Income-New Space | C35: 776.46 | D35: 776.46 | E35: 776.46 | F35: 776.46 | G35: 776.46 | H35: 776.46 | I35: 776.46 | J35: 776.46 | K35: 776.46 | L35: 776.46 | M35: 776.46 | O35: 8541.06
A36: 4310 | B36: Digital Business Directory Income | C36: 0 | D36: 0 | E36: 0 | F36: 0 | G36: 625 | H36: 0 | I36: 0 | J36: 0 | K36: 0 | L36: 0 | M36: 3799 | O36: 4424
A37: 4311 | B37: Digital Business Directory Expense | C37: 0 | D37: 0 | E37: 0 | F37: 0 | G37: -625 | H37: 0 | I37: 0 | J37: 0 | K37: 0 | L37: 0 | M37: 0 | O37: -625
B38: Directoy Listing Income | C38: 0 | D38: 0 | E38: 0 | F38: 0 | G38: 0 | H38: 0 | I38: 0 | J38: 0 | K38: 0 | L38: 0 | M38: 0 | O38: 0
B39: Directory Listing Expense | C39: 0 | D39: 0 | E39: 0 | F39: 0 | G39: 0 | H39: 0 | I39: 0 | J39: 0 | K39: 0 | L39: 0 | M39: 0 | O39: 0
B40: Directory Page Review/Revision Income | C40: 0 | D40: 0 | E40: 0 | F40: 0 | G40: 0 | H40: 0 | I40: 0 | J40: 0 | K40: 0 | L40: 0 | M40: 0 | O40: 0
B41: Directory Page Review/Revision Expense | C41: 0 | D41: 0 | E41: 0 | F41: 0 | G41: 0 | H41: 0 | I41: 0 | J41: 0 | K41: 0 | L41: 0 | M41: 0 | O41: 0
A42: TOTAL NON DUES INCOME | C42: =SUM(C33:C41) -> 7561.46 | D42: 4536.46 | E42: 8226.46 | F42: 4681.46 | G42: 876.46 | H42: 776.46 | I42: 776.46 | J42: 876.46 | K42: 776.46 | L42: 786.46 | M42: 4575.46 | N42: 0 | O42: =SUM(C42:N42) -> 34450.06
A43: 4410 | B43: FYPG Events Income | C43: 0 | D43: 0 | E43: 0 | F43: 0 | G43: 0 | H43: 0 | I43: 0 | J43: 0 | K43: 0 | L43: 0 | M43: 0 | O43: =C43+D43+E43+F43+G43+H43+I43+J43+K43+L43+M43+N43 -> 0
A44: 4415 | B44: FYPG Events Expense | C44: -131.22 | D44: 0 | E44: 0 | F44: 0 | G44: 0 | H44: 0 | I44: -45.4 | J44: 0 | K44: 0 | L44: 0 | M44: 0 | O44: =C44+D44+E44+F44+G44+H44+I44+J44+K44+L44+M44+N44 -> -176.62
C45: =SUM(C43:C44) -> -131.22 | D45: 0 | E45: 0 | F45: 0 | G45: 0 | H45: 0 | I45: -45.4 | J45: 0 | K45: 0 | L45: 0 | M45: 0 | N45: 0 | O45: -176.62
A46: 4421 | B46: WBC Events Attendee Income | C46: 0 | D46: 0 | E46: 1500 | F46: 90 | G46: 270 | H46: 1025 | I46: 30 | J46: 30 | K46: 1020 | L46: 300 | M46: 685 | O46: =C46+D46+E46+F46+G46+H46+I46+J46+K46+L46+M46+N46 -> 4950
A47: 4422 | B47: WBC Events Sponsorship Income | C47: 0 | D47: 3825 | E47: 5100 | F47: 850 | G47: 425 | H47: 425 | I47: 0 | J47: 0 | K47: 0 | L47: 0 | M47: 100 | O47: =C47+D47+E47+F47+G47+H47+I47+J47+K47+L47+M47+N47 -> 10725
A48: 4425 | B48: WBC Event Expense | C48: 0 | D48: 0 | E48: -750 | F48: -2005.46 | G48: 0 | H48: 0 | I48: -1500 | J48: 0 | K48: -685 | L48: -2500.4 | M48: -2785 | O48: =C48+D48+E48+F48+G48+H48+I48+J48+K48+L48+M48+N48 -> -10225.86
C49: =SUM(C46:C48) -> 0 | D49: 3825 | E49: 5850 | F49: -1065.46 | G49: 695 | H49: 1450 | I49: -1470 | J49: 30 | K49: 335 | L49: -2200.4 | M49: -2000 | N49: 0 | O49: 5449.14
A50: 4432 | B50: Member Luncheon Attendee Income | C50: 25 | D50: 530 | E50: 325 | F50: 275 | G50: 345 | H50: 85 | I50: 0 | J50: 90 | K50: 220 | L50: 75 | M50: 0 | O50: =C50+D50+E50+F50+G50+H50+I50+J50+K50+L50+M50+N50 -> 1970
A51: 4435 | B51: Members Luncheon Expense | C51: -150 | D51: -150 | E51: -376.61 | F51: -144.1 | G51: -154.92 | H51: 0 | I51: 0 | J51: 0 | K51: -144.83 | L51: -215.6 | M51: 0 | O51: =C51+D51+E51+F51+G51+H51+I51+J51+K51+L51+M51+N51 -> -1336.06
C52: =SUM(C50:C51) -> -125 | D52: 380 | E52: -51.61 | F52: 130.9 | G52: 190.08 | H52: 85 | I52: 0 | J52: 90 | K52: 75.17 | L52: -140.6 | M52: 0 | N52: 0 | O52: 633.94
A53: TOTAL MEMBERSHIP ACTIVITIES INCOME | C53: =C45+C49+C52 -> -256.22 | D53: 4205 | E53: 5798.39 | F53: -934.56 | G53: 885.08 | H53: 1535 | I53: -1515.4 | J53: 120 | K53: 410.17 | L53: -2341 | M53: -2000 | N53: 0 | O53: =C53+D53+E53+F53+G53+H53+I53+J53+K53+L53+M53+N53 -> 5906.46
B54: TOTAL NON DUES & ACTIVITY INCOME | C54: =C42+C53 -> 7305.24 | D54: 8741.46 | E54: 14024.85 | F54: 3746.9 | G54: 1761.54 | H54: 2311.46 | I54: -738.94 | J54: 996.46 | K54: 1186.63 | L54: -1554.54 | M54: 2575.46 | N54: 0 | O54: =SUM(C54:N54) -> 40356.52
A55: TOTAL INCOME | C55: =C6+C32+C42+C53 -> 13164.76 | D55: 19708.39 | E55: 25342.35 | F55: 9017.63 | G55: 20133.47 | H55: 11390.61 | I55: 9522.95 | J55: 11553.74 | K55: 1966.54 | L55: 60.35 | M55: 650.77 | N55: 0 | O55: =SUM(C55:N55) -> 122511.56
A56: 5001 | B56: Advertising Expense | C56: 0 | D56: 0 | E56: 375 | F56: 375 | G56: 375 | H56: 0 | I56: 0 | J56: 0 | K56: 1064.6 | L56: 1040.6 | M56: 0 | O56: =C56+D56+E56+F56+G56+H56+I56+J56+K56+L56+M56+N56 -> 3230.2
A57: 5003 | B57: Bookeeping Expense | C57: 1250 | D57: 1000 | E57: 1250 | F57: 1437.5 | G57: 1400 | H57: 1000 | I57: 1050 | J57: 1150 | K57: 1000 | L57: 1500 | M57: 1250 | O57: 13287.5
A58: 5007 | B58: Contract Labor Expense | C58: 150 | D58: 0 | E58: 0 | F58: 315 | G58: 0 | H58: 260 | I58: 0 | J58: 0 | L58: 0 | M58: 0 | O58: 725
A59: 5009 | B59: Contributions Expense | C59: 103.14 | D59: 100 | E59: 215 | F59: 0 | G59: 0 | H59: 0 | I59: 0 | J59: 0 | L59: 0 | M59: 0 | O59: 418.14
A60: 5011 | B60: Cr Card Processing & Bank Charges Expense | C60: 224.29 | D60: 268.15 | E60: 321.76 | F60: 162.35 | G60: 240.82 | H60: 83.79 | I60: 52.5 | J60: 183.47 | K60: 70.6 | L60: 268.68 | M60: 264.26 | O60: 2140.67
A61: 5015 | B61: Dues & Subscriptions Expense | C61: 151 | D61: 696 | E61: 476 | F61: 200 | G61: 101 | H61: 347 | I61: 300.82 | J61: 121 | K61: 121 | L61: 171 | M61: 121 | O61: 2805.82
C62: =SUM(C56:C61) -> 1878.43 | D62: 2064.15 | E62: 2637.76 | F62: 2489.85 | G62: 2116.82 | H62: 1690.79 | I62: 1403.32 | J62: 1454.47 | K62: 2256.2 | L62: 2980.28 | M62: 1635.26 | N62: 0 | O62: =SUM(C62:N62) -> 22607.33
A63: 5018 | B63: Insurance Expense | C63: 0 | D63: 0 | F63: 0 | G63: 0 | H63: 0 | I63: 0 | J63: 0 | K63: 0 | L63: 0 | M63: 0 | O63: =C63+D63+E63+F63+G63+H63+I63+J63+K63+L63+M63+N63 -> 0
A64: 5019 | B64: General Insurance Expense | C64: 0 | D64: 0 | E64: 0 | F64: 1009 | G64: 964 | H64: 0 | I64: 0 | J64: 0 | K64: 0 | L64: 0 | M64: 0 | O64: =C64+D64+E64+F64+G64+H64+I64+J64+K64+L64+M64+N64 -> 1973
C65: =SUM(C63:C64) -> 0 | D65: 0 | E65: 0 | F65: 1009 | G65: 964 | H65: 0 | I65: 0 | J65: 0 | K65: 0 | L65: 0 | M65: 0 | N65: 0 | O65: =SUM(C65:N65) -> 1973
A66: 5023 | B66: Meeting/Conventions Expense | C66: 250 | D66: 125 | E66: 0 | F66: 0 | G66: 0 | H66: 0 | I66: 0 | J66: 145 | K66: 0 | L66: 0 | M66: 0 | O66: =C66+D66+E66+F66+G66+H66+I66+J66+K66+L66+M66+N66 -> 520
A67: 5025 | B67: Membership Expense | C67: 218.33 | D67: 46.9 | E67: 361.5 | F67: 429.38 | G67: 190.87 | H67: 87.86 | I67: 240.27 | J67: 140.31 | K67: 16.14 | L67: 0 | M67: 108.38 | O67: =C67+D67+E67+F67+G67+H67+I67+J67+K67+L67+M67+N67 -> 1839.94
A68: 5030 | B68: Meals & Entertainment | C68: 0 | D68: 0 | E68: 0 | F68: 0 | G68: 0 | H68: 0 | I68: 0 | J68: 0 | K68: 0 | L68: 0 | M68: 0 | O68: =C68+D68+E68+F68+G68+H68+I68+J68+K68+L68+M68+N68 -> 0
A69: 5032 | B69: Meals - 50% | C69: 37.17 | D69: 72.04 | E69: 0 | F69: 0 | G69: 0 | H69: 0 | I69: 66.47 | J69: 0 | K69: 0 | L69: 104.61 | M69: 0 | O69: =C69+D69+E69+F69+G69+H69+I69+J69+K69+L69+M69+N69 -> 280.29
C70: =SUM(C66:C69) -> 505.5 | D70: 243.94 | E70: 361.5 | F70: 429.38 | G70: 190.87 | H70: 87.86 | I70: 306.74 | J70: 285.31 | K70: 16.14 | L70: 104.61 | M70: 108.38 | N70: 0 | O70: =SUM(C70:N70) -> 2640.23
A71: 5031 | B71: Office Supplies Expense | C71: 167.4 | D71: 2266.18 | E71: 117.19 | F71: 430.8 | G71: 245.92 | H71: 31.57 | I71: 196.9 | J71: -24.23 | K71: 0 | L71: 79.47 | M71: 145.3 | O71: =C71+D71+E71+F71+G71+H71+I71+J71+K71+L71+M71+N71 -> 3656.5
A72: 5033 | B72: Payroll Processing Expense | C72: 102 | D72: 100.25 | E72: 102 | F72: 102 | G72: 102 | H72: 195.25 | I72: 100.25 | J72: 7 | K72: 102 | L72: 107 | M72: 107 | O72: 1126.75
A73: 5035 | B73: Payroll Tax Expense | C73: 783.79 | D73: 677.68 | E73: 677.87 | F73: 742.23 | G73: 730.64 | H73: 663.73 | I73: 622.54 | J73: 737.49 | K73: 740.95 | L73: 723.78 | M73: 724.29 | O73: 7824.99
A74: 5039 | B74: Postage & Delivery Expense | C74: 0 | D74: 202 | E74: 36.67 | F74: 63 | G74: 201 | H74: 0 | I74: 0 | J74: 0 | K74: 200 | L74: 0 | M74: 91.29 | O74: 793.96
A75: 5048 | B75: Rent Expense - PATH | C75: 776.46 | D75: 776.46 | E75: 776.46 | F75: 776.46 | G75: 776.46 | H75: 776.46 | I75: 776.46 | J75: 776.46 | K75: 776.46 | L75: 776.46 | M75: 776.46 | O75: 8541.06
A76: 5049 | B76: Repairs & Maintenance Expense | C76: 0 | D76: 0 | E76: 0 | F76: 433.65 | G76: 0 | H76: 0 | I76: 0 | J76: 0 | K76: 0 | L76: 0 | M76: 0 | O76: 433.65
A77: 5051 | B77: Simple IRA Company Contribution Expense | C77: 230 | D77: 230 | E77: 230 | F77: 230 | G77: 230 | H77: 115 | I77: 115 | O77: 1380
C78: =SUM(C71:C77) -> 2059.65 | D78: 4252.57 | E78: 1940.19 | F78: 2778.14 | G78: 2286.02 | H78: 1782.01 | I78: 1811.15 | J78: 1496.72 | K78: 1819.41 | L78: 1686.71 | M78: 1844.34 | N78: 0 | O78: =SUM(C78:N78) -> 23756.91
A79: 5053 | B79: Technology Expense | C79: 0 | D79: 0 | E79: 0 | F79: 0 | G79: 0 | H79: 0 | I79: 0 | J79: 0 | K79: 0 | L79: 0 | M79: 0 | O79: =C79+D79+E79+F79+G79+H79+I79+J79+K79+L79+M79+N79 -> 0
A80: 6054 | B80: Software Costs | C80: 831.19 | D80: 1208.6 | E80: 844.72 | F80: 3128.65 | G80: 723.14 | H80: 953.99 | I80: 608.99 | J80: 590.68 | K80: 605.5 | L80: 694.07 | M80: 615.84 | O80: =C80+D80+E80+F80+G80+H80+I80+J80+K80+L80+M80+N80 -> 10805.37
A81: 6055 | B81: Utility Costs | C81: 265.46 | D81: 0 | E81: 272.92 | F81: 272.92 | G81: 272.92 | H81: 273.03 | I81: 273.03 | J81: 273.03 | K81: 274.12 | L81: 274.122 | M81: 274.12 | O81: =C81+D81+E81+F81+G81+H81+I81+J81+K81+L81+M81+N81 -> 2725.672
A82: 6056 | B82: Equipment Rental | C82: 405.62 | D82: 0 | E82: 569.17 | F82: 460.37 | G82: 616.16 | H82: 187.86 | I82: 0 | J82: 187.86 | K82: 266.36 | L82: 407.37 | M82: 187.86 | O82: =C82+D82+E82+F82+G82+H82+I82+J82+K82+L82+M82+N82 -> 3288.63
A83: 6057 | B83: IT Services | C83: 104 | D83: 0 | E83: 78 | F83: 535 | G83: 0 | H83: 275 | I83: 100 | J83: 0 | K83: 25 | L83: 0 | O83: =C83+D83+E83+F83+G83+H83+I83+J83+K83+L83+M83+N83 -> 1117
C84: =SUM(C79:C83) -> 1606.27 | D84: 1208.6 | E84: 1764.81 | F84: 4396.94 | G84: 1612.22 | H84: 1689.88 | I84: 982.02 | J84: 1051.57 | K84: 1170.98 | L84: 1375.562 | M84: 1077.82 | N84: 0 | O84: =SUM(C84:N84) -> 17936.672
A85: 5055 | B85: Telephone Expense | C85: 128.81 | D85: 128.81 | E85: 0 | F85: 0 | G85: 0 | H85: 0 | I85: 171.91 | J85: 108.36 | K85: 108.36 | L85: 108.36 | M85: 108.36 | O85: =C85+D85+E85+F85+G85+H85+I85+J85+K85+L85+M85+N85 -> 862.97
C86: =C85 -> 128.81 | D86: 128.81 | E86: 0 | F86: 0 | G86: 0 | H86: 0 | I86: 171.91 | J86: 108.36 | K86: 108.36 | L86: 108.36 | M86: 108.36 | N86: 0 | O86: =SUM(C86:N86) -> 862.97
A87: 5063 | B87: Wages_Admin | C87: 1515 | D87: 1050 | E87: 1065 | F87: 1815 | G87: 1680 | H87: 900 | I87: 420 | J87: 1760 | K87: 1800 | L87: 1600 | M87: 1620 | O87: =C87+D87+E87+F87+G87+H87+I87+J87+K87+L87+M87+N87 -> 15225
B88: Wages_Event Manager | O88: =C88+D88+E88+F88+G88+H88+I88+J88+K88+L88+M88+N88 -> 0
A89: 5064 | B89: Wages_Exec Director | C89: 7666.66 | D89: 7666.66 | E89: 7666.66 | F89: 7666.66 | G89: 7666.66 | H89: 7666.66 | I89: 7666.66 | J89: 7666.66 | K89: 7666.66 | L89: 7666.66 | M89: 7666.66 | O89: =C89+D89+E89+F89+G89+H89+I89+J89+K89+L89+M89+N89 -> 84333.26
C90: =SUM(C87:C89) -> 9181.66 | D90: 8716.66 | E90: 8731.66 | F90: 9481.66 | G90: 9346.66 | H90: 8566.66 | I90: 8086.66 | J90: 9426.66 | K90: 9466.66 | L90: 9266.66 | M90: 9286.66 | N90: 0 | O90: =SUM(C90:N90) -> 99558.26
A91: 5065 | B91: Website Development Expense | C91: 0 | D91: 0 | E91: 250 | F91: 149 | G91: 149 | H91: 151.98 | I91: 151.98 | J91: 151.98 | K91: 151.98 | L91: 151.98 | M91: 151.98 | O91: =C91+D91+E91+F91+G91+H91+I91+J91+K91+L91+M91+N91 -> 1459.88
B92: Unapplied Cash Bill Payment Expense - 1 | C92: 0 | D92: 0 | E92: 0 | F92: 0 | G92: 0 | H92: 0 | I92: 0 | J92: 0 | K92: 0 | L92: 0 | M92: 0 | N92: 0 | O92: =C92+D92+E92+F92+G92+H92+I92+J92+K92+L92+M92+N92 -> 0
C93: =SUM(C91:C92) -> 0 | D93: 0 | E93: 250 | F93: 149 | G93: 149 | H93: 151.98 | I93: 151.98 | J93: 151.98 | K93: 151.98 | L93: 151.98 | M93: 151.98 | N93: 0 | O93: =SUM(C93:N93) -> 1459.88
A95: TOTAL EXPENSES | B95: TOTAL EXPENSES | C95: =C62+C65+C70+C78+C84+C86+C90+C93 -> 15360.32 | D95: 16614.73 | E95: 15685.92 | F95: 20733.97 | G95: 16665.59 | H95: 13969.18 | I95: 12913.78 | J95: 13975.07 | K95: 14989.73 | L95: 15674.162 | M95: 14212.8 | N95: 0 | O95: =SUM(C95:N95) -> 170795.252
A96: TOTAL INCOME | B96: TOTAL INCOME | C96: =C55 -> 13164.76 | D96: 19708.39 | E96: 25342.35 | F96: 9017.63 | G96: 20133.47 | H96: 11390.61 | I96: 9522.95 | J96: 11553.74 | K96: 1966.54 | L96: 60.35 | M96: 650.77 | N96: 0 | O96: =SUM(C96:N96) -> 122511.56
A97: NET OPERATING INCOME | B97: NET OPERATING INCOME | C97: =C96-C95 -> -2195.56 | D97: 3093.66 | E97: 9656.43 | F97: -11716.34 | G97: 3467.88 | H97: -2578.57 | I97: -3390.83 | J97: -2421.33 | K97: -13023.19 | L97: -15613.812 | M97: -13562.03 | N97: 0 | O97: -48283.692

Sheet Chase Account Reconcilliation
A1: DECEMBER STATEMENT | D1: 11/19/23 - 12/18/23
A2: Card | B2: Transaction Date | C2: Post Date | D2: Description | E2: Category | F2: Type | G2: Amount | H2: ACCT# | I2: AMT | J2: ACCT# | K2: AMT | L2: RECEIPT | M2: NOTES
A3: 8405 | B3: 2023-12-18 | C3: 2023-12-18 | D3: PURCHASE INTEREST CHARGE | G3: -358.59 | L3: no
A4: 8405 | B4: 2023-12-17 | C4: 2023-12-18 | D4: GOOGLE *YouTubePremium | G4: -13.99 | L4: yes
A5: 8405 | B5: 2023-12-14 | C5: 2023-12-17 | D5: 4JS FARM & BREWERY | G5: -173 | H5: 4175 | I5: 173 | L5: no
A6: 8405 | B6: 2023-12-14 | C6: 2023-12-15 | D6: AMZN Mktp US*8K0MV1R23 | G6: -63.17 | H6: 5031 | I6: 63.17 | L6: yes
A7: 8405 | B7: 2023-12-12 | C7: 2023-12-14 | D7: FAUQUIER TIMES | G7: -1364.6 | H7: 5001 | I7: 1364.6 | L7: no
A8: 8405 | B8: 2023-12-06 | C8: 2023-12-07 | D8: REALTOR ASSOCIATION/MLS | G8: -20 | H8: 5023 | I8: 20 | L8: yes
A9: 8405 | B9: 2023-12-01 | C9: 2023-12-03 | D9: GROWTHZONE/CHAMBERMAST | G9: -502.03 | H9: 5065 | I9: 151.98 | J9: 6054 | K9: 350.05 | L9: yes
A10: 8405 | B10: 2023-12-01 | C10: 2023-12-03 | D10: BJS MEMBERSHIP | G10: -55 | L10: no
A11: 8405 | B11: 2023-12-03 | C11: 2023-12-03 | D11: ADOBE *800-833-6687 | G11: -19.99 | H11: 6054 | I11: 19.99 | L11: yes
A12: 8405 | B12: 2023-11-29 | C12: 2023-12-01 | D12: FAUQUIER TIMES | G12: -1064.6 | H12: 5001 | I12: 1064.6 | L12: no
A13: 8405 | B13: 2023-11-28 | C13: 2023-11-29 | D13: STREAMYARD.COM | G13: -49 | H13: 6054 | I13: 49 | L13: yes
A14: 8405 | B14: 2023-11-26 | C14: 2023-11-27 | D14: MSFT * E0700Q45S7 | G14: -37.5 | L14: no
A15: 8405 | B15: 2023-11-23 | C15: 2023-11-23 | D15: COMCAST | G15: -304.38 | H15: 6054 | I15: 304.38 | L15: yes
A16: 8405 | B16: 2023-11-19 | C16: 2023-11-20 | D16: CUBESMART 6785 | G16: -121 | L16: yes
A17: 8405 | B17: 2023-11-19 | C17: 2023-11-20 | D17: ZOOM.US 888-799-9666 | G17: -10 | H17: 6054 | I17: 10 | L17: yes
A18: 8405 | B18: 2023-11-17 | C18: 2023-11-19 | D18: GOOGLE *YouTubePremium | G18: -13.99 | L18: yes
A19: JANUARY STATEMENT | D19: 12/19/23 - 1/18/2024
A20: Card | B20: Transaction Date | C20: Post Date | D20: Description | E20: Category | F20: Type | G20: Amount | H20: ACCT# | I20: AMT | J20: ACCT# | K20: AMT | L20: RECEIPT | M20: NOTES
A21: 8405 | B21: 2024-01-08 | C21: 2024-01-09 | D21: CANVA* I04024-64120581 | E21: Merchandise & Inventory | F21: Sale | G21: -50 | H21: 5031 | I21: 50 | L21: yes | M21: buisness cards for John Hilton
A22: 8405 | B22: 2024-01-05 | C22: 2024-01-07 | D22: CEREMONIALSUPPLIES | E22: Merchandise & Inventory | F22: Sale | G22: -229.23 | L22: yes | M22: expense to Oak View Bank for ground breaking. Billed to invoice #17660
A23: 8405 | B23: 2024-01-04 | C23: 2024-01-05 | D23: CANVA* I04020-61675761 | E23: Merchandise & Inventory | F23: Sale | G23: -38.5 | L23: yes | M23: expense to Oak View Bank for ground breaking. Billed to invoice #17660
A24: 8405 | B24: 2024-01-02 | C24: 2024-01-03 | D24: ADOBE *PRODUCTS | E24: Office & Shipping | F24: Sale | G24: -19.99 | H24: 6054 | I24: 19.99 | L24: yes
A25: 8405 | B25: 2024-01-01 | C25: 2024-01-02 | D25: GROWTHZONE/CHAMBERMAST | E25: Miscellaneous | F25: Sale | G25: -502.01 | H25: 5065 | I25: 151.98 | J25: 6054 | K25: 350.05 | L25: yes
A26: 8405 | B26: 2023-12-28 | C26: 2023-12-29 | D26: STREAMYARD.COM | E26: Office & Shipping | F26: Sale | G26: -49 | H26: 6054 | I26: 49 | L26: yes
A27: 8405 | B27: 2023-12-26 | C27: 2023-12-27 | D27: MSFT * E0700QI66T | E27: Office & Shipping | F27: Sale | G27: -37.5 | H27: 6054 | I27: 37.5 | L27: yes
A28: 8405 | B28: 2023-12-22 | C28: 2023-12-25 | D28: MEADOWS FARMS - WARR-33 | E28: Repair & Maintenance | F28: Sale | G28: -73.71 | L28: na | M28: personal expense. A Burnett
A29: 8405 | B29: 2023-12-22 | C29: 2023-12-24 | D29: DSW VIRGINIA GATEWAY CTR | E29: Merchandise & Inventory | F29: Sale | G29: -42.39 | L29: na | M29: personal expense. A Burnett
A30: 8405 | B30: 2023-12-23 | C30: 2023-12-24 | D30: COMCAST | E30: Bills & Utilities | F30: Sale | G30: -304.38 | L30: yes
A31: 8405 | B31: 2023-12-23 | C31: 2023-12-24 | D31: FOOD LION #0378 | E31: Food & Drink | F31: Sale | G31: -106.31 | L31: na | M31: personal expense. A Burnett
A32: 8405 | B32: 2023-12-22 | C32: 2023-12-24 | D32: HOMEGOODS #407 | E32: Merchandise & Inventory | F32: Sale | G32: -39.22 | L32: na | M32: personal expense. A Burnett
A33: 8405 | B33: 2023-12-19 | C33: 2023-12-20 | D33: ZOOM.US 888-799-9666 | E33: Bills & Utilities | F33: Sale | G33: -10 | H33: 6054 | I33: 10 | L33: yes | M33: cloud storage
A34: 8405 | B34: 2023-12-19 | C34: 2023-12-20 | D34: CUBESMART 6785 | E34: Miscellaneous | F34: Sale | G34: -121 | L34: yes
A35: 8405 | B35: 2023-12-18 | C35: 2023-12-19 | D35: PB LEASING | E35: Repair & Maintenance | F35: Sale | G35: -219.51 | H35: 6056 | I35: 219.51 | L35: yes
A36: 8405 | B36: 2024-01-11 | C36: 2024-01-12 | D36: DOMINO'S 4276 | E36: Food & Drink | F36: Sale | G36: -80.49 | H36: 4185 | L36: no | M36: January After 5 Expense
A37: 8405 | B37: 2024-01-11 | C37: 2024-01-12 | D37: WM SUPERCENTER #2437 | E37: Food & Drink | F37: Sale | G37: -26.61 | H37: 5031 | L37: yes | M37: Copier paper
A38: 8405 | B38: 2024-01-14 | C38: 2024-01-14 | D38: CEREMONIALSUPPLIES | E38: Merchandise & Inventory | F38: Sale | G38: -233.38 | L38: yes | M38: expense to Faith Christian Church for Ground Breaking
A39: 8405 | B39: 2024-01-16 | C39: 2024-01-17 | D39: FAUQUIER CHAMBER OF CO | E39: Miscellaneous | F39: Sale | G39: -0.5 | L39: no | M39: testing for e-commerce in ChamberMaster
A40: 8405 | B40: 2024-01-17 | C40: 2024-01-18 | D40: GOOGLE *YouTubePremium | E40: Entertainment | F40: Sale | G40: -13.99 | L40: no
A41: 8405 | B41: 2024-01-18 | C41: 2024-01-18 | D41: PURCHASE INTEREST CHARGE | E41: Fees & Adjustments | F41: Fee | G41: -93.39 | L41: na | M41: interest on residual charges from December 19 - January 15th
A42: FEBRUARY STATEMENT | D42: 1/19/24 - 2/18/24
A43: Card | B43: Transaction Date | C43: Post Date | D43: Description | E43: Category | F43: Type | G43: Amount | H43: ACCT# | I43: AMT | J43: ACCT# | K43: AMT | L43: RECEIPT | M43: NOTES
A44: 8405 | B44: 2024-02-17 | C44: 2024-02-18 | D44: GOOGLE *YouTubePremium | E44: Entertainment | F44: Sale | G44: -13.99 | H44: 6054 | L44: no
A45: 8405 | B45: 2024-02-15 | C45: 2024-02-16 | D45: QRFY.COM-2210908 | E45: Office & Shipping | F45: Sale | G45: -322.11 | H45: 6054 | L45: yes
A46: 8405 | B46: 2024-02-14 | C46: 2024-02-15 | D46: USVETS.ORG | E46: Gifts & Donations | F46: Sale | G46: -50 | H46: 5009 | L46: yes
A47: 8405 | B47: 2024-02-13 | C47: 2024-02-14 | D47: BUFFER PLAN | E47: Office & Shipping | F47: Sale | G47: -18 | H47: 6054 | L47: yes
A48: 8405 | B48: 2024-02-12 | C48: 2024-02-13 | D48: FAUQUIER CHAMBER OF CO | E48: Miscellaneous | F48: Sale | G48: -100
A49: 8405 | B49: 2024-02-09 | C49: 2024-02-11 | D49: JOANN STORES #820 | E49: Merchandise & Inventory | F49: Sale | G49: -7.19 | H49: 5025 | L49: no
A50: 8405 | B50: 2024-02-09 | C50: 2024-02-11 | D50: EB VIRGINIA BLACK CHA | E50: Office & Shipping | F50: Sale | G50: -82.73 | L50: no | M50: January 19th event attendance
A51: 8405 | B51: 2024-02-07 | C51: 2024-02-07 | D51: PANERA BREAD #204426 O | E51: Food & Drink | F51: Sale | G51: -41.13 | L51: no | M51: bi-monthly new member luncheon
A52: 8405 | B52: 2024-02-03 | C52: 2024-02-04 | D52: ADOBE *800-833-6687 | E52: Office & Shipping | F52: Sale | G52: -19.99 | H52: 6054 | L52: yes
A53: 8405 | B53: 2024-02-01 | C53: 2024-02-02 | D53: ExpressVPN | E53: Bills & Utilities | F53: Sale | G53: -12.95 | L53: no
A54: 8405 | B54: 2024-02-01 | C54: 2024-02-02 | D54: PAYPAL *VACCE | E54: Gifts & Donations | F54: Sale | G54: -125 | H54: 5015 | L54: yes
A55: 8405 | B55: 2024-02-01 | C55: 2024-02-01 | D55: GROWTHZONE/CHAMBERMAST | E55: Miscellaneous | F55: Sale | G55: -502.01 | H55: 5065 | I55: 151.98 | J55: 6054 | K55: 350.05 | L55: yes
A56: 8405 | B56: 2024-01-28 | C56: 2024-01-29 | D56: STREAMYARD.COM | E56: Office & Shipping | F56: Sale | G56: -49 | H56: 6054 | L56: yes
A57: 8405 | B57: 2024-01-28 | C57: 2024-01-29 | D57: Wondershare | E57: Office & Shipping | F57: Sale | G57: -39.99 | H57: 6054 | L57: yes
A58: 8405 | B58: 2024-01-26 | C58: 2024-01-28 | D58: MSFT * E0700QW4I7 | E58: Office & Shipping | F58: Sale | G58: -37.5 | H58: 6054 | L58: no
A59: 8405 | B59: 2024-01-23 | C59: 2024-01-23 | D59: COMCAST | E59: Bills & Utilities | F59: Sale | G59: -307.54 | L59: yes
A60: 8405 | B60: 2024-01-21 | C60: 2024-01-22 | D60: BJS WHOLESALE #0360 | E60: Merchandise & Inventory | F60: Sale | G60: -32.29 | H60: 5025 | L60: yes
A61: 8405 | B61: 2024-01-19 | C61: 2024-01-21 | D61: VCN*VIRGINIASCC | E61: Bills & Utilities | F61: Sale | G61: -25 | L61: yes | M61: Annual business filing with VA SCC
A62: 8405 | B62: 2024-01-19 | C62: 2024-01-21 | D62: ZOOM.US 888-799-9666 | E62: Bills & Utilities | F62: Sale | G62: -10 | H62: 6054 | L62: yes
A63: 8405 | B63: 2024-01-19 | C63: 2024-01-21 | D63: CUBESMART 6785 | E63: Miscellaneous | F63: Sale | G63: -121
A64: MARCH STATEMENT | D64: 2/19/24 - 3/18/24
A65: Card | B65: Transaction Date | C65: Post Date | D65: Description | E65: Category | F65: Type | G65: Amount | H65: ACCT# | I65: AMT | J65: ACCT# | K65: AMT | L65: RECEIPT | M65: NOTES
B66: 2024-03-17 | C66: 2024-03-18 | D66: GOOGLE *YouTubePremium | E66: Entertainment | F66: Sale | G66: -13.99 | H66: 6054 | L66: yes
B67: 2024-03-17 | C67: 2024-03-18 | D67: FACEBK JV7V45QDK2 | E67: Professional Services | F67: Sale | G67: -25 | L67: yes | M67: advertising for WBC. Don't see an account number?
B68: 2024-03-16 | C68: 2024-03-18 | D68: SAFEWAY 1801 | E68: Food & Drink | F68: Sale | G68: -50.37 | H68: 5025 | L68: yes
B69: 2024-03-15 | C69: 2024-03-17 | D69: SAFEWAY 1801 | E69: Food & Drink | F69: Sale | G69: -114.72 | H69: 5025 | L69: yes | M69: expenses associated to membership drive event March 16th
B70: 2024-03-15 | C70: 2024-03-17 | D70: HOMEGOODS #1023 | E70: Merchandise & Inventory | F70: Sale | G70: -31.12 | H70: 5025 | L70: yes
B71: 2024-03-15 | C71: 2024-03-17 | D71: DOLLAR TREE | E71: Merchandise & Inventory | F71: Sale | G71: -21.06 | H71: 5025 | L71: yes
B72: 2024-03-15 | C72: 2024-03-17 | D72: VA ABC STORE 303 | E72: Bills & Utilities | F72: Sale | G72: -63.15 | H72: 5025 | L72: yes
B73: 2024-03-15 | C73: 2024-03-17 | D73: LinkedIn Ads 10002312764 | E73: Bills & Utilities | F73: Sale | G73: -92.34 | L73: yes | M73: advertising for WBC. Don't see an account number?
B74: 2024-03-14 | C74: 2024-03-15 | D74: DRI*SIGNS | E74: Office & Shipping | F74: Sale | G74: -286.34 | L74: yes | M74: WBC expense
B75: 2024-03-13 | C75: 2024-03-14 | D75: BUFFER PLAN | E75: Office & Shipping | F75: Sale | G75: -42 | H75: 6054 | L75: yes | M75: social media management
B76: 2024-03-12 | C76: 2024-03-13 | D76: PAYPAL *VACCE | E76: Gifts & Donations | F76: Sale | G76: -275 | H76: 5015 | L76: yes | M76: annual dues Va Association of Chamber Executives
B77: 2024-03-12 | C77: 2024-03-12 | D77: FACEBK A8ZHW4QDK2 | E77: Professional Services | F77: Sale | G77: -25 | L77: yes | M77: advertising for WBC. Don't see an account number?
B78: 2024-03-06 | C78: 2024-03-07 | D78: LinkedIn Pre 9972666994 | E78: Bills & Utilities | F78: Sale | G78: -29.99 | L78: yes | M78: monthly subscription
B79: 2024-03-03 | C79: 2024-03-04 | D79: ADOBE *800-833-6687 | E79: Office & Shipping | F79: Sale | G79: -19.99 | L79: yes
B80: 2024-03-02 | C80: 2024-03-03 | D80: BJS WHOLESALE #0360 | E80: Merchandise & Inventory | F80: Sale | G80: -103.9 | H80: 4165 | L80: yes
B81: 2024-03-02 | C81: 2024-03-03 | D81: GROWTHZONE/CHAMBERMAST | E81: Miscellaneous | F81: Sale | G81: -502.01 | H81: 5065 | I81: 151.98 | J81: 6054 | K81: 350.05 | L81: yes
B82: 2024-02-28 | C82: 2024-03-01 | D82: AIRLIE | E82: Travel | F82: Sale | G82: -1105.76 | H82: 4533 | L82: yes
B83: 2024-02-28 | C83: 2024-02-29 | D83: HARRIS TEETER 0329 | E83: Food & Drink | F83: Sale | G83: -2.51 | L83: no
B84: 2024-02-28 | C84: 2024-02-29 | D84: ExpressVPN | E84: Bills & Utilities | F84: Sale | G84: -12.95 | H84: 6045 | L84: no
B85: 2024-02-28 | C85: 2024-02-29 | D85: STREAMYARD.COM | E85: Office & Shipping | F85: Sale | G85: -4.05 | L85: yes
B86: 2024-02-26 | C86: 2024-02-27 | D86: MSFT * E0700R9IVL | E86: Office & Shipping | F86: Sale | G86: -59.28 | H86: 5015 | L86: yes
B87: 2024-02-26 | C87: 2024-02-27 | D87: BUFFER PLAN | E87: Office & Shipping | F87: Sale | G87: -3.35 | H87: 6045 | L87: yes
B88: 2024-02-21 | C88: 2024-02-23 | D88: HARRIS TEETER 0329 | E88: Food & Drink | F88: Sale | G88: -29.76 | H88: 5031 | L88: yes
B89: 2024-02-23 | C89: 2024-02-23 | D89: COMCAST | E89: Bills & Utilities | F89: Sale | G89: -307.52 | L89: yes
B90: 2024-02-19 | C90: 2024-02-21 | D90: PARKINGCOR SAND LOT | E90: Bills & Utilities | F90: Sale | G90: -20 | L90: no | M90: parking for visit to capitol
B91: 2024-02-20 | C91: 2024-02-21 | D91: BUFFER PLAN | E91: Office & Shipping | F91: Sale | G91: -13.85 | H91: 6045 | L91: yes | M91: social media management
B92: 2024-02-19 | C92: 2024-02-20 | D92: ZOOM.US 888-799-9666 | E92: Bills & Utilities | F92: Sale | G92: -10 | L92: yes
B93: 2024-02-19 | C93: 2024-02-20 | D93: CUBESMART 6785 | E93: Miscellaneous | F93: Sale | G93: -121 | L93: no

Sheet AR Tracker
A1: Assignment | B1: Update | C1: Company Name | E1: 31 to 60 | F1: 61 to 90 | G1: 91 to 120 | H1: > 120 | I1: TOTAL | J1: Membership Type | K1: Contact First Name | L1: Contact Last Name | M1: Contact Title | N1: Contact Phone | O1: Contact Email | P1: Billing Addr1 | Q1: Billing Addr2 | R1: Billing City | S1: Billing State/Province | T1: Billing Postal Code | U1: Sales Rep | V1: JoinDate
A2: Alec | B2: paid | C2: 2ND 2 NUNN SPORTS INC. | E2: 165 | F2: 0 | G2: 0 | H2: 0 | I2: =SUM(E2:H2) -> 165 | J2: Not for Profit | K2: Tyrone | L2: Nunnally | M2: Owner | O2: Tyrone@2ND2NUNNsports.com | P2: 6799 Kennedy Road | Q2: Suite E | R2: Warrenton | S2: VA | T2: 20187 | V2: 2020-01-13
A3: Alec | C3: A-Team Roof & Exterior Cleaning | E3: 0 | F3: 0 | G3: 0 | H3: 245 | I3: 245 | J3: 1 - 5 Employees | K3: Ryan | L3: Freidline | M3: owner | N3: (540) 202-1541 | O3: info@ateamroofcleaning.com | P3: 143 Waterloo St | R3: Warrenton | S3: VA | T3: 20186 | V3: 2022-10-19
A4: Laura | C4: Able Bodied Computers, Inc. | E4: 0 | F4: 100 | G4: 0 | H4: 0 | I4: 100 | J4: 1 - 5 Employees | K4: Dennis | L4: Pyles | O4: gomerp@infionline.net | P4: 6355 Ewell St | Q4: P.O. Box 190 | R4: The Plains | S4: VA | T4: 20198 | V4: 1987-05-24
A5: Alec | B5: contacted 3/18 | C5: AES | E5: 0 | F5: 0 | G5: 0 | H5: 1125 | I5: 1125 | J5: 100+ Employees | K5: Greg | L5: Creswell | M5: Senior Development Manager | N5: (847) 302-4126 | O5: david.stimson@aes.com | P5: 4200 Innslake Drive, Ste 302 | R5: Glen Allen | S5: Virginia | T5: 23060 | V5: 2020-05-05
A6: Laura | C6: Aflac/David Minor | E6: 0 | F6: 245 | G6: 0 | H6: 0 | I6: 245 | J6: 1 - 5 Employees | K6: David | L6: Minor | M6: Associate | N6: (571) 239-5159 | O6: dave_minor@us.aflac.com | P6: 5801 Brandon Hill Loop | R6: Haymarket | S6: VA | T6: 20169 | V6: 2022-12-21
A7: Alec | B7: paid | C7: Anne C. Hall - Long & Foster | E7: 0 | F7: 100 | G7: 0 | H7: 255 | I7: 355 | J7: 1 - 5 Employees | K7: Anne C. | L7: Hall | O7: anne.hall@lnf.com | P7: 492 Blackwell Road | R7: Warrenton | S7: VA | T7: 20186 | V7: 2010-10-06
A8: Laura | C8: Benchmark Physical Therapy | E8: 0 | F8: 0 | G8: 0 | H8: 245 | I8: 245 | J8: 1 - 5 Employees | K8: Trina | L8: Monty | M8: Clinic Director | N8: (540) 340-3690 | O8: trina.monty@benchmarkpt.com | P8: 526 Fletcher Drive | R8: Warrenton | S8: VA | T8: 20186 | V8: 2022-10-19
A9: Laura | C9: Boys & Girls Club of Fauquier | E9: 165 | F9: 0 | G9: 0 | H9: 0 | I9: 165 | J9: Not for Profit | N9: (540) 349-8890 | O9: clubinfo@bgcfauquier.org | P9: 98 Alexandria Pike | Q9: Suite 35 | R9: Warrenton | S9: VA | T9: 20186 | U9: Alec Burnett | V9: 2005-01-01
A10: Laura | C10: Century 21 New Millennium | E10: 0 | F10: 345 | G10: 0 | H10: 0 | I10: 345 | J10: 1 - 5 Employees | K10: Herb | L10: Lisjak | N10: (703) 753-7910 | O10: csr.gainesville@c21nm.com | P10: 8078 Cresent Park Drive, Suite 205 | R10: Gainesville | S10: VA | T10: 20155 | V10: 2013-12-06
A11: Alec | B11: contacted 3/11 | C11: Columbia Gas of Virginia | E11: 0 | F11: 0 | G11: 0 | H11: 500 | I11: 500 | P11: 1809 Coyote Drive | R11: Chester | S11: VA | T11: 23836
A12: Alec | C12: Dominion Energy Services, Inc. | E12: 0 | F12: 895 | G12: 0 | H12: 0 | I12: 895 | J12: 50 - 100 Employees | K12: Jeanne | L12: Underwood | M12: Government Affairs Coordinator | O12: jeanne.underwood@dominionenergy.com | P12: 3072 Centreville Road | R12: Herndon | S12: VA | T12: 20171 | V12: 1987-11-20
A13: Alec | C13: Fathom Realty | E13: 0 | F13: 0 | G13: 0 | H13: 345 | I13: 345 | J13: 6 - 10 Employees | K13: Mark | L13: Worrilow | M13: Managing Broker | N13: (703) 244-8702 | O13: mworrilow@fathomrealty.com | P13: 47 Garrett St | Q13: Ste 203 | R13: Warrenton | S13: VA | T13: 20186 | V13: 2022-03-21
A14: Laura | C14: Fauquier Excellence in Education Foundation | E14: 25 | F14: 0 | G14: 0 | H14: 0 | I14: 25 | J14: Not for Profit | K14: Nancy | L14: Griffin-Bonnaire | M14: Executive Director | N14: (703) 407-3984 | O14: info@fauquiereie.org | P14: PO Box 512 | R14: Warrenton | S14: VA | T14: 20188 | V14: 2016-01-11
A15: Laura | C15: Fauquier Habitat for Humanity | E15: 25 | F15: 0 | G15: 0 | H15: 0 | I15: 25 | J15: Not for Profit | K15: Melanie | L15: Burch | M15: President & CEO | N15: (540) 341-4952 | O15: info@fauquierhabitat.org | P15: 98 Alexandria Pike | Q15: Suite 43 | R15: Warrenton | S15: VA | T15: 20186 | V15: 2002-01-01
A16: Laura | C16: Fresta Valley Christian School | E16: 460 | F16: 0 | G16: 0 | H16: 0 | I16: 460 | J16: 11 - 25 Employees | K16: Accounting | O16: administrator@frestavalley.org | P16: 6428 Wilson Road | R16: Marshall | S16: VA | T16: 20115 | V16: 2007-01-23
A17: Laura | C17: Genesis Construction Group | E17: 25 | F17: 0 | G17: 0 | H17: 0 | I17: 25 | J17: 1 - 5 Employees | K17: Samantha | L17: Jenkins | M17: Office Manager | N17: (540) 439-4663 | O17: info@gteamva.com | P17: 101East Marshall Street | R17: Remington | S17: VA | T17: 22734 | V17: 2014-08-01
A18: Alec | C18: Golden Rule Builders, Inc. | E18: 0 | F18: 460 | G18: 0 | H18: 10 | I18: 470 | J18: 11 - 25 Employees | K18: Blyss | L18: Barkman | M18: Office Manager | N18: (540) 788-3539 | O18: marketing@goldenrulebuilders.com | P18: P.O. Box 294 | R18: Catlett | S18: VA | T18: 20119 | V18: 2003-12-01
A19: Laura | C19: Hearing Assessment Center LLC | E19: 345 | F19: 0 | G19: 0 | H19: 0 | I19: 345 | J19: 6 - 10 Employees | K19: Nikki | L19: Butler | M19: Audiologist | N19: (540) 341-7112 | O19: nbutler@hearingassessment.com | P19: 493 Blackwell Road | Q19: Suite 311 | R19: Warrenton | S19: Virginia | T19: 20186 | V19: 2016-12-01
A20: Laura | C20: Hope Theater LLC | E20: 0 | F20: 165 | G20: 0 | H20: 0 | I20: 165 | J20: Not for Profit | K20: Scott | L20: Pierce | M20: Director | N20: (540) 222-6648 | O20: spierce@hope.theater | P20: 4175 Bludau Drive | R20: Warrenton | S20: VA | T20: 20187 | V20: 2022-12-21
A21: Laura | C21: HouseMaster of Bull Run | E21: 245 | F21: 0 | G21: 0 | H21: 0 | I21: 245 | J21: 1 - 5 Employees | K21: Cynthia | L21: Murray | M21: Owner | N21: 571.393.3311 | O21: John.Murray@HouseMaster.com | P21: 11106 Bristow Road | R21: Bristow | S21: Virginia | T21: 20136 | V21: 2017-02-16
A22: Laura | C22: ICS Financial | E22: 490 | F22: 0 | G22: 0 | H22: 0 | I22: 490 | J22: 1 - 5 Employees | K22: Cillian | L22: Tyrrell | M22: Investment Advisor | N22: (703) 378-2900 | P22: 6479 Main St. | Q22: PO Box 366 | R22: The Plains | S22: VA | T22: 20198 | V22: 2016-11-07
A23: Laura | C23: Infiniti Mortgage Solutions Inc | E23: 0 | F23: 0 | G23: 0 | H23: 345 | I23: 345 | J23: 6 - 10 Employees | K23: Thomas | L23: Woodward | M23: President | N23: (703) 468-0931 | O23: Thomas@infinitimortgage.com | P23: 7545 Presidential Ln | R23: Manassas | S23: VA | T23: 20109 | V23: 2021-10-25
A24: Alec | B24: w/o did not attend event | C24: Janice S. Sutton Insurance Agency Inc. | E24: 0 | F24: 200 | G24: 0 | H24: 0 | I24: 200 | J24: 1 - 5 Employees | K24: Janice | L24: Sutton | N24: (571) 233-7285 | O24: jsuttoninsurance@gmail.com | P24: 754 Warrenton Rd | Q24: Suite 113-335 | R24: Fredericksburg | S24: VA | T24: 22406 | V24: 1999-06-01
A25: Laura | C25: KLNB Retail | E25: 0 | F25: 245 | G25: 0 | H25: 0 | I25: 245 | J25: 1 - 5 Employees | K25: Ernest R. | L25: Hueter | N25: (703) 268-2713 | O25: ehueter@klnb.com | P25: 8065 Leesburg Pike, Suite 700 | R25: Vienna | S25: VA | T25: 22182 | V25: 2004-12-10
A26: Laura | C26: Laser Dental Arts, PLLC | E26: 0 | F26: 0 | G26: 0 | H26: 345 | I26: 345 | J26: 6 - 10 Employees | K26: Noelle | L26: Dunn | M26: Dentist/ Owner | N26: (540) 349-1220 | O26: info@laserdentalarts.com | P26: 10 Rock Pointe Lane | R26: Warrenton | S26: VA | T26: 20186
A27: Alec | B27: deactivate / w/o | C27: Law Office of Catherine M. Bowers, PLC | E27: 245 | F27: 0 | G27: 0 | H27: 0 | I27: 245 | J27: 1 - 5 Employees | N27: 540-216-7160 | O27: catherine@catherinembowerslaw.com | P27: 49A East Lee Street | R27: Warrenton | S27: Virginia | T27: 20186 | V27: 2017-01-13
A28: Alec | B28: contacted 3/13. emailed 3/15 | C28: Lifestyle Physicians | E28: 0 | F28: 1650 | G28: 0 | I28: 1650 | J28: 1 - 5 Employees | K28: Sagar | L28: Verma | M28: Physician | N28: (540) 680-2426 | O28: kbaldwin@lifestylephysicians.com | P28: 400 Holiday Court | R28: Warrenton | S28: VA | T28: 20186 | V28: 2019-05-29
A29: Alec | B29: contacted 3/13. emailed 3/16 | C29: Lifestyle Physicians | E29: 0 | G29: 0 | H29: 425 | I29: 425
A30: Alec | B30: contacted 3/13. emailed 3/17 | C30: Lifestyle Physicians | E30: 0 | G30: 0 | H30: 50 | I30: 50
A31: Laura | C31: Limitless Landscaping LLC | E31: 245 | F31: 0 | G31: 0 | H31: 0 | I31: 245 | J31: 1 - 5 Employees | K31: Raven | L31: Treadway | M31: Owner | N31: (540) 222-1196 | O31: limitlesslandscaping4you@gmail.com | P31: 14708 Lee Hwy | R31: Amissville | S31: VA | T31: 20106 | V31: 2021-01-12
A32: Alec | C32: MadRapp Recorder/Greene Journal | E32: 0 | F32: 245 | G32: 0 | H32: 0 | I32: 245 | J32: 1 - 5 Employees | K32: Patricia | L32: Wharton-Lynn | N32: (540) 931-5007 | O32: admin@madrapp.net | P32: MadRapp Recorder, Accounts Payable | Q32: PO Box 71 | R32: Flint Hill | S32: VA | T32: 22627 | V32: 2020-12-21
A33: Alec | B33: awaiting response | C33: Middleburg Life aka Greenhill Media LLC | E33: 0 | F33: 0 | G33: 0 | H33: 245 | I33: 245 | J33: 1 - 5 Employees | K33: Kaitlin | L33: Hill | M33: Editor in Cheif | N33: (540) 687-5950 | O33: kaitlin@middleburglife.com | P33: P.O. Box 328 | R33: Middleburg | S33: VA | T33: 20118-0328 | V33: 2018-10-30
A34: Alec | C34: Moo Thru Mobile Warrenton | E34: 0 | F34: 0 | G34: 0 | H34: 200 | I34: =SUM(E34:H34) -> 200 | J34: 1 - 5 Employees | K34: Amy | L34: Crider | M34: Owner | N34: 844 MOO THRU | O34: amy@moothru.com | P34: 7380 Moccassin Lane | R34: Warrenton | S34: VA | T34: 20186 | V34: 2021-10-14
A35: Laura | C35: Movement Mortgage | E35: 0 | F35: 245 | G35: 0 | H35: 0 | I35: 245 | J35: 1 - 5 Employees | K35: Allen | L35: Tardiff | M35: Team Leader | N35: (703) 609-9854 | O35: allen.tardiff@movement.com | P35: 7373 Comfort Inn Drive | R35: Warrenton | S35: VA | T35: 20187 | V35: 2022-12-21
A36: Laura | C36: Mr Handyman of Northern Virginia | E36: 245 | F36: 0 | G36: 0 | H36: 0 | I36: 245 | J36: 1 - 5 Employees | K36: Tom | L36: Payne | M36: Business Development Manager | N36: (703) 215-2364 | O36: novabdm@mrhandyman.com | P36: 9030 Euclid Ave. | R36: Manassas | S36: Virginia | T36: 20110 | V36: 2020-09-29
A37: Alec | C37: Non-Member Event Registrations | E37: 0 | F37: 30 | G37: 0 | H37: 220 | I37: 250 | R37: Warrenton | S37: VA | T37: 20186
A38: Laura | C38: Northern Virginia Food Rescue | E38: 0 | F38: 0 | G38: 0 | H38: 165 | I38: 165 | J38: Not for Profit | K38: Claire | L38: Baquer | M38: Program Director | N38: (513) 646-6255 | O38: cbaquer@nova-fr.org | P38: 321 Walker Dr. | Q38: Suite 201 | R38: Warrenton | S38: VA | T38: 20186 | V38: 2022-07-27
A39: Laura | C39: Spaces Organized & Styled | E39: 25 | F39: 0 | G39: 30 | H39: 0 | I39: 55 | J39: 1 - 5 Employees | K39: Caitlin | L39: Adkins | M39: Owner | N39: (540) 878-1087 | O39: hello@spacesorganizedstyled.com | P39: 8055 Riverside Farm Road | R39: Marshall | S39: VA | T39: 20115 | V39: 2021-04-06
A40: Alec | C40: Staples | E40: 0 | F40: 0 | G40: 0 | H40: 395 | I40: 395 | J40: 6 - 10 Employees | K40: Journard | L40: Collins | M40: General Manager | N40: (540) 347-5989 | O40: gm1585@staples.com | P40: 251 W Lee Hwy | Q40: STE 615 | R40: Warrenton | S40: VA | T40: 20186 | V40: 2023-09-22
A41: Laura | C41: Stinson Insurance | E41: 0 | F41: 0 | G41: 0 | H41: 345 | I41: 345 | J41: 6 - 10 Employees | K41: Dave | L41: Stinson | M41: Business consultant | N41: (540) 273-2548 | O41: Nvagfr@gmail.com | P41: 6897 tred Avon pl | R41: Gainesville | S41: Virginia | T41: 20155 | V41: 2017-11-28
A42: Alec | C42: Stormy Acres Cookies | E42: 0 | F42: 100 | G42: 0 | H42: 0 | I42: 100 | K42: Christina | L42: Cernera | N42: (571) 375-4943 | O42: cookies@stormyacrescookies.com | P42: 11 North 5th Street | R42: Warrenton | S42: VA | T42: 20186
A43: Alec | B43: paid | C43: The Junkluggers of Gainesville VA | E43: 0 | F43: 0 | G43: 0 | H43: 245 | I43: 245 | J43: 1 - 5 Employees | K43: Mark | L43: Harrington | M43: Owner | N43: (571) 310-4388 | O43: mark.harrington@junkluggers.com | P43: 6630 Electric Avenue | Q43: Suite B | R43: Warrenton | S43: VA | T43: 20187 | V43: 2018-11-21
A44: Laura | C44: The Rosemary | E44: 0 | F44: 0 | G44: 0 | H44: 245 | I44: 245 | J44: 1 - 5 Employees | K44: Leah | L44: Washer | M44: General Manager | N44: (703) 498-0722 | O44: leah@therosemaryva.com | P44: 8393 West Main | R44: Marshall | S44: VA | T44: 20115 | V44: 2022-09-23
A45: Laura | C45: The Villa at Suffield Meadows | E45: 0 | F45: 245 | G45: 0 | H45: 0 | I45: 245 | J45: 1 - 5 Employees | K45: Sophia | L45: Cameron | N45: (540) 316-3800 | P45: 6735 Suffield Lane | R45: Warrenton | S45: VA | T45: 20187 | V45: 2012-12-06
A46: Alec | B46: w/o | C46: Thursday Leadshare | E46: 0 | F46: 0 | G46: 0 | H46: 20 | I46: 20 | J46: Administrative | K46: Toby | L46: Waterbury | M46: Treasurer | O46: bayard.waterbury@atlanticunionbank.com | P46: 321 Walker Dr | Q46: Suite 202 | R46: Warrenton | S46: VA | T46: 20186
A47: Alec | C47: US Health Advisors | E47: 0 | F47: 0 | G47: 0 | H47: 245 | I47: 245 | J47: 1 - 5 Employees | K47: Luke | L47: Baumstark | M47: Health Insurance Agent | N47: (703) 987-0100 | O47: Luke.Baumstark@ushadvisors.com | P47: 425 Ridge Ct | R47: Warrenton | S47: VA | T47: 20186 | V47: 2020-09-10
A48: Laura | C48: Warrenton Mini Storage | E48: 0 | F48: 245 | G48: 0 | H48: 0 | I48: 245 | J48: 1 - 5 Employees | K48: Starr | L48: Byers | N48: (540) 347-1166 | O48: storage@warrentonministorage.net | P48: 6437 Old Meetze Road | R48: Warrenton | S48: VA | T48: 20187 | V48: 2000-05-01
A49: Laura | C49: Warrenton Village Center | E49: 0 | F49: 0 | G49: 0 | H49: 245 | I49: 245 | J49: 1 - 5 Employees | K49: Ana Marie | L49: Rey | M49: AP Staff Accountant | N49: (703) 893-5141 | O49: ap@rosenthalproperties.com | P49: 1945 Old Gallows Rd | Q49: Suite 300 | R49: Vienna | S49: VA | T49: 20182 | V49: 2018-10-02
A50: Laura | C50: ZenBusiness | E50: 0 | F50: 0 | G50: 0 | H50: 460 | I50: 460 | J50: 11 - 25 Employees | K50: Sallie | L50: Clark | N50: (512) 765-4985 | O50: outreach@zenbusiness.com | P50: PO Box 33190 | Q50: c/o ZipSprout | R50: Raleigh | S50: NC | T50: 27636 | V50: 2020-09-15
E52: 31 to 60 | F52: 61 to 90 | G52: 91 to 120 | H52: > 120 | I52: TOTAL
D53: BEGINNING BALANCE | E53: =SUM(E2:E52) -> 2705 | F53: =SUM(F2:F52) -> 5515 | G53: =SUM(G2:G52) -> 30 | H53: =SUM(H2:H52) -> 6920 | I53: =SUM(I2:I50) -> 15170
D55: PAID TOTAL | E55: 1165 | F55: 1850 | H55: 960 | I55: =E55+F55+G55+H55 -> 3975
D56: W/O TOTAL | E56: 245 | F56: 1690 | H56: 2185 | I56: =E56+F56+G56+H56 -> 4120
E57: =E55+E56 -> 1410 | F57: =F55+F56 -> 3540 | G57: =G55+G56 -> 0 | H57: =H55+H56 -> 3145 | I57: =E57+F57+G57+H57 -> 8095
D59: ENDING BALANCE | E59: =E53-E57 -> 1295 | F59: =F53-F57 -> 1975 | G59: =G53-G57 -> 30 | H59: =H53-H57 -> 3775 | I59: =E59+F59+G59+H59 -> 7075

Sheet COA
A1: 4135 | B1: EDLA Expense
A2: 4165 | B2: Member Orientation Expense
A3: 4175 | B3: After 5 Expense
A4: 4415 | B4: FYP Expense
A5: 4435 | B5: Members Lunch Expense
A6: 5001 | B6: Advertising Expense
A7: 5003 | B7: Bookeeping Expense
A8: 5007 | B8: Contract Labor Expense
A9: 5009 | B9: Contributions Expense
A10: 5011 | B10: Cr Card Processing & Bank Charges Expense
A11: 5015 | B11: Dues & Subscriptions Expense
A12: 5018 | B12: Insurance Expense
A13: 5019 | B13: General Insurance Expense
A14: 5023 | B14: Meeting/Conventions Expense
A15: 5025 | B15: Membership Expense
A16: 5030 | B16: Meals & Entertainment
A17: 5032 | B17: Meals - 50%
A18: 5031 | B18: Office Supplies Expense
A19: 5033 | B19: Payroll Processing Expense
A20: 5035 | B20: Payroll Tax Expense
A21: 5039 | B21: Postage & Delivery Expense
A22: 5048 | B22: Rent Expense - PATH
A23: 5049 | B23: Repairs & Maintenance Expense
A24: 5051 | B24: Simple IRA Company Contribution Expense
A25: 5053 | B25: Technology Expense
A26: 6054 | B26: Software Costs
A27: 6055 | B27: Utility Costs
A28: 6056 | B28: Equipment Rental
A29: 6057 | B29: IT Services
A30: 5055 | B30: Telephone Expense
A31: 5060 | B31: Wages Expense
A32: 5063 | B32: Wages_Admin
B33: Wages_Event Manager
A34: 5064 | B34: Wages_Exec Director
A35: 5065 | B35: Website Development Expense
B36: Unapplied Cash Bill Payment Expense - 1
